Transaction Number,Service - Fund ,Service  - Function ,Service - Cost Centre,Expense Type ,Expense Description,Supplier Name,Supplier Post Code (first 4 digits),Payment Date,Amount �
50124233,HRA Overheads,Supervision & Management,Directorate,Supplies and Services,Fees,11 KBW LIMITED,EC4Y,31/10/2022,"2,000.00"
47361233,Travel,Highways & Transport,Concessionary Travel,3rd Party Payments,Concessionary Travel Subsidy,24/7 SWINDON TAXIS,SN4 ,17/10/2022,601.52
48150235,Physical Support,Adults,Physical Support 18 - 64,3rd Party Payments,Personal Budget - Domiciliary care,247 HOME CARE LTD,SN5 ,21/10/2022,-3.80
47699236,Physical Support,Adults,Physical Support 65 and over,3rd Party Payments,Personal Budget - Domiciliary care,247 HOME CARE LTD,SN5 ,19/10/2022,894.23
44956233,Physical Support,Adults,Physical Support 18 - 64,3rd Party Payments,Carers,247 HOME CARE LTD,SN5 ,07/10/2022,151.44
50259237,Physical Support,Adults,Physical Support 18 - 64,3rd Party Payments,Personal Budget - Domiciliary care,247 HOME CARE LTD,SN5 ,31/10/2022,"1,178.78"
47699235,Physical Support,Adults,Physical Support 18 - 64,3rd Party Payments,Personal Budget - Domiciliary care,247 HOME CARE LTD,SN5 ,19/10/2022,-3.80
47702236,Physical Support,Adults,Physical Support 65 and over,3rd Party Payments,Personal Budget - Domiciliary care,247 HOME CARE LTD,SN5 ,19/10/2022,-162.87
47702234,Physical Support,Adults,Physical Support 65 and over,3rd Party Payments,Personal Budget - Domiciliary care,247 HOME CARE LTD,SN5 ,19/10/2022,948.38
48150235,Physical Support,Adults,Physical Support 18 - 64,3rd Party Payments,Personal Budget - Domiciliary care,247 HOME CARE LTD,SN5 ,21/10/2022,"1,120.37"
44956233,Physical Support,Adults,Physical Support 18 - 64,3rd Party Payments,Personal Budget - Domiciliary care,247 HOME CARE LTD,SN5 ,07/10/2022,-3.80
47702235,Physical Support,Adults,Physical Support 65 and over,3rd Party Payments,Personal Budget - Domiciliary care,247 HOME CARE LTD,SN5 ,19/10/2022,-162.87
47702233,Physical Support,Adults,Physical Support 65 and over,3rd Party Payments,Personal Budget - Domiciliary care,247 HOME CARE LTD,SN5 ,19/10/2022,-186.14
47701233,Physical Support,Adults,Physical Support 65 and over,3rd Party Payments,Personal Budget - Domiciliary care,247 HOME CARE LTD,SN5 ,19/10/2022,894.23
47699235,Physical Support,Adults,Physical Support 18 - 64,3rd Party Payments,Personal Budget - Domiciliary care,247 HOME CARE LTD,SN5 ,19/10/2022,"1,140.18"
49399233,Physical Support,Adults,Physical Support 65 and over,3rd Party Payments,Personal Budget - Domiciliary care,247 HOME CARE LTD,SN5 ,28/10/2022,-162.87
47702236,Physical Support,Adults,Physical Support 65 and over,3rd Party Payments,Personal Budget - Domiciliary care,247 HOME CARE LTD,SN5 ,19/10/2022,899.66
47701233,Physical Support,Adults,Physical Support 65 and over,3rd Party Payments,Personal Budget - Domiciliary care,247 HOME CARE LTD,SN5 ,19/10/2022,-162.87
49886243,Physical Support,Adults,Physical Support 18 - 64,3rd Party Payments,Carers,247 HOME CARE LTD,SN5 ,28/10/2022,212.77
44956233,Physical Support,Adults,Physical Support 18 - 64,3rd Party Payments,Personal Budget - Domiciliary care,247 HOME CARE LTD,SN5 ,07/10/2022,"1,120.37"
49399233,Physical Support,Adults,Physical Support 65 and over,3rd Party Payments,Personal Budget - Domiciliary care,247 HOME CARE LTD,SN5 ,28/10/2022,894.23
48150236,Physical Support,Adults,Physical Support 65 and over,3rd Party Payments,Personal Budget - Domiciliary care,247 HOME CARE LTD,SN5 ,21/10/2022,914.04
50259237,Physical Support,Adults,Physical Support 18 - 64,3rd Party Payments,Personal Budget - Domiciliary care,247 HOME CARE LTD,SN5 ,31/10/2022,-3.80
49886243,Physical Support,Adults,Physical Support 18 - 64,3rd Party Payments,Personal Budget - Domiciliary care,247 HOME CARE LTD,SN5 ,28/10/2022,-3.80
48150236,Physical Support,Adults,Physical Support 65 and over,3rd Party Payments,Personal Budget - Domiciliary care,247 HOME CARE LTD,SN5 ,21/10/2022,-162.87
47702233,Physical Support,Adults,Physical Support 65 and over,3rd Party Payments,Personal Budget - Domiciliary care,247 HOME CARE LTD,SN5 ,19/10/2022,937.31
47699236,Physical Support,Adults,Physical Support 65 and over,3rd Party Payments,Personal Budget - Domiciliary care,247 HOME CARE LTD,SN5 ,19/10/2022,-162.87
50259237,Physical Support,Adults,Physical Support 18 - 64,3rd Party Payments,Carers,247 HOME CARE LTD,SN5 ,31/10/2022,151.44
48150235,Physical Support,Adults,Physical Support 18 - 64,3rd Party Payments,Carers,247 HOME CARE LTD,SN5 ,21/10/2022,151.44
47699235,Physical Support,Adults,Physical Support 18 - 64,3rd Party Payments,Carers,247 HOME CARE LTD,SN5 ,19/10/2022,151.44
49886243,Physical Support,Adults,Physical Support 18 - 64,3rd Party Payments,Personal Budget - Domiciliary care,247 HOME CARE LTD,SN5 ,28/10/2022,"1,140.18"
47702235,Physical Support,Adults,Physical Support 65 and over,3rd Party Payments,Personal Budget - Domiciliary care,247 HOME CARE LTD,SN5 ,19/10/2022,894.23
47702234,Physical Support,Adults,Physical Support 65 and over,3rd Party Payments,Personal Budget - Domiciliary care,247 HOME CARE LTD,SN5 ,19/10/2022,-162.87
48648233,Care Management & Safeguarding,Adults,Mental Capacity & DOL,3rd Party Payments,Contracts - Social Care,3D RECRUIT LTD,TN33,21/10/2022,618.00
47878233,Care Management & Safeguarding,Adults,Mental Capacity & DOL,3rd Party Payments,Contracts - Social Care,3D RECRUIT LTD,TN33,19/10/2022,"1,236.00"
48650233,Care Management & Safeguarding,Adults,Mental Capacity & DOL,3rd Party Payments,Contracts - Social Care,3D RECRUIT LTD,TN33,21/10/2022,"2,472.00"
48734233,Care Management & Safeguarding,Adults,Mental Capacity & DOL,3rd Party Payments,Contracts - Social Care,3D RECRUIT LTD,TN33,21/10/2022,927.00
46256233,School Transport,"Education, Inclusion and Skills",Special Educational Needs Transport,Transport Costs,Home to School Transport,4K TRAVEL,SN2 ,12/10/2022,"2,362.50"
46209233,Other Repairs,Repairs,Delivery Team & Overheads,Supplies and Services,Materials,A P LIFTING GEAR COMPANY LTD T/A PGS SUPPLIES 21 LTD,DY2 ,12/10/2022,532.98
48589233,Town Centre,"Economy, Growth and Place",Fleming Way Improvement Scheme,Capital,Professional Fees,A PLUS SAFETY & TRAINING SERVICES LTD,SN3 ,21/10/2022,750.00
48589233,NEV,"Economy, Growth and Place",Southern Connector Road,Capital,Professional Fees,A PLUS SAFETY & TRAINING SERVICES LTD,SN3 ,21/10/2022,250.00
48396322,Homelessness and Travellers,Housing Services,Leased Private Managed Accommodation,Transfer Payments,Payment of Costs,REDACTED PERSONAL DATA,SN3 ,24/10/2022,800.00
48396312,Homelessness and Travellers,Housing Services,Leased Private Managed Accommodation,Transfer Payments,Payment of Costs,REDACTED PERSONAL DATA,SN3 ,24/10/2022,800.00
48810233,Highways Schemes,Strategic Planning and Highways,Blunsdon High Street,Capital,Contractor Payments,A.H. WILLIS & SONS LTD,SN7 ,24/10/2022,"60,718.38"
49074234,Responsive Repairs,Repairs,Responsive Repairs,3rd Party Payments,Contract Payments,ABBEY ELECTRICAL (SWINDON) LTD T/A ABBEY ELECTRICAL UK,SN6 ,26/10/2022,429.25
48850233,Planned Maintenance Programme,HRA Capital Financing,Electrics,Capital,Contractor Payments,ABBEY ELECTRICAL (SWINDON) LTD T/A ABBEY ELECTRICAL UK,SN6 ,28/10/2022,748.55
47647233,High Needs Block,DSG Skills and Attainment,SEN Resourcing Assessment Panel,3rd Party Payments,Top up funding - Academies and Free Schools Pre 16,ABBEY MEADS COMMUNITY PRIMARY SCHOOL,SN25,19/10/2022,"6,785.84"
45927234,Early Years Block,DSG Skills and Attainment,Free Nursery Education Commissioning - three & four  year olds,3rd Party Payments,Contracts - Child Care,ABBEY MEADS COMMUNITY PRIMARY SCHOOL,SN25,12/10/2022,"5,548.10"
49397247,Physical Support,Adults,Physical Support 18 - 64,3rd Party Payments,Personal Budget - Domiciliary care,ABICARE SERVICES LTD,BS32,26/10/2022,571.78
48148234,Physical Support,Adults,Physical Support 18 - 64,3rd Party Payments,Personal Budget - Domiciliary care,ABICARE SERVICES LTD,BS32,19/10/2022,571.78
44509236,Physical Support,Adults,Physical Support 18 - 64,3rd Party Payments,Personal Budget - Domiciliary care,ABICARE SERVICES LTD,BS32,05/10/2022,598.48
44955234,Physical Support,Adults,Physical Support 18 - 64,3rd Party Payments,Personal Budget - Domiciliary care,ABICARE SERVICES LTD,BS32,05/10/2022,571.78
46396233,Physical Support,Adults,Physical Support 18 - 64,3rd Party Payments,Personal Budget - Domiciliary care,ABICARE SERVICES LTD,BS32,12/10/2022,571.78
46398236,Mental Health,Adults,Mental Health 65 and over,3rd Party Payments,Personal Budget - Domiciliary care,ABICARE SERVICES LTD (LIVE IN),SP2 ,12/10/2022,"1,106.00"
48150234,Mental Health,Adults,Mental Health 65 and over,3rd Party Payments,Personal Budget - Domiciliary care,ABICARE SERVICES LTD (LIVE IN),SP2 ,19/10/2022,"1,106.00"
49398236,Mental Health,Adults,Mental Health 65 and over,3rd Party Payments,Personal Budget - Domiciliary care,ABICARE SERVICES LTD (LIVE IN),SP2 ,26/10/2022,988.68
44955240,Memory & Cognition,Adults,Support for Memory and Cognition 65 and over,3rd Party Payments,Personal Budget - Domiciliary care,ABICARE SERVICES LTD (LIVE IN),SP2 ,05/10/2022,"1,106.00"
46398233,Mental Health,Adults,Mental Health 65 and over,3rd Party Payments,Personal Budget - Domiciliary care,ABICARE SERVICES LTD (LIVE IN),SP2 ,12/10/2022,988.68
49398240,Mental Health,Adults,Mental Health 65 and over,3rd Party Payments,Personal Budget - Domiciliary care,ABICARE SERVICES LTD (LIVE IN),SP2 ,26/10/2022,"1,106.00"
44955238,Mental Health,Adults,Mental Health 65 and over,3rd Party Payments,Personal Budget - Domiciliary care,ABICARE SERVICES LTD (LIVE IN),SP2 ,05/10/2022,988.68
48148237,Mental Health,Adults,Mental Health 65 and over,3rd Party Payments,Personal Budget - Domiciliary care,ABICARE SERVICES LTD (LIVE IN),SP2 ,19/10/2022,988.68
44955239,Physical Support,Adults,Physical Support 18 - 64,3rd Party Payments,Personal Budget - Domiciliary care,ABICARE SERVICES LTD (LIVE IN),SP2 ,05/10/2022,988.68
44510233,Memory & Cognition,Adults,Support for Memory and Cognition 65 and over,3rd Party Payments,Personal Budget - Domiciliary care,ABICARE SERVICES LTD (LIVE IN),SP2 ,05/10/2022,"1,106.00"
44509239,Physical Support,Adults,Physical Support 18 - 64,3rd Party Payments,Personal Budget - Domiciliary care,ABICARE SERVICES LTD (LIVE IN),SP2 ,05/10/2022,988.68
48149233,Physical Support,Adults,Physical Support 18 - 64,3rd Party Payments,Personal Budget - Domiciliary care,ABICARE SERVICES LTD (LIVE IN),SP2 ,19/10/2022,988.68
44509238,Mental Health,Adults,Mental Health 65 and over,3rd Party Payments,Personal Budget - Domiciliary care,ABICARE SERVICES LTD (LIVE IN),SP2 ,05/10/2022,988.68
44955241,Mental Health,Adults,Mental Health 65 and over,3rd Party Payments,Personal Budget - Domiciliary care,ABICARE SERVICES LTD (LIVE IN),SP2 ,05/10/2022,"1,106.00"
48150233,Memory & Cognition,Adults,Support for Memory and Cognition 65 and over,3rd Party Payments,Personal Budget - Domiciliary care,ABICARE SERVICES LTD (LIVE IN),SP2 ,19/10/2022,"1,106.00"
49398237,Physical Support,Adults,Physical Support 18 - 64,3rd Party Payments,Personal Budget - Domiciliary care,ABICARE SERVICES LTD (LIVE IN),SP2 ,26/10/2022,988.68
46398235,Memory & Cognition,Adults,Support for Memory and Cognition 65 and over,3rd Party Payments,Personal Budget - Domiciliary care,ABICARE SERVICES LTD (LIVE IN),SP2 ,12/10/2022,"1,106.00"
44511233,Mental Health,Adults,Mental Health 65 and over,3rd Party Payments,Personal Budget - Domiciliary care,ABICARE SERVICES LTD (LIVE IN),SP2 ,05/10/2022,"1,106.00"
46398234,Physical Support,Adults,Physical Support 18 - 64,3rd Party Payments,Personal Budget - Domiciliary care,ABICARE SERVICES LTD (LIVE IN),SP2 ,12/10/2022,988.68
49398239,Memory & Cognition,Adults,Support for Memory and Cognition 65 and over,3rd Party Payments,Personal Budget - Domiciliary care,ABICARE SERVICES LTD (LIVE IN),SP2 ,26/10/2022,"1,106.00"
45928235,Early Years Block,DSG Skills and Attainment,Free Nursery Education Commissioning - three & four  year olds,3rd Party Payments,Contracts - Child Care,REDACTED PERSONAL DATA,SN2 ,12/10/2022,592.20
48058233,Care Management & Safeguarding,Adults,Local Safeguarding Board,Supplies and Services,Fees,ABLE TRAINING AND CONSULTANCY (LINDA COBB),TN25,19/10/2022,550.00
46591233,Streetsmart,Streetsmart,Waterside Fleet Hires,Transport Costs,Vehicle Hire / Contract,ACCESS HIRE NATIONWIDE,WF6 ,12/10/2022,"1,401.43"
46593234,Streetsmart,Streetsmart,Waterside Fleet Hires,Transport Costs,Vehicle Hire / Contract,ACCESS HIRE NATIONWIDE,WF6 ,12/10/2022,"1,264.29"
46592236,Streetsmart,Streetsmart,Waterside Fleet Hires,Transport Costs,Vehicle Hire / Contract,ACCESS HIRE NATIONWIDE,WF6 ,12/10/2022,"1,457.14"
47264346,Physical Support,Adults,Physical Support 18 - 64,Income,Client Contribution - Residential,ACCOMPLISH,B45 ,14/10/2022,-414.20
47264346,Physical Support,Adults,Physical Support 18 - 64,3rd Party Payments,Residential Care,ACCOMPLISH,B45 ,14/10/2022,"5,817.12"
49252244,Social Care,"Children, Families and Community Health Services",External Placements,3rd Party Payments,Independent Fostering Agency Placements,ACTION FOR CHILDREN,WD18,26/10/2022,"3,072.90"
49252245,Social Care,"Children, Families and Community Health Services",External Placements,3rd Party Payments,Independent Fostering Agency Placements,ACTION FOR CHILDREN,WD18,26/10/2022,"3,542.10"
49252243,Social Care,"Children, Families and Community Health Services",External Placements,3rd Party Payments,Independent Fostering Agency Placements,ACTION FOR CHILDREN,WD18,26/10/2022,"3,068.70"
49252246,Social Care,"Children, Families and Community Health Services",External Placements,3rd Party Payments,Independent Fostering Agency Placements,ACTION FOR CHILDREN,WD18,26/10/2022,"3,542.10"
45581233,Disabled Children,"Children, Families and Community Health Services",ICES Paediatric,Supplies and Services,Equipment,ACTIVATE FOR KIDS LTD,SP2 ,07/10/2022,"1,240.28"
47668233,High Needs Block,DSG Skills and Attainment,SEN Resourcing Assessment Panel,3rd Party Payments,Top up funding - Academies and Free Schools Pre 16,ACTIVATE LEARNING EDUCATION TRUST,OX1 ,19/10/2022,570.42
47685234,High Needs Block,DSG Skills and Attainment,SEN Resourcing Assessment Panel,3rd Party Payments,Top up funding - Academies and Free Schools Post 16,ACTIVATE LEARNING EDUCATION TRUST,OX1 ,19/10/2022,"2,372.83"
49256233,Social Care,"Children, Families and Community Health Services",Unaccompanied Asylum Seeking Children (UASC),3rd Party Payments,Independent Fostering Agency Placements,ACTIVE CARE SOLUTIONS LTD,B60 ,26/10/2022,"4,345.58"
44330238,Social Care,"Children, Families and Community Health Services",External Placements,3rd Party Payments,Independent Fostering Agency Placements,ACTIVE CARE SOLUTIONS LTD,B60 ,05/10/2022,"3,256.80"
49256235,Social Care,"Children, Families and Community Health Services",External Placements,3rd Party Payments,Independent Fostering Agency Placements,ACTIVE CARE SOLUTIONS LTD,B60 ,26/10/2022,"3,365.36"
44330242,Social Care,"Children, Families and Community Health Services",External Placements,3rd Party Payments,Independent Fostering Agency Placements,ACTIVE CARE SOLUTIONS LTD,B60 ,05/10/2022,-651.36
49255238,Social Care,"Children, Families and Community Health Services",External Placements,3rd Party Payments,Independent Fostering Agency Placements,ACTIVE CARE SOLUTIONS LTD,B60 ,26/10/2022,"6,394.68"
44330239,Social Care,"Children, Families and Community Health Services",External Placements,3rd Party Payments,Independent Fostering Agency Placements,ACTIVE CARE SOLUTIONS LTD,B60 ,05/10/2022,528.55
44330240,Social Care,"Children, Families and Community Health Services",External Placements,3rd Party Payments,Independent Fostering Agency Placements,ACTIVE CARE SOLUTIONS LTD,B60 ,05/10/2022,-634.26
44330237,Social Care,"Children, Families and Community Health Services",Unaccompanied Asylum Seeking Children (UASC),3rd Party Payments,Independent Fostering Agency Placements,ACTIVE CARE SOLUTIONS LTD,B60 ,05/10/2022,"4,205.40"
44330241,Social Care,"Children, Families and Community Health Services",External Placements,3rd Party Payments,Independent Fostering Agency Placements,ACTIVE CARE SOLUTIONS LTD,B60 ,05/10/2022,542.80
49256234,Social Care,"Children, Families and Community Health Services",External Placements,3rd Party Payments,Independent Fostering Agency Placements,ACTIVE CARE SOLUTIONS LTD,B60 ,26/10/2022,"3,277.01"
50158233,Learning Disabilities,Adults,Learning Disability 26 - 64,Transfer Payments,Personal Budget - Direct Payments - Domiciliary Care,REDACTED PERSONAL DATA,SN4 ,31/10/2022,"1,146.29"
50226249,Learning Disabilities,Adults,Learning Disability 26 - 64,Transfer Payments,Personal Budget - Direct Payments - Domiciliary Care,REDACTED PERSONAL DATA,SN3 ,31/10/2022,"2,026.16"
48033233,Mental Health,Adults,Mental Health 18-64,3rd Party Payments,Contracts - Social Care,ADULT SOCIAL WORK PARTNERSHIPS,M16 ,19/10/2022,"2,464.90"
48396337,Homelessness and Travellers,Housing Services,Leased Private Managed Accommodation,Transfer Payments,Payment of Costs,ADVANCE HOUSING & SUPPORT LTD,OX28,24/10/2022,"1,074.00"
49345233,Streetsmart,Streetsmart,Waterside Fleet Workshops,Transport Costs,Repairs & Maintenance - Vehicles,AEBI SCHMIDT UK LTD,PE2 ,26/10/2022,129.11
49784234,Streetsmart,Streetsmart,Waterside Fleet Workshops,Transport Costs,Repairs & Maintenance - Vehicles,AEBI SCHMIDT UK LTD,PE2 ,28/10/2022,620.64
49345233,Streetsmart,Streetsmart,Waterside Fleet Workshops,Transport Costs,Repairs & Maintenance - Vehicles,AEBI SCHMIDT UK LTD,PE2 ,26/10/2022,645.53
47868233,Schools Maintenance,Skills & Attainment,Condition Works,Capital,Contractor Payments,AFFLECK MECHANICAL SERVICES LTD,SN3 ,19/10/2022,"66,586.26"
44291233,Social Care,"Children, Families and Community Health Services",CP & CIN Social Work - South,3rd Party Payments,Personal Needs,AGILE QUARTER ACCOMMODATION LTD,EC1V,03/10/2022,"2,000.00"
47264370,Learning Disabilities,Adults,Learning Disability 65 and over,3rd Party Payments,Supported Lodgings,AGINCARE ENABLE LTD,DT5 ,14/10/2022,"2,462.60"
47264370,Learning Disabilities,Adults,Learning Disability 65 and over,3rd Party Payments,Supported Lodgings,AGINCARE ENABLE LTD,DT5 ,14/10/2022,"5,835.00"
47264370,Learning Disabilities,Adults,Learning Disability 65 and over,Income,Client Contribution - Supported Living,AGINCARE ENABLE LTD,DT5 ,14/10/2022,-476.60
46179233,Streetsmart,Streetsmart,Tree Maintenance,Supplies and Services,Equipment,AGROVISTA UK LTD,NG7 ,12/10/2022,8.95
46179233,Streetsmart,Streetsmart,Tree Maintenance,Supplies and Services,Equipment,AGROVISTA UK LTD,NG7 ,12/10/2022,609.50
45991233,School Transport,"Education, Inclusion and Skills",Mainstream School Transport,Transport Costs,Home to School Transport,AKCESS LTD,SN2 ,12/10/2022,"2,165.63"
45333233,Travel,Highways & Transport,Public Transport,3rd Party Payments,Contract Payments,AKCESS LTD,SN2 ,07/10/2022,"14,973.69"
45993233,Physical Support,Adults,Physical Support 65 and over,Transport Costs,Home to Centre Transport,AKCESS LTD,SN2 ,12/10/2022,"2,698.54"
45993233,Learning Disabilities,Adults,Learning Disability 26 - 64,Transport Costs,Home to Centre Transport,AKCESS LTD,SN2 ,12/10/2022,"18,889.76"
45993233,Physical Support,Adults,Physical Support 65 and over,Transport Costs,Home to Centre Transport,AKCESS LTD,SN2 ,12/10/2022,"5,395.21"
45594233,School Transport,"Education, Inclusion and Skills",Special Educational Needs Transport,Transport Costs,Home to School Transport,AKCESS LTD,SN2 ,10/10/2022,"64,598.21"
45993233,Physical Support,Adults,Physical Support 65 and over,Transport Costs,Home to Centre Transport,AKCESS LTD,SN2 ,12/10/2022,"5,395.21"
45995233,School Transport,"Education, Inclusion and Skills",Special Educational Needs Transport,Employees,Temporary / Agency - by Accounts Payable,AKCESS LTD,SN2 ,12/10/2022,"15,876.00"
45990233,School Transport,"Education, Inclusion and Skills",Mainstream School Transport,Transport Costs,Home to School Transport,AKCESS LTD,SN2 ,12/10/2022,"1,789.97"
45994233,School Transport,"Education, Inclusion and Skills",Special Educational Needs Transport,Transport Costs,Home to School Transport,AKCESS LTD,SN2 ,12/10/2022,"31,049.55"
45993233,Learning Disabilities,Adults,Learning Disability 26 - 64,Transport Costs,Home to Centre Transport,AKCESS LTD,SN2 ,12/10/2022,"5,395.21"
45990233,School Transport,"Education, Inclusion and Skills",Special Educational Needs Transport,Transport Costs,Home to School Transport,AKCESS LTD,SN2 ,12/10/2022,"94,071.18"
46236233,Senior Management Team,"Children, Families and Community Health Services",Family Safeguarding Model,Supplies and Services,Services,ALASDAIR CANT & ASSOCIATES LIMITED,CB2 ,12/10/2022,"5,650.00"
45686234,Social Care,"Children, Families and Community Health Services",Placement Fostering Service,3rd Party Payments,Carers Skills Payments - Core,REDACTED PERSONAL DATA,SN4 ,10/10/2022,116.00
49010233,Social Care,"Children, Families and Community Health Services",Placement Fostering Service,3rd Party Payments,Carers Skills Payments - Core,REDACTED PERSONAL DATA,SN4 ,24/10/2022,116.00
45686234,Social Care,"Children, Families and Community Health Services",Placement Fostering Service,3rd Party Payments,Foster Care Basic Payments,REDACTED PERSONAL DATA,SN4 ,10/10/2022,520.20
49010233,Social Care,"Children, Families and Community Health Services",Placement Fostering Service,3rd Party Payments,Foster Care Basic Payments,REDACTED PERSONAL DATA,SN4 ,24/10/2022,520.20
48154233,Learning Disabilities,Adults,Learning Disability 26 - 64,3rd Party Payments,Supported Accommodation Scheme,REDACTED PERSONAL DATA,SN2 ,19/10/2022,"2,444.96"
50227247,Learning Disabilities,Adults,Learning Disability 26 - 64,Transfer Payments,Personal Budget - Direct Payments - Domiciliary Care,REDACTED PERSONAL DATA,SN25,31/10/2022,973.45
48244233,Learning Disabilities,Adults,Learning Disability 26 - 64,3rd Party Payments,Supported Accommodation Scheme,REDACTED PERSONAL DATA,SN1 ,19/10/2022,"2,444.96"
48245233,Learning Disabilities,Adults,Learning Disability 26 - 64,3rd Party Payments,Supported Accommodation Scheme,REDACTED PERSONAL DATA,SN2 ,19/10/2022,"1,707.36"
48245233,Learning Disabilities,Adults,Learning Disability 26 - 64,3rd Party Payments,Supported Accommodation Scheme,REDACTED PERSONAL DATA,SN2 ,19/10/2022,"1,985.40"
48245233,Learning Disabilities,Adults,Learning Disability 26 - 64,3rd Party Payments,Supported Accommodation Scheme,REDACTED PERSONAL DATA,SN2 ,19/10/2022,"1,671.04"
50159234,Learning Disabilities,Adults,Learning Disability 26 - 64,Transfer Payments,Personal Budget - Direct Payments - Domiciliary Care,REDACTED PERSONAL DATA,SN5 ,31/10/2022,"8,839.97"
45928239,Early Years Block,DSG Skills and Attainment,Free Nursery Education Commissioning - three & four  year olds,3rd Party Payments,Contracts - Child Care,REDACTED PERSONAL DATA,SN1 ,12/10/2022,789.60
50218236,Learning Disabilities,Adults,Learning Disability 26 - 64,Transfer Payments,Personal Budget - Direct Payments - Domiciliary Care,REDACTED PERSONAL DATA,SN5 ,31/10/2022,"3,416.22"
49118233,Environmental & Regulatory,Highways & Transport,Shaw Farm Landfill Site,Supplies and Services,Testing / Inspection,ALLBUILD BUILDING & LANDSCAPING SERVICES,SN25,26/10/2022,"1,680.00"
48432234,Highways & Transport,Highways & Transport,Rights of Way (ROW),Supplies and Services,Repairs & Maintenance,ALLBUILD BUILDING & LANDSCAPING SERVICES,SN25,21/10/2022,"3,410.00"
45342233,Streetsmart,Streetsmart,Waterside Fleet Workshops,Supplies and Services,Materials,ALLIANCE AUTOMOTIVE UK T/A BRAYMARC,BD4 ,07/10/2022,445.50
46088234,Treasury,Corporate Finance,Treasury,Supplies and Services,Bank Charges,ALLPAY-NET LIMITED,HR1 ,12/10/2022,"1,272.43"
47085234,Landlord Services,Supervision & Management,Estate Management Team,Supplies and Services,Contracts,ALLPAY-NET LIMITED,HR1 ,14/10/2022,"1,841.26"
47264369,Mental Health,Adults,Mental Health 65 and over,3rd Party Payments,Nursing Care,ALMONDSBURY CARE LTD,TW18,14/10/2022,"7,709.38"
48777233,Social Care,"Children, Families and Community Health Services",Legal Fees,Supplies and Services,Fees,ALPHABIOLABS,WA5 ,21/10/2022,709.50
47209233,Highways Schemes,Strategic Planning and Highways,Wichelstowe Southern Access,Capital,Contractor Payments,ALUN GRIFFITHS (CONTRACTORS ) LTD,NP7 ,14/10/2022,"10,130.80"
47195233,"Volutary Sector, Equipment and Carers",Adults,Voluntary Sector Adults,3rd Party Payments,Contracts - Social Care,ALZHEIMERS SOCIETY,PL2 ,14/10/2022,"2,433.00"
48843235,Disabled Children,"Children, Families and Community Health Services",Aiming High for Disabled Children,3rd Party Payments,Cash Support,REDACTED PERSONAL DATA,SN4 ,24/10/2022,579.60
48843234,Disabled Children,"Children, Families and Community Health Services",DCT Daytime Short Breaks,Transfer Payments,Personal Budget - Direct Payments - Other,REDACTED PERSONAL DATA,SN4 ,24/10/2022,"1,288.60"
Corporate Card,Social Care,"Children, Families and Community Health Services",Practise Development,Supplies and Services,Materials,Amazon.Co.Uk*239ei8au5,,24/10/2022,861.90
49256240,Social Care,"Children, Families and Community Health Services",External Placements,3rd Party Payments,Parent & Child Placements,AMBER FAMILY LTD,PR8 ,26/10/2022,"17,784.00"
48077233,Social Care,"Children, Families and Community Health Services",External Placements,3rd Party Payments,Residential Care,AMEGREEN CHILDREN'S SERVICES LTD,RG7 ,19/10/2022,"17,437.50"
45104233,Responsive Repairs,Repairs,Responsive Repairs,Premises Costs,Repairs - Buildings,AMELIO UTILITIES(GLOU) LTD T/A 3 COUNTIES DRAIN SERVICES,GL1 ,07/10/2022,254.70
45104233,Responsive Repairs,Repairs,Responsive Repairs,Premises Costs,Repairs - Buildings,AMELIO UTILITIES(GLOU) LTD T/A 3 COUNTIES DRAIN SERVICES,GL1 ,07/10/2022,127.34
45104233,Responsive Repairs,Repairs,Responsive Repairs,Premises Costs,Repairs - Buildings,AMELIO UTILITIES(GLOU) LTD T/A 3 COUNTIES DRAIN SERVICES,GL1 ,07/10/2022,943.30
45104233,Responsive Repairs,Repairs,Responsive Repairs,Premises Costs,Repairs - Buildings,AMELIO UTILITIES(GLOU) LTD T/A 3 COUNTIES DRAIN SERVICES,GL1 ,07/10/2022,915.58
45104233,Responsive Repairs,Repairs,Responsive Repairs,Premises Costs,Repairs - Buildings,AMELIO UTILITIES(GLOU) LTD T/A 3 COUNTIES DRAIN SERVICES,GL1 ,07/10/2022,"3,015.30"
45104233,Responsive Repairs,Repairs,Responsive Repairs,Premises Costs,Repairs - Buildings,AMELIO UTILITIES(GLOU) LTD T/A 3 COUNTIES DRAIN SERVICES,GL1 ,07/10/2022,"2,672.52"
45104233,Responsive Repairs,Repairs,Responsive Repairs,Premises Costs,Repairs - Buildings,AMELIO UTILITIES(GLOU) LTD T/A 3 COUNTIES DRAIN SERVICES,GL1 ,07/10/2022,"1,597.52"
45104233,Responsive Repairs,Repairs,Responsive Repairs,Premises Costs,Repairs - Buildings,AMELIO UTILITIES(GLOU) LTD T/A 3 COUNTIES DRAIN SERVICES,GL1 ,07/10/2022,159.94
50047233,Highways & Transport,Highways & Transport,Project Delivery,Supplies and Services,Services,AMEY OW LTD,L19 ,31/10/2022,"44,816.59"
46787234,Highways & Transport,Highways & Transport,Project Delivery,Supplies and Services,Services,AMEY OW LTD,L19 ,14/10/2022,"56,606.37"
47372233,Property Estates,Property,Estates - Corporate Property General,Premises Costs,Rents,AMEY TPT,EC4A,17/10/2022,"2,785.00"
45647233,Highways Inspections & Maintenance,Highway Operations and Car Parking,Streetlighting,Supplies and Services,Materials,AMR TRAFFIC MANAGEMENT LTD,OX13,10/10/2022,465.00
50172237,Mental Health,Adults,Mental Health 18-64,Transfer Payments,Personal Budget - Direct Payments - Domiciliary Care,REDACTED PERSONAL DATA,SN25,31/10/2022,555.51
45694235,Disabled Children,"Children, Families and Community Health Services",DCT Daytime Short Breaks,Transfer Payments,Personal Budget - Direct Payments - Other,REDACTED PERSONAL DATA,SN3 ,10/10/2022,"1,258.20"
45930235,Early Years Block,DSG Skills and Attainment,Free Nursery Education Commissioning - three & four  year olds,3rd Party Payments,Contracts - Child Care,REDACTED PERSONAL DATA,SN25,12/10/2022,625.10
47193233,Planning & Regulatory,Strategic Planning,Landscape & Countryside Works,Supplies and Services,Discretionary Costs,ANDREW CUNNINGHAM ARBORICULTURAL CONSULTANT LIMITED (ACAC),GL5 ,14/10/2022,"3,325.00"
48376234,Homelessness and Travellers,Housing Services,Leased Private Managed Accommodation,Transfer Payments,Payment of Costs,REDACTED PERSONAL DATA,SN26,24/10/2022,675.00
47603248,High Needs Block,DSG Skills and Attainment,SEN Resourcing Assessment Panel,3rd Party Payments,Top up funding - Maintained providers Pre 16,REDACTED PERSONAL DATA,SN25,19/10/2022,630.00
48396324,Homelessness and Travellers,Housing Services,Leased Private Managed Accommodation,Transfer Payments,Payment of Costs,ANGELVIEW PROPERTIES LTD,ALBO,24/10/2022,548.45
48396325,Homelessness and Travellers,Housing Services,Leased Private Managed Accommodation,Transfer Payments,Payment of Costs,ANGELVIEW PROPERTIES LTD,ALBO,24/10/2022,548.51
50139236,Physical Support,Adults,Physical Support 65 and over,3rd Party Payments,Carers,REDACTED PERSONAL DATA,SP11,31/10/2022,505.06
50139237,Physical Support,Adults,Physical Support 65 and over,3rd Party Payments,Carers,REDACTED PERSONAL DATA,SP11,31/10/2022,538.27
45169233,Early Years Block,DSG Skills and Attainment,Free Nursery Education Commissioning - three & four  year olds,Supplies and Services,Conferences,REDACTED PERSONAL DATA,TR16,07/10/2022,"1,110.89"
45166233,Early Help,Early Intervention and Community Health�,"Holiday, Activities & Food Grant",3rd Party Payments,Contracts - Child Care,REDACTED PERSONAL DATA,TR16,07/10/2022,"3,000.00"
50226251,Physical Support,Adults,Physical Support 18 - 64,Transfer Payments,Personal Budget - Direct Payments - Domiciliary Care,REDACTED PERSONAL DATA,SN25,31/10/2022,"2,397.79"
48335233,HRA Overheads,Supervision & Management,Admin / Management General,Premises Costs,Insurance - Premises,AON UK LIMITED,EC3V,21/10/2022,"3,238.30"
44233234,Supported Employment,Housing Services,Community Meals,Supplies and Services,Food,APETITO LIMITED,BA14,12/10/2022,835.78
44233240,Supported Employment,Housing Services,Community Meals,Supplies and Services,Food,APETITO LIMITED,BA14,12/10/2022,522.75
44233236,Supported Employment,Housing Services,Community Meals,Supplies and Services,Food,APETITO LIMITED,BA14,12/10/2022,"1,183.78"
44233235,Supported Employment,Housing Services,Community Meals,Supplies and Services,Food,APETITO LIMITED,BA14,12/10/2022,782.47
47932233,Supported Employment,Housing Services,Community Meals,Supplies and Services,Food,APETITO LIMITED,BA14,19/10/2022,934.41
49136233,Supported Employment,Housing Services,Community Meals,Supplies and Services,Food,APETITO LIMITED,BA14,26/10/2022,870.07
45115233,Responsive Repairs,Repairs,Responsive Repairs,3rd Party Payments,Contract Payments,APEX SCAFFOLDING SERVICES,SN2 ,07/10/2022,528.00
49011234,Responsive Repairs,Repairs,Responsive Repairs,3rd Party Payments,Contract Payments,APEX SCAFFOLDING SERVICES,SN2 ,24/10/2022,55.00
45117233,Responsive Repairs,Repairs,Responsive Repairs,3rd Party Payments,Contract Payments,APEX SCAFFOLDING SERVICES,SN2 ,07/10/2022,450.00
47603233,Responsive Repairs,Repairs,Responsive Repairs,3rd Party Payments,Contract Payments,APEX SCAFFOLDING SERVICES,SN2 ,19/10/2022,495.00
49011234,Responsive Repairs,Repairs,Responsive Repairs,3rd Party Payments,Contract Payments,APEX SCAFFOLDING SERVICES,SN2 ,24/10/2022,165.00
45119233,Responsive Repairs,Repairs,Responsive Repairs,3rd Party Payments,Contract Payments,APEX SCAFFOLDING SERVICES,SN2 ,07/10/2022,585.00
46235233,,,Balance Sheet,Balance Sheet & Recharge,Resources Recharges,APOGEE CORPORATION LIMITED,EC2A,12/10/2022,"4,049.46"
50034233,,,Balance Sheet,Balance Sheet & Recharge,MFD recharges,APOGEE CORPORATION LIMITED,ME16,31/10/2022,"6,138.42"
47264306,Learning Disabilities,Adults,Learning Disability 26 - 64,Income,Client Contribution - Residential,APPLEFORD LTD T/A DANESWOOD,BS25,14/10/2022,-397.00
47264306,Learning Disabilities,Adults,Learning Disability 26 - 64,3rd Party Payments,Residential Care,APPLEFORD LTD T/A DANESWOOD,BS25,14/10/2022,"20,190.92"
44883233,Adults - Staffing and Supporting People,Adults,Blue Badges,Supplies and Services,Materials,APS GROUP,SK3 ,05/10/2022,"1,483.32"
45206233,Property & Assets,Property & Assets,Whitbourne House Demolition,Capital,Contractor Payments,ARBTECH CONSULTING LTD,CH4 ,07/10/2022,"3,539.00"
47602234,High Needs Block,DSG Skills and Attainment,SEN Resourcing Assessment Panel,3rd Party Payments,Top up funding - Maintained providers Pre 16,REDACTED PERSONAL DATA,SN2 ,19/10/2022,"7,980.00"
47029237,Early Years Block,DSG Skills and Attainment,Free Nursery Education Commissioning - three & four  year olds,3rd Party Payments,Contracts - Child Care,REDACTED PERSONAL DATA,SN2 ,19/10/2022,"7,980.00"
45011236,Social Care,"Children, Families and Community Health Services",External Placements,3rd Party Payments,Residential Care,AREA CAMDEN GROUP,N8 0,05/10/2022,"21,857.10"
Corporate Card,Social Care,"Children, Families and Community Health Services",Placement - Care Leaver Team,Transfer Payments,Grants to Individuals,Argos Ltd,,10/10/2022,790.00
49049233,Town Centre,"Economy, Growth and Place",Kimmerfields enabling works,Capital,Contractor Payments,ARTSITE LIMITED,SN1 ,26/10/2022,"5,357.00"
46254233,Town Centre,"Economy, Growth and Place",Kimmerfields enabling works,Capital,Contractor Payments,ARTSITE LIMITED,SN1 ,12/10/2022,"5,357.00"
49441233,Youth Offending,"Children, Families and Community Health Services",YJS - Effective Practise,Employees,Training,ASDAN LTD,BS5 ,28/10/2022,684.00
48086233,Communications & Engagement,Communications & Engagement,"Policy, Campaigns and Communications",Supplies and Services,Materials,ASF SIGNS LTD,SN4 ,19/10/2022,"1,450.00"
47264307,Mental Health,Adults,Mental Health 18-64,3rd Party Payments,Residential Care,ASH VIEW HOUSE,BS15,14/10/2022,"7,476.36"
47264307,Mental Health,Adults,Mental Health 18-64,Income,Client Contribution - Residential,ASH VIEW HOUSE,BS15,14/10/2022,-394.20
45630233,Traded Services,"Education, Inclusion and Skills",Plas Pencelli Outdoor Education Centre,Supplies and Services,Materials,ASHBURNHAM BAKERY,LD3 ,10/10/2022,575.78
47264235,Physical Support,Adults,Physical Support 18 - 64,Income,Client Contribution - Residential,ASHBURY LODGE,SN3 ,14/10/2022,-350.20
47264235,Care Management & Safeguarding,Adults,Community Response Hub,3rd Party Payments,Residential Care,ASHBURY LODGE,SN3 ,14/10/2022,"2,560.12"
47264235,Physical Support,Adults,Physical Support 65 and over,Income,Client Contribution - Residential,ASHBURY LODGE,SN3 ,14/10/2022,-336.32
47264235,Physical Support,Adults,Physical Support 65 and over,3rd Party Payments,Residential Care,ASHBURY LODGE,SN3 ,14/10/2022,"1,371.49"
47264235,Physical Support,Adults,Physical Support 65 and over,3rd Party Payments,Residential Care,ASHBURY LODGE,SN3 ,14/10/2022,"-8,006.16"
47264235,Physical Support,Adults,Physical Support 65 and over,Income,Client Contribution - Residential,ASHBURY LODGE,SN3 ,14/10/2022,-608.80
47264235,Physical Support,Adults,Physical Support 65 and over,3rd Party Payments,Residential Care,ASHBURY LODGE,SN3 ,14/10/2022,"-2,560.12"
47264235,Physical Support,Adults,Physical Support 65 and over,Income,Client Contribution - Residential,ASHBURY LODGE,SN3 ,14/10/2022,627.80
47264235,Physical Support,Adults,Physical Support 65 and over,Income,Client Contribution - Residential,ASHBURY LODGE,SN3 ,14/10/2022,"-1,032.64"
47264235,Physical Support,Adults,Physical Support 65 and over,Income,Client Contribution - Residential,ASHBURY LODGE,SN3 ,14/10/2022,-610.00
47264235,Physical Support,Adults,Physical Support 65 and over,Income,Client Contribution - Residential,ASHBURY LODGE,SN3 ,14/10/2022,42.53
47264235,Physical Support,Adults,Physical Support 65 and over,Income,Client Contribution - Residential,ASHBURY LODGE,SN3 ,14/10/2022,"1,786.20"
47264235,Physical Support,Adults,Physical Support 18 - 64,3rd Party Payments,Residential Care,ASHBURY LODGE,SN3 ,14/10/2022,"2,668.72"
47264235,Physical Support,Adults,Physical Support 65 and over,3rd Party Payments,Residential Care,ASHBURY LODGE,SN3 ,14/10/2022,"3,864.00"
47264235,Physical Support,Adults,Physical Support 65 and over,3rd Party Payments,Residential Care,ASHBURY LODGE,SN3 ,14/10/2022,"2,668.72"
47264235,Physical Support,Adults,Physical Support 65 and over,3rd Party Payments,Residential Care,ASHBURY LODGE,SN3 ,14/10/2022,"-3,916.64"
47264235,Mental Health,Adults,Mental Health 65 and over,Income,Client Contribution - Residential,ASHBURY LODGE,SN3 ,14/10/2022,-805.32
47264235,Physical Support,Adults,Physical Support 65 and over,Income,Client Contribution - Residential,ASHBURY LODGE,SN3 ,14/10/2022,-587.40
47264235,Physical Support,Adults,Physical Support 65 and over,Income,Client Contribution - Residential,ASHBURY LODGE,SN3 ,14/10/2022,-730.76
47264235,Physical Support,Adults,Physical Support 65 and over,Income,Client Contribution - Residential,ASHBURY LODGE,SN3 ,14/10/2022,-875.20
47264235,Mental Health,Adults,Mental Health 65 and over,3rd Party Payments,Residential Care,ASHBURY LODGE,SN3 ,14/10/2022,"2,668.72"
47264235,Physical Support,Adults,Physical Support 65 and over,Income,Client Contribution - Residential,ASHBURY LODGE,SN3 ,14/10/2022,-657.68
47264235,Physical Support,Adults,Physical Support 65 and over,3rd Party Payments,Residential Care,ASHBURY LODGE,SN3 ,14/10/2022,"2,560.12"
47264235,Physical Support,Adults,Physical Support 65 and over,Income,Client Contribution - Residential,ASHBURY LODGE,SN3 ,14/10/2022,-627.80
47264235,Care Management & Safeguarding,Adults,Community Response Hub,3rd Party Payments,Residential Care,ASHBURY LODGE,SN3 ,14/10/2022,"3,600.00"
47264235,Mental Health,Adults,Mental Health 65 and over,3rd Party Payments,Residential Care,ASHBURY LODGE,SN3 ,14/10/2022,"2,560.12"
47264234,Physical Support,Adults,Physical Support 65 and over,3rd Party Payments,Nursing Care,ASHGROVE HOUSE NURSING HOME,SN5 ,14/10/2022,"-10,001.66"
47264234,Physical Support,Adults,Physical Support 65 and over,Income,Client Contribution - Nursing,ASHGROVE HOUSE NURSING HOME,SN5 ,14/10/2022,-627.80
47264234,Physical Support,Adults,Physical Support 65 and over,Income,Client Contribution - Nursing,ASHGROVE HOUSE NURSING HOME,SN5 ,14/10/2022,"7,983.58"
47264234,Physical Support,Adults,Physical Support 65 and over,3rd Party Payments,Nursing Care,ASHGROVE HOUSE NURSING HOME,SN5 ,14/10/2022,"-4,131.77"
47264234,Physical Support,Adults,Physical Support 65 and over,3rd Party Payments,Nursing Care,ASHGROVE HOUSE NURSING HOME,SN5 ,14/10/2022,"6,080.00"
47264234,Physical Support,Adults,Physical Support 65 and over,3rd Party Payments,Nursing Care,ASHGROVE HOUSE NURSING HOME,SN5 ,14/10/2022,"5,403.09"
50228236,Physical Support,Adults,Physical Support 18 - 64,Transfer Payments,Personal Budget - Direct Payments - Domiciliary Care,REDACTED PERSONAL DATA,SN25,31/10/2022,"1,510.97"
49598233,Libraries,"Education, Inclusion and Skills",Library Delivery,Supplies and Services,Materials,ASKEWS AND HOLTS LIBRARY SERVICES LIMITED,PR1 ,28/10/2022,"1,456.11"
45601233,Libraries,"Education, Inclusion and Skills",Library Delivery,Supplies and Services,Materials,ASKEWS AND HOLTS LIBRARY SERVICES LIMITED,PR1 ,10/10/2022,595.27
48351233,Libraries,"Education, Inclusion and Skills",Library Delivery,Supplies and Services,Materials,ASKEWS AND HOLTS LIBRARY SERVICES LIMITED,PR1 ,21/10/2022,"1,546.87"
45600233,Libraries,"Education, Inclusion and Skills",Library Delivery,Supplies and Services,Materials,ASKEWS AND HOLTS LIBRARY SERVICES LIMITED,PR1 ,10/10/2022,"1,904.28"
48456233,Libraries,"Education, Inclusion and Skills",Library Delivery,Supplies and Services,Materials,ASKEWS AND HOLTS LIBRARY SERVICES LIMITED,PR1 ,21/10/2022,"1,707.50"
46033233,Libraries,"Education, Inclusion and Skills",Library Delivery,Supplies and Services,Materials,ASKEWS AND HOLTS LIBRARY SERVICES LIMITED,PR1 ,12/10/2022,696.15
47264279,Learning Disabilities,Adults,Learning Disability 26 - 64,3rd Party Payments,Residential Care,ASPECTS & MILESTONES TRUST,BS16,14/10/2022,"6,426.36"
47264279,Learning Disabilities,Adults,Learning Disability 26 - 64,Income,Client Contribution - Residential,ASPECTS & MILESTONES TRUST,BS16,14/10/2022,-425.60
47264316,Learning Disabilities,Adults,Learning Disability 26 - 64,3rd Party Payments,Residential Care,ASPECTS 2 LTD,B70 ,14/10/2022,"8,284.52"
47264316,Physical Support,Adults,Physical Support 18 - 64,3rd Party Payments,Supported Lodgings,ASPECTS 2 LTD,B70 ,14/10/2022,"3,931.20"
47264316,Mental Health,Adults,Mental Health 65 and over,3rd Party Payments,Supported Lodgings,ASPECTS 2 LTD,B70 ,14/10/2022,"3,052.80"
47264316,Learning Disabilities,Adults,Learning Disability 26 - 64,Income,Client Contribution - Residential,ASPECTS 2 LTD,B70 ,14/10/2022,-414.20
47915233,Routes to Employment,"Education, Inclusion and Skills",Skills & Employment,Supplies and Services,Materials,ASSOCIATION OF EMPLOYMENT & LEARNING PROVIDERS,BS32,19/10/2022,825.00
47264337,Learning Disabilities,Adults,Learning Disability 26 - 64,Income,Client Contribution - Residential,ASTON CARE LIMITED,RG30,14/10/2022,-349.00
47264338,Learning Disabilities,Adults,Learning Disability 26 - 64,3rd Party Payments,Residential Care,ASTON CARE LIMITED,RG30,14/10/2022,"9,182.84"
47264337,Learning Disabilities,Adults,Learning Disability 26 - 64,3rd Party Payments,Residential Care,ASTON CARE LIMITED,RG30,14/10/2022,"9,104.80"
47264338,Learning Disabilities,Adults,Learning Disability 26 - 64,Income,Client Contribution - Residential,ASTON CARE LIMITED,RG30,14/10/2022,-262.40
47264337,Learning Disabilities,Adults,Learning Disability 26 - 64,3rd Party Payments,Residential Care,ASTON CARE LIMITED,RG30,14/10/2022,"6,909.40"
47264337,Learning Disabilities,Adults,Learning Disability 26 - 64,Income,Client Contribution - Residential,ASTON CARE LIMITED,RG30,14/10/2022,"-1,033.20"
47264337,Learning Disabilities,Adults,Learning Disability 26 - 64,3rd Party Payments,Residential Care,ASTON CARE LIMITED,RG30,14/10/2022,"6,350.24"
47264337,Learning Disabilities,Adults,Learning Disability 26 - 64,Income,Client Contribution - Residential,ASTON CARE LIMITED,RG30,14/10/2022,-594.36
47264337,Learning Disabilities,Adults,Learning Disability 65 and over,3rd Party Payments,Residential Care,ASTON CARE LIMITED,RG30,14/10/2022,"6,607.12"
47001236,Other Repairs,Repairs,Unallocated job costs from OPEN system,Premises Costs,Maintenance - Buildings,ATLANTIC FIRE LTD,N18 ,14/10/2022,"4,120.56"
46393239,Facilities Management,"People, Culture and Organisational Resilience",Office Accommodation,Premises Costs,Maintenance - Buildings,AUDITEL RENTAL & SERVICE LTD,HP12,12/10/2022,"3,900.00"
50246240,Physical Support,Adults,Physical Support 65 and over,Transfer Payments,Personal Budget - Direct Payments - Domiciliary Care,REDACTED PERSONAL DATA,SP11,31/10/2022,"3,943.39"
47264368,Physical Support,Adults,Physical Support 65 and over,Income,Client Contribution - Nursing,AURA CARE LIVING CIRENCESTER LTD,GL7 ,14/10/2022,-627.80
47264368,Physical Support,Adults,Physical Support 65 and over,Income,Client Contribution - Nursing,AURA CARE LIVING CIRENCESTER LTD,GL7 ,14/10/2022,-396.40
47264368,Physical Support,Adults,Physical Support 65 and over,3rd Party Payments,Nursing Care,AURA CARE LIVING CIRENCESTER LTD,GL7 ,14/10/2022,"4,400.00"
47264368,Physical Support,Adults,Physical Support 65 and over,3rd Party Payments,Nursing Care,AURA CARE LIVING CIRENCESTER LTD,GL7 ,14/10/2022,"-9,107.14"
47264368,Physical Support,Adults,Physical Support 65 and over,3rd Party Payments,Nursing Care,AURA CARE LIVING CIRENCESTER LTD,GL7 ,14/10/2022,"-22,000.00"
47264368,Physical Support,Adults,Physical Support 65 and over,Income,Client Contribution - Nursing,AURA CARE LIVING CIRENCESTER LTD,GL7 ,14/10/2022,"3,139.00"
47264368,Mental Health,Adults,Mental Health 65 and over,3rd Party Payments,Residential Care,AURA CARE LIVING CIRENCESTER LTD,GL7 ,14/10/2022,"5,600.00"
47264368,Physical Support,Adults,Physical Support 65 and over,3rd Party Payments,Nursing Care,AURA CARE LIVING CIRENCESTER LTD,GL7 ,14/10/2022,"21,528.57"
47264368,Care Management & Safeguarding,Adults,Community Response Hub,3rd Party Payments,Residential Care,AURA CARE LIVING CIRENCESTER LTD,GL7 ,14/10/2022,"4,400.00"
47264368,Mental Health,Adults,Mental Health 18-64,3rd Party Payments,Residential Care,AURA CARE LIVING CIRENCESTER LTD,GL7 ,14/10/2022,"6,720.00"
47264368,Mental Health,Adults,Mental Health 18-64,3rd Party Payments,Residential Care,AURA CARE LIVING CIRENCESTER LTD,GL7 ,14/10/2022,"4,600.00"
44698233,High Needs Block,DSG Skills and Attainment,Out of Borough School Fees,3rd Party Payments,Independent Special school- Post 16,AURORA FOXES ACADEMY,GL2 ,05/10/2022,"21,760.00"
47264349,Learning Disabilities,Adults,Learning Disability 65 and over,3rd Party Payments,Residential Care,AUTONOMY LIFE LIMITED,SN12,14/10/2022,"9,312.84"
47264349,Learning Disabilities,Adults,Learning Disability 65 and over,Income,Client Contribution - Residential,AUTONOMY LIFE LIMITED,SN12,14/10/2022,-528.80
49900233,Social Care,"Children, Families and Community Health Services",Unaccompanied Asylum Seeking Children (UASC),3rd Party Payments,Semi Independent,AVISANT CONSULTING LTD,EC1V,28/10/2022,"1,607.14"
48740233,Museums & Heritage,Culture & Heritage,Steam:Operations,Supplies and Services,Repairs & Maintenance,AVIUM,SN25,21/10/2022,498.00
47264249,Learning Disabilities,Adults,Learning Disability 26 - 64,Income,Client Contribution - Residential,AVON AUTISTIC FOUNDATION LTD,BS11,14/10/2022,-414.20
47264249,Learning Disabilities,Adults,Learning Disability 26 - 64,3rd Party Payments,Residential Care,AVON AUTISTIC FOUNDATION LTD,BS11,14/10/2022,"7,100.28"
47264248,Learning Disabilities,Adults,Learning Disability 26 - 64,Income,Client Contribution - Residential,AVON AUTISTIC FOUNDATION LTD,BS11,14/10/2022,-414.20
47264248,Learning Disabilities,Adults,Learning Disability 26 - 64,3rd Party Payments,Residential Care,AVON AUTISTIC FOUNDATION LTD,BS11,14/10/2022,"5,075.96"
48396261,Homelessness and Travellers,Housing Services,Leased Private Managed Accommodation,Transfer Payments,Payment of Costs,AVONPARK PROPERTIES LTD,SN3 ,24/10/2022,650.00
48396260,Homelessness and Travellers,Housing Services,Leased Private Managed Accommodation,Transfer Payments,Payment of Costs,AVONPARK PROPERTIES LTD,SN3 ,24/10/2022,615.00
48396365,Homelessness and Travellers,Housing Services,Leased Private Managed Accommodation,Transfer Payments,Payment of Costs,AVONPARK PROPERTIES LTD,SN3 ,24/10/2022,550.00
47764233,Human Resources and Organisational Development,"People, Culture and Organisational Resilience",Organisational Development,Employees,Training,AWARENESS TRAINING LTD,GL54,19/10/2022,500.00
49756234,Human Resources and Organisational Development,"People, Culture and Organisational Resilience",Organisational Development,Employees,Training,AWARENESS TRAINING LTD,GL54,28/10/2022,750.00
49683233,Social Care,"Children, Families and Community Health Services",CP & CIN Social Work - North,Supplies and Services,Equipment,BACK CARE SOLUTIONS LTD,PR5 ,28/10/2022,"1,966.44"
47065233,Disabled Children,"Children, Families and Community Health Services",Disabled Children Team,Supplies and Services,Materials,BACK CARE SOLUTIONS LTD,PR5 ,14/10/2022,698.95
48618233,Social Care,"Children, Families and Community Health Services",CP & CIN Social Work - North,Supplies and Services,Equipment,BACK CARE SOLUTIONS LTD,PR5 ,21/10/2022,"1,966.44"
48845233,Streetsmart,Streetsmart,Lydiard House - Maintenance,Capital,Contractor Payments,BAILEY PARTNERSHIP (CONSULTANTS) LLP,PL1 ,24/10/2022,"4,594.00"
45112233,Town Centre,"Economy, Growth and Place","No 7, 9 & 11 Carriage works @ Railway Village",Capital,Consultants,BAILEY PARTNERSHIP (CONSULTANTS) LLP,PL1 ,07/10/2022,"1,500.00"
48785233,Streetsmart,Streetsmart,Lydiard House - Maintenance,Capital,Contractor Payments,BAILEY PARTNERSHIP (CONSULTANTS) LLP,PL1 ,21/10/2022,"7,535.00"
49854233,Planning & Regulatory,Strategic Planning,Planning Development,Income,Fee Income,BAILEY PARTNERSHIP (CONSULTANTS) LLP,PL1 ,28/10/2022,702.00
48784233,Streetsmart,Streetsmart,Lydiard House - Maintenance,Capital,Contractor Payments,BAILEY PARTNERSHIP (CONSULTANTS) LLP,PL1 ,21/10/2022,"1,236.00"
47272233,Streetsmart,Streetsmart,Waste - Disposal,Supplies and Services,Materials,BALER OPTIONS LTD,DE55,14/10/2022,"9,440.00"
44875233,Senior Management Team,"Children, Families and Community Health Services",Senior Management Team - Non Staffing,Employees,Temporary / Agency - by Accounts Payable,REDACTED PERSONAL DATA,BS1 ,05/10/2022,"2,500.00"
46281233,Senior Management Team,"Children, Families and Community Health Services",Senior Management Team - Non Staffing,Employees,Temporary / Agency - by Accounts Payable,REDACTED PERSONAL DATA,BS1 ,12/10/2022,"3,125.00"
49069233,Senior Management Team,"Children, Families and Community Health Services",Senior Management Team - Non Staffing,Employees,Temporary / Agency - by Accounts Payable,REDACTED PERSONAL DATA,BS1 ,26/10/2022,"3,125.00"
47264344,Memory & Cognition,Adults,Support for Memory and Cognition 65 and over,3rd Party Payments,Nursing Care,BARCHESTER HEALTHCARE HOMES,GL7 ,14/10/2022,"6,271.84"
48586233,Highways Schemes,Strategic Planning and Highways,Highways Challenge Fund 2020-21,Capital,Contractor Payments,BCM CONSTRUCTION LIMITED,SE1 ,21/10/2022,"15,257.55"
44313234,Supported Housing,Special Services,Supported Housing Management,Supplies and Services,Equipment,BED FACTORY SWINDON T/A TBF (UK) LTD,SN3 ,03/10/2022,"1,349.25"
44313235,Supported Housing,Special Services,Supported Housing Management,Supplies and Services,Equipment,BED FACTORY SWINDON T/A TBF (UK) LTD,SN3 ,03/10/2022,"1,419.60"
47795233,DSG Other Funding,DSG Skills and Attainment,DFE Additional Grants,3rd Party Payments,Payment of Pupil Premium to school,BEECHCROFT INFANT SCHOOL,SN2 ,19/10/2022,"8,129.00"
47752233,Schools - Primary,DSG Skills and Attainment,Primary School Budgets,3rd Party Payments,Mainstream Delegated Funding,BEECHCROFT INFANT SCHOOL,SN2 ,19/10/2022,"97,492.00"
50098238,DSG Other Funding,DSG Skills and Attainment,DFE Additional Grants,Supplies and Services,Payments to Educational Bodies,BEECHCROFT INFANT SCHOOL,SN2 ,31/10/2022,"2,268.00"
47861244,DSG Other Funding,DSG Skills and Attainment,DFE Additional Grants,Supplies and Services,Payments to Educational Bodies,BEECHCROFT INFANT SCHOOL,SN2 ,19/10/2022,"2,392.50"
47629233,High Needs Block,DSG Skills and Attainment,SEN Resourcing Assessment Panel,3rd Party Payments,Top up funding - Maintained providers Pre 16,BEECHCROFT INFANT SCHOOL,SN2 ,19/10/2022,"3,302.50"
47264304,Learning Disabilities,Adults,Learning Disability 26 - 64,3rd Party Payments,Residential Care,BEECHWOOD COURT LTD,CF10,14/10/2022,"26,739.16"
47264304,Learning Disabilities,Adults,Learning Disability 26 - 64,3rd Party Payments,Residential Care,BEECHWOOD COURT LTD,CF10,14/10/2022,"18,598.72"
47264304,Learning Disabilities,Adults,Learning Disability 26 - 64,Income,Client Contribution - Residential,BEECHWOOD COURT LTD,CF10,14/10/2022,-322.56
45050233,Social Care,"Children, Families and Community Health Services",External Placements,3rd Party Payments,Residential Care,BENJAMIN UK LIMITED,HP23,07/10/2022,"17,121.30"
44330260,Social Care,"Children, Families and Community Health Services",External Placements,3rd Party Payments,Residential Care,BENJAMIN UK LIMITED,HP23,05/10/2022,"21,190.36"
45051233,Social Care,"Children, Families and Community Health Services",External Placements,3rd Party Payments,Residential Care,BENJAMIN UK LIMITED,HP23,07/10/2022,"17,692.01"
45048233,Social Care,"Children, Families and Community Health Services",External Placements,3rd Party Payments,Residential Care,BENJAMIN UK LIMITED,HP23,07/10/2022,"16,806.34"
44330262,Social Care,"Children, Families and Community Health Services",External Placements,3rd Party Payments,Residential Care,BENJAMIN UK LIMITED,HP23,05/10/2022,"17,692.01"
44330259,Social Care,"Children, Families and Community Health Services",External Placements,3rd Party Payments,Residential Care,BENJAMIN UK LIMITED,HP23,05/10/2022,"21,190.36"
45012234,Social Care,"Children, Families and Community Health Services",External Placements,3rd Party Payments,Residential Care,BENJAMIN UK LIMITED,HP23,05/10/2022,"19,478.40"
45049233,Social Care,"Children, Families and Community Health Services",External Placements,3rd Party Payments,Residential Care,BENJAMIN UK LIMITED,HP23,07/10/2022,"17,692.01"
44330261,Social Care,"Children, Families and Community Health Services",External Placements,3rd Party Payments,Residential Care,BENJAMIN UK LIMITED,HP23,05/10/2022,"17,121.30"
46415233,Social Care,"Children, Families and Community Health Services",External Placements,3rd Party Payments,Residential Care,BENJAMIN UK LIMITED,HP23,12/10/2022,"8,035.65"
45047233,Social Care,"Children, Families and Community Health Services",External Placements,3rd Party Payments,Residential Care,BENJAMIN UK LIMITED,HP23,07/10/2022,"16,264.20"
44330258,Social Care,"Children, Families and Community Health Services",External Placements,3rd Party Payments,Residential Care,BENJAMIN UK LIMITED,HP23,05/10/2022,"20,506.80"
44330257,Social Care,"Children, Families and Community Health Services",External Placements,3rd Party Payments,Residential Care,BENJAMIN UK LIMITED,HP23,05/10/2022,"13,671.20"
48574233,Social Care,"Children, Families and Community Health Services",CP & CIN Social Work - South,3rd Party Payments,Personal Needs,BERKSHIRE WOMEN'S AID (BWA),RG1 ,21/10/2022,"1,099.70"
48570233,Social Care,"Children, Families and Community Health Services",CP & CIN Social Work - North,3rd Party Payments,Cash Support,BERKSHIRE WOMEN'S AID (BWA),RG1 ,21/10/2022,879.76
48467233,Social Care,"Children, Families and Community Health Services",CP & CIN Social Work - South,3rd Party Payments,Personal Needs,BERKSHIRE WOMEN'S AID (BWA),RG1 ,21/10/2022,659.82
46705233,Social Care,"Children, Families and Community Health Services",CP & CIN Social Work - South,3rd Party Payments,Personal Needs,BERKSHIRE WOMEN'S AID (BWA),RG1 ,14/10/2022,766.08
45177233,Town Centre,"Economy, Growth and Place",Fleming Way Improvement Scheme,Capital,Contractor Payments,BERNARD GEOMATICS LTD,SN2 ,07/10/2022,"6,516.00"
44894233,Highways Schemes,Strategic Planning and Highways,Key Routes East,Capital,Professional Fees,BERNARD GEOMATICS LTD,SN2 ,05/10/2022,805.00
48333233,Care Management & Safeguarding,Adults,Local Safeguarding Board,Supplies and Services,Fees,BEVAN BRITTAN,BS2 ,21/10/2022,850.00
45272233,Libraries,"Education, Inclusion and Skills",Central,Premises Costs,Waste,BIFFA WASTE SERVICES LTD,HP12,07/10/2022,438.75
47861235,DSG Other Funding,DSG Skills and Attainment,DFE Additional Grants,Supplies and Services,Payments to Educational Bodies,BISHOPSTONE C E PRIMARY SCHOOL,SN6 ,19/10/2022,500.00
47748234,Schools - Primary,DSG Skills and Attainment,Primary School Budgets,3rd Party Payments,Mainstream Delegated Funding,BISHOPSTONE C E PRIMARY SCHOOL,SN6 ,19/10/2022,"26,319.00"
47786233,DSG Other Funding,DSG Skills and Attainment,DFE Additional Grants,3rd Party Payments,Payment of Pupil Premium to school,BISHOPSTONE C E PRIMARY SCHOOL,SN6 ,19/10/2022,915.00
45369233,Property Estates,Property,Garages & Shops (ex HRA),Premises Costs,Maintenance - Grounds,BISHOPSTONE PARISH COUNCIL,SN1 ,07/10/2022,974.31
47770233,High Needs Block,DSG Skills and Attainment,Out of Borough School Fees,3rd Party Payments,OLA Special schools- Pre 16,BISHOPSWOOD SCHOOL,RG4 ,19/10/2022,"10,513.08"
47770233,High Needs Block,DSG Skills and Attainment,Out of Borough School Fees,3rd Party Payments,OLA Special schools- Pre 16,BISHOPSWOOD SCHOOL,RG4 ,19/10/2022,"10,513.08"
45310233,Streetsmart,Streetsmart,Waterside Fleet Hires,Transport Costs,Vehicle Hire / Contract,BLAKEDALE LTD,PR7 ,07/10/2022,735.00
46453233,Streetsmart,Streetsmart,Waterside Fleet Hires,Transport Costs,Vehicle Hire / Contract,BLAKEDALE LTD,PR7 ,12/10/2022,770.00
49668233,Heritage,Culture & Heritage & Art,Theatre Concept Design,Capital,Professional Fees,BLUE HORIZON VENTURES LIMITED,KT8 ,28/10/2022,"1,775.00"
45043254,Social Care,"Children, Families and Community Health Services",External Placements,3rd Party Payments,Independent Fostering Agency Placements,BLUE SKY,HA1 ,07/10/2022,"6,300.00"
45043253,Social Care,"Children, Families and Community Health Services",External Placements,3rd Party Payments,Independent Fostering Agency Placements,BLUE SKY,HA1 ,07/10/2022,"5,742.60"
45043252,Social Care,"Children, Families and Community Health Services",External Placements,3rd Party Payments,Independent Fostering Agency Placements,BLUE SKY,HA1 ,07/10/2022,"3,318.90"
47451233,Learning Disabilities,Adults,Learning Disability 26 - 64,3rd Party Payments,Personal Budget - Domiciliary care,BLUEBIRD CARE (SWINDON),SN25,17/10/2022,-607.20
47454237,Physical Support,Adults,Physical Support 65 and over,3rd Party Payments,Personal Budget - Domiciliary care,BLUEBIRD CARE (SWINDON),SN25,17/10/2022,"-1,558.48"
47466233,Physical Support,Adults,Physical Support 18 - 64,3rd Party Payments,Personal Budget - Domiciliary care,BLUEBIRD CARE (SWINDON),SN25,17/10/2022,789.36
47458234,Physical Support,Adults,Physical Support 18 - 64,3rd Party Payments,Personal Budget - Domiciliary care,BLUEBIRD CARE (SWINDON),SN25,17/10/2022,607.20
47454236,Physical Support,Adults,Physical Support 18 - 64,3rd Party Payments,Personal Budget - Domiciliary care,BLUEBIRD CARE (SWINDON),SN25,17/10/2022,-688.16
47455233,Learning Disabilities,Adults,Learning Disability 26 - 64,3rd Party Payments,Personal Budget - Domiciliary care,BLUEBIRD CARE (SWINDON),SN25,17/10/2022,546.48
47469233,Learning Disabilities,Adults,Learning Disability 26 - 64,3rd Party Payments,Personal Budget - Domiciliary care,BLUEBIRD CARE (SWINDON),SN25,17/10/2022,890.56
47454235,Learning Disabilities,Adults,Learning Disability 26 - 64,3rd Party Payments,Personal Budget - Domiciliary care,BLUEBIRD CARE (SWINDON),SN25,17/10/2022,-789.36
47462233,Physical Support,Adults,Physical Support 65 and over,3rd Party Payments,Personal Budget - Domiciliary care,BLUEBIRD CARE (SWINDON),SN25,17/10/2022,"1,012.00"
47458235,Physical Support,Adults,Physical Support 65 and over,3rd Party Payments,Personal Budget - Domiciliary care,BLUEBIRD CARE (SWINDON),SN25,17/10/2022,"1,639.44"
47449233,Learning Disabilities,Adults,Learning Disability 26 - 64,3rd Party Payments,Personal Budget - Domiciliary care,BLUEBIRD CARE (SWINDON),SN25,17/10/2022,"-1,411.71"
47464233,Learning Disabilities,Adults,Learning Disability 26 - 64,3rd Party Payments,Personal Budget - Domiciliary care,BLUEBIRD CARE (SWINDON),SN25,17/10/2022,956.34
47461233,Learning Disabilities,Adults,Learning Disability 26 - 64,3rd Party Payments,Personal Budget - Domiciliary care,BLUEBIRD CARE (SWINDON),SN25,17/10/2022,617.32
47457235,Learning Disabilities,Adults,Learning Disability 26 - 64,3rd Party Payments,Personal Budget - Domiciliary care,BLUEBIRD CARE (SWINDON),SN25,17/10/2022,"1,042.36"
47454241,Learning Disabilities,Adults,Learning Disability 26 - 64,3rd Party Payments,Personal Budget - Domiciliary care,BLUEBIRD CARE (SWINDON),SN25,17/10/2022,607.20
47457233,Physical Support,Adults,Physical Support 65 and over,3rd Party Payments,Personal Budget - Domiciliary care,BLUEBIRD CARE (SWINDON),SN25,17/10/2022,819.72
47453233,Physical Support,Adults,Physical Support 65 and over,3rd Party Payments,Personal Budget - Domiciliary care,BLUEBIRD CARE (SWINDON),SN25,17/10/2022,-910.80
47458233,Learning Disabilities,Adults,Learning Disability 26 - 64,3rd Party Payments,Personal Budget - Domiciliary care,BLUEBIRD CARE (SWINDON),SN25,17/10/2022,688.16
47454240,Learning Disabilities,Adults,Learning Disability 26 - 64,3rd Party Payments,Personal Budget - Domiciliary care,BLUEBIRD CARE (SWINDON),SN25,17/10/2022,"1,280.18"
47454238,Learning Disabilities,Adults,Learning Disability 26 - 64,3rd Party Payments,Personal Budget - Domiciliary care,BLUEBIRD CARE (SWINDON),SN25,17/10/2022,-728.64
47459236,Learning Disabilities,Adults,Learning Disability 26 - 64,3rd Party Payments,Personal Budget - Domiciliary care,BLUEBIRD CARE (SWINDON),SN25,17/10/2022,"1,502.82"
47468233,Physical Support,Adults,Physical Support 65 and over,3rd Party Payments,Carers,BLUEBIRD CARE (SWINDON),SN25,17/10/2022,931.04
47450233,Learning Disabilities,Adults,Learning Disability 26 - 64,3rd Party Payments,Personal Budget - Domiciliary care,BLUEBIRD CARE (SWINDON),SN25,17/10/2022,-647.68
47467233,Physical Support,Adults,Physical Support 65 and over,3rd Party Payments,Personal Budget - Domiciliary care,BLUEBIRD CARE (SWINDON),SN25,17/10/2022,"1,948.10"
47454234,Learning Disabilities,Adults,Learning Disability 26 - 64,3rd Party Payments,Personal Budget - Domiciliary care,BLUEBIRD CARE (SWINDON),SN25,17/10/2022,"-1,153.68"
47459233,Physical Support,Adults,Physical Support 65 and over,3rd Party Payments,Carers,BLUEBIRD CARE (SWINDON),SN25,17/10/2022,647.68
47463233,Learning Disabilities,Adults,Learning Disability 26 - 64,3rd Party Payments,Personal Budget - Domiciliary care,BLUEBIRD CARE (SWINDON),SN25,17/10/2022,"1,325.72"
47460233,Learning Disabilities,Adults,Learning Disability 26 - 64,3rd Party Payments,Personal Budget - Domiciliary care,BLUEBIRD CARE (SWINDON),SN25,17/10/2022,789.36
48497233,Streetsmart,Streetsmart,Waterside Fleet Workshops,Supplies and Services,Equipment,BOC LTD,M28 ,21/10/2022,452.50
Corporate Card,Lydiard Park,Streetsmart,Lydiard : Hotel Operations,Supplies and Services,Materials,Boconline.Co.Uk,,24/10/2022,505.99
47264330,Mental Health,Adults,Mental Health 65 and over,3rd Party Payments,Residential Care,BOLEALLER HOUSE LTD,EX15,14/10/2022,"4,719.32"
45985233,Physical Support,Adults,Fessey House,Supplies and Services,Food,BOOKER LIMITED,CH5 ,12/10/2022,380.33
45985233,Physical Support,Adults,Fessey House,Supplies and Services,Food,BOOKER LIMITED,CH5 ,12/10/2022,100.38
Corporate Card,Homelessness and Travellers,Housing Services,Bed and Breakfast Accommodation,Transfer Payments,Payment of Costs,Booking.Com,,20/10/2022,507.94
Corporate Card,Homelessness and Travellers,Housing Services,Bed and Breakfast Accommodation,Transfer Payments,Payment of Costs,Booking.Com,,18/10/2022,612.93
Corporate Card,Homelessness and Travellers,Housing Services,Bed and Breakfast Accommodation,Transfer Payments,Payment of Costs,Booking.Com,,11/10/2022,566.93
Corporate Card,Social Care,"Children, Families and Community Health Services",CP & CIN Social Work - South,3rd Party Payments,Cash Support,Booking.com,,04/10/2022,761.96
47264274,Physical Support,Adults,Physical Support 65 and over,Income,Client Contribution - Nursing,BOTHWELLS LTD,HA6 ,14/10/2022,-909.16
47264274,Physical Support,Adults,Physical Support 18 - 64,3rd Party Payments,Nursing Care,BOTHWELLS LTD,HA6 ,14/10/2022,"2,384.04"
47264274,Physical Support,Adults,Physical Support 18 - 64,Income,Client Contribution - Nursing,BOTHWELLS LTD,HA6 ,14/10/2022,-414.20
47264274,Physical Support,Adults,Physical Support 18 - 64,Income,Client Contribution - Nursing,BOTHWELLS LTD,HA6 ,14/10/2022,-425.60
47264274,Learning Disabilities,Adults,Learning Disability 26 - 64,3rd Party Payments,Nursing Care,BOTHWELLS LTD,HA6 ,14/10/2022,"4,079.08"
47264274,Physical Support,Adults,Physical Support 65 and over,3rd Party Payments,Nursing Care,BOTHWELLS LTD,HA6 ,14/10/2022,"2,920.32"
47264274,Physical Support,Adults,Physical Support 65 and over,Income,Client Contribution - Nursing,BOTHWELLS LTD,HA6 ,14/10/2022,-608.80
47264274,Physical Support,Adults,Physical Support 65 and over,Income,Client Contribution - Nursing,BOTHWELLS LTD,HA6 ,14/10/2022,-648.28
47264274,Physical Support,Adults,Physical Support 65 and over,3rd Party Payments,Nursing Care,BOTHWELLS LTD,HA6 ,14/10/2022,"2,560.12"
47264274,Physical Support,Adults,Physical Support 65 and over,3rd Party Payments,Nursing Care,BOTHWELLS LTD,HA6 ,14/10/2022,"3,733.20"
47264274,Physical Support,Adults,Physical Support 18 - 64,3rd Party Payments,Nursing Care,BOTHWELLS LTD,HA6 ,14/10/2022,"2,560.12"
47264274,Physical Support,Adults,Physical Support 65 and over,Income,Client Contribution - Nursing,BOTHWELLS LTD,HA6 ,14/10/2022,-781.40
47264274,Physical Support,Adults,Physical Support 65 and over,Income,Client Contribution - Nursing,BOTHWELLS LTD,HA6 ,14/10/2022,-659.80
47334233,Property Estates,Property,Investment Properties,Supplies and Services,Fees,BPE SOLICITORS LLP,GL50,17/10/2022,3.00
47334233,Property Estates,Property,Investment Properties,Supplies and Services,Fees,BPE SOLICITORS LLP,GL50,17/10/2022,"2,500.00"
49716233,Property Estates,Property,Estates - Kendrick Close,Supplies and Services,Fees,BPE SOLICITORS LLP,GL50,28/10/2022,"3,300.00"
49850234,Acquisitions,HRA Capital Financing,HRA Acquisitions Programme,Capital,Acquisitions,BPE SOLICITORS LLP,GL50,28/10/2022,"4,600.00"
49760233,Property Estates,Property,Investment Properties,Supplies and Services,Fees,BPE SOLICITORS LLP,GL50,28/10/2022,"2,500.00"
47603235,High Needs Block,DSG Skills and Attainment,SEN Resourcing Assessment Panel,3rd Party Payments,Top up funding - Maintained providers Pre 16,BRAMBLE HOUSE DAY NURSERY LTD,SN2 ,19/10/2022,840.00
47812233,Early Years Block,DSG Skills and Attainment,Free Nursery Education Commissioning - three & four  year olds,3rd Party Payments,Contracts - Child Care,BRAMBLE HOUSE DAY NURSERY LTD,SN2 ,19/10/2022,800.00
47810233,Early Years Block,DSG Skills and Attainment,Free Nursery Education Commissioning - three & four  year olds,3rd Party Payments,Contracts - Child Care,BRAMBLE HOUSE DAY NURSERY LTD,SN2 ,19/10/2022,800.00
48075233,Social Care,"Children, Families and Community Health Services",External Placements,3rd Party Payments,Residential Care,BRANAS ISAF LIMITED,EN6 ,19/10/2022,"24,578.66"
48512233,Streetsmart,Streetsmart,Waterside Fleet Hires,Transport Costs,Vehicle Hire / Contract,BRANDON HIRE STATION LIMITED,BS2 ,21/10/2022,452.73
50098234,DSG Other Funding,DSG Skills and Attainment,DFE Additional Grants,Supplies and Services,Payments to Educational Bodies,BRIDLEWOOD PRIMARY SCHOOL,SN25,31/10/2022,"1,559.25"
47627234,High Needs Block,DSG Skills and Attainment,SEN Resourcing Assessment Panel,3rd Party Payments,Top up funding - Maintained providers Pre 16,BRIDLEWOOD PRIMARY SCHOOL,SN25,19/10/2022,"3,032.92"
45932240,Early Years Block,DSG Skills and Attainment,Free Nursery Education Commissioning - three & four  year olds,3rd Party Payments,Contracts - Child Care,BRIDLEWOOD PRIMARY SCHOOL,SN25,12/10/2022,"4,778.55"
47749233,Schools - Primary,DSG Skills and Attainment,Primary School Budgets,3rd Party Payments,Mainstream Delegated Funding,BRIDLEWOOD PRIMARY SCHOOL,SN25,19/10/2022,"75,276.00"
47791233,DSG Other Funding,DSG Skills and Attainment,DFE Additional Grants,3rd Party Payments,Payment of Pupil Premium to school,BRIDLEWOOD PRIMARY SCHOOL,SN25,19/10/2022,"4,187.00"
47861240,DSG Other Funding,DSG Skills and Attainment,DFE Additional Grants,Supplies and Services,Payments to Educational Bodies,BRIDLEWOOD PRIMARY SCHOOL,SN25,19/10/2022,"1,268.75"
49282234,Other Repairs,Repairs,Unallocated job costs from OPEN system,3rd Party Payments,Contract Payments,BRISTOL FIRE,BS37,26/10/2022,"1,667.50"
47138233,Other Repairs,Repairs,Unallocated job costs from OPEN system,Premises Costs,Maintenance - Buildings,BRISTOL FIRE,BS37,14/10/2022,"4,889.70"
47137233,Property Management,Property,Corporate Repairs & Maintenance Programme,Premises Costs,Maintenance - Buildings,BRISTOL FIRE,BS37,14/10/2022,597.60
49027233,Property Management,Property,Corporate Repairs & Maintenance Programme,Premises Costs,Maintenance - Buildings,BRISTOL FIRE,BS37,24/10/2022,562.50
47197233,Highways Schemes,Strategic Planning and Highways,Key Routes East,Capital,Contractor Payments,BRITISH TELECOMMUNICATIONS PLC,S1 3,14/10/2022,"14,937.69"
46972233,,,Balance Sheet,Balance Sheet & Recharge,Mobile phone invoices,BRITISH TELECOMMUNICATIONS PLC,NE82,14/10/2022,"22,033.07"
49633233,Streetsmart,Streetsmart,Waste - Processing,Supplies and Services,Repairs & Maintenance,BROTHERS-EMR LIMITED,SN6 ,28/10/2022,500.50
49684233,Highways Inspections & Maintenance,Highway Operations and Car Parking,Highway Maintenance,Supplies and Services,Materials,BROXAP LTD,ST5 ,28/10/2022,488.25
49684233,Highways Inspections & Maintenance,Highway Operations and Car Parking,Highway Maintenance,Supplies and Services,Materials,BROXAP LTD,ST5 ,28/10/2022,168.00
49684233,Highways Inspections & Maintenance,Highway Operations and Car Parking,Highway Maintenance,Supplies and Services,Materials,BROXAP LTD,ST5 ,28/10/2022,139.50
49684233,Highways Inspections & Maintenance,Highway Operations and Car Parking,Highway Maintenance,Supplies and Services,Materials,BROXAP LTD,ST5 ,28/10/2022,48.90
47688235,High Needs Block,DSG Skills and Attainment,Post 16 - New Responsibilties,3rd Party Payments,Independent Service Provider- Post 16,BRUNEL EDUCATION,SN25,19/10/2022,"119,529.08"
47777233,High Needs Block,DSG Skills and Attainment,Advisory Teacher Services,Supplies and Services,Payments to Educational Bodies,REDACTED PERSONAL DATA,SN25,19/10/2022,"7,250.00"
45175233,High Needs Block,DSG Skills and Attainment,SEN Resourcing Assessment Panel,Supplies and Services,Services,REDACTED PERSONAL DATA,SN2 ,07/10/2022,"6,290.00"
48635233,SEND Funds,Skills & Attainment,Education High Needs Provision,Capital,Contractor Payments,REDACTED PERSONAL DATA,SN25,21/10/2022,906.72
44579233,SEND Funds,Skills & Attainment,Education High Needs Provision,Capital,Contractor Payments,REDACTED PERSONAL DATA,SN25,05/10/2022,906.72
47667234,High Needs Block,DSG Skills and Attainment,SEN Resourcing Assessment Panel,3rd Party Payments,Top up funding - Academies and Free Schools Pre 16,REDACTED PERSONAL DATA,SN25,19/10/2022,"115,400.59"
47674233,High Needs Block,DSG Skills and Attainment,SEN Resourcing Assessment Panel,3rd Party Payments,Top up funding - Academies and Free Schools Pre 16,REDACTED PERSONAL DATA,SN25,19/10/2022,"45,667.41"
45027233,High Needs Block,DSG Skills and Attainment,SEN Resourcing Assessment Panel,Supplies and Services,Services,REDACTED PERSONAL DATA,SN2 ,05/10/2022,"15,120.00"
45017233,High Needs Block,DSG Skills and Attainment,SEN Resourcing Assessment Panel,Supplies and Services,Services,REDACTED PERSONAL DATA,SN2 ,05/10/2022,"4,790.00"
47669233,High Needs Block,DSG Skills and Attainment,SEN Resourcing Assessment Panel,3rd Party Payments,Top up funding - Academies and Free Schools Pre 16,REDACTED PERSONAL DATA,SN25,19/10/2022,"133,419.94"
47667235,High Needs Block,DSG Skills and Attainment,SEN Resourcing Assessment Panel,3rd Party Payments,Top up funding - Academies and Free Schools Pre 16,REDACTED PERSONAL DATA,SN25,19/10/2022,"86,938.80"
47683234,High Needs Block,DSG Skills and Attainment,SEN Resourcing Assessment Panel,3rd Party Payments,Top up funding - Academies and Free Schools Pre 16,REDACTED PERSONAL DATA,SN25,19/10/2022,"17,708.67"
46156233,High Needs Block,DSG Skills and Attainment,SEN Resourcing Assessment Panel,Supplies and Services,Services,REDACTED PERSONAL DATA,SN2 ,12/10/2022,"10,800.00"
47680234,High Needs Block,DSG Skills and Attainment,SEN Resourcing Assessment Panel,3rd Party Payments,Top up funding - Academies and Free Schools Pre 16,REDACTED PERSONAL DATA,SN25,19/10/2022,"9,352.85"
47667236,High Needs Block,DSG Skills and Attainment,SEN Resourcing Assessment Panel,3rd Party Payments,Top up funding - Academies and Free Schools Pre 16,REDACTED PERSONAL DATA,SN25,19/10/2022,"157,413.02"
47684233,High Needs Block,DSG Skills and Attainment,SEN Resourcing Assessment Panel,3rd Party Payments,Top up funding - Academies and Free Schools Pre 16,REDACTED PERSONAL DATA,SN25,19/10/2022,"21,503.03"
45019233,High Needs Block,DSG Skills and Attainment,SEN Resourcing Assessment Panel,Supplies and Services,Services,REDACTED PERSONAL DATA,SN2 ,05/10/2022,"5,390.00"
47685233,High Needs Block,DSG Skills and Attainment,SEN Resourcing Assessment Panel,3rd Party Payments,Top up funding - Academies and Free Schools Post 16,REDACTED PERSONAL DATA,SN25,19/10/2022,"46,684.96"
47656233,High Needs Block,DSG Skills and Attainment,SEN Resourcing Assessment Panel,3rd Party Payments,Top up funding - Academies and Free Schools Pre 16,REDACTED PERSONAL DATA,SN25,19/10/2022,"3,062.50"
48639233,SEND Funds,Skills & Attainment,Education High Needs Provision,Capital,Contractor Payments,REDACTED PERSONAL DATA,SN25,21/10/2022,"1,108.62"
47778233,High Needs Block,DSG Skills and Attainment,Advisory Teacher Services,Supplies and Services,Payments to Educational Bodies,REDACTED PERSONAL DATA,SN25,19/10/2022,"11,316.00"
46155233,High Needs Block,DSG Skills and Attainment,SEN Resourcing Assessment Panel,Supplies and Services,Services,REDACTED PERSONAL DATA,SN2 ,12/10/2022,"4,760.54"
44835233,High Needs Block,DSG Skills and Attainment,SEN Resourcing Assessment Panel,Supplies and Services,Services,REDACTED PERSONAL DATA,SN2 ,05/10/2022,"2,380.27"
48640233,SEND Funds,Skills & Attainment,Education High Needs Provision,Capital,Contractor Payments,REDACTED PERSONAL DATA,SN25,21/10/2022,"3,489.00"
48620233,NEV,"Economy, Growth and Place",Southern Connector Road,Capital,Contractor Payments,BUCKINGHAM GROUP CONTRACTING LIMITED,MK18,21/10/2022,"1,256,297.72"
49955233,Social Care,"Children, Families and Community Health Services",External Placements,3rd Party Payments,Semi Independent,BUDWOOD LTD,SO53,28/10/2022,"3,783.10"
47029233,Early Years Block,DSG Skills and Attainment,Free Nursery Education Commissioning - three & four  year olds,3rd Party Payments,Contracts - Child Care,"BUSY BEES, PEATMOOR",SN5 ,19/10/2022,"2,850.00"
47025233,Early Years Block,DSG Skills and Attainment,Free Nursery Education Commissioning - three & four  year olds,3rd Party Payments,Contracts - Child Care,"BUSY BEES, PEATMOOR",SN5 ,19/10/2022,750.00
46140233,Public Health,Public Health,DAAT,3rd Party Payments,Contract Payments,C & P MEDICAL TRAINING LTD,SN12,12/10/2022,"16,000.00"
49559233,Highways Schemes,Strategic Planning and Highways,Key Routes East,Capital,Contractor Payments,C.A. TELECOM UK LTD,CT5 ,28/10/2022,"2,500.00"
47264287,Learning Disabilities,Adults,Learning Disability 26 - 64,Income,Client Contribution - Residential,C.H.O.I.C.E LTD,RG12,14/10/2022,-423.00
47264288,Learning Disabilities,Adults,Learning Disability 26 - 64,Income,Client Contribution - Residential,C.H.O.I.C.E LTD,RG12,14/10/2022,-415.00
47264292,Physical Support,Adults,Physical Support 18 - 64,3rd Party Payments,Residential Care,C.H.O.I.C.E LTD,RG12,14/10/2022,"10,222.80"
47264289,Learning Disabilities,Adults,Learning Disability 65 and over,3rd Party Payments,Residential Care,C.H.O.I.C.E LTD,RG12,14/10/2022,"8,898.76"
47264289,Learning Disabilities,Adults,Learning Disability 65 and over,3rd Party Payments,Residential Care,C.H.O.I.C.E LTD,RG12,14/10/2022,"8,447.72"
47264290,Learning Disabilities,Adults,Learning Disability 26 - 64,3rd Party Payments,Residential Care,C.H.O.I.C.E LTD,RG12,14/10/2022,"6,825.52"
47264292,Learning Disabilities,Adults,Learning Disability 26 - 64,Income,Client Contribution - Residential,C.H.O.I.C.E LTD,RG12,14/10/2022,-454.80
47264286,Learning Disabilities,Adults,Learning Disability 26 - 64,3rd Party Payments,Residential Care,C.H.O.I.C.E LTD,RG12,14/10/2022,"9,147.40"
47264290,Learning Disabilities,Adults,Learning Disability 26 - 64,Income,Client Contribution - Residential,C.H.O.I.C.E LTD,RG12,14/10/2022,-391.00
47264286,Learning Disabilities,Adults,Learning Disability 26 - 64,Income,Client Contribution - Residential,C.H.O.I.C.E LTD,RG12,14/10/2022,-298.20
47264290,Learning Disabilities,Adults,Learning Disability 65 and over,3rd Party Payments,Residential Care,C.H.O.I.C.E LTD,RG12,14/10/2022,"9,474.20"
47264290,Learning Disabilities,Adults,Learning Disability 65 and over,Income,Client Contribution - Residential,C.H.O.I.C.E LTD,RG12,14/10/2022,-636.32
47264287,Learning Disabilities,Adults,Learning Disability 26 - 64,3rd Party Payments,Residential Care,C.H.O.I.C.E LTD,RG12,14/10/2022,"6,691.00"
47264292,Learning Disabilities,Adults,Learning Disability 26 - 64,3rd Party Payments,Residential Care,C.H.O.I.C.E LTD,RG12,14/10/2022,"10,934.04"
47264290,Learning Disabilities,Adults,Learning Disability 65 and over,3rd Party Payments,Residential Care,C.H.O.I.C.E LTD,RG12,14/10/2022,"8,340.72"
47264290,Learning Disabilities,Adults,Learning Disability 65 and over,Income,Client Contribution - Residential,C.H.O.I.C.E LTD,RG12,14/10/2022,-550.84
47264292,Learning Disabilities,Adults,Learning Disability 26 - 64,3rd Party Payments,Residential Care,C.H.O.I.C.E LTD,RG12,14/10/2022,"11,677.40"
47264287,Learning Disabilities,Adults,Learning Disability 26 - 64,3rd Party Payments,Residential Care,C.H.O.I.C.E LTD,RG12,14/10/2022,"6,668.68"
47264291,Mental Health,Adults,Mental Health 18-64,3rd Party Payments,Residential Care,C.H.O.I.C.E LTD,RG12,14/10/2022,"26,374.00"
47264289,Learning Disabilities,Adults,Learning Disability 65 and over,Income,Client Contribution - Residential,C.H.O.I.C.E LTD,RG12,14/10/2022,-607.60
47264288,Learning Disabilities,Adults,Learning Disability 26 - 64,3rd Party Payments,Residential Care,C.H.O.I.C.E LTD,RG12,14/10/2022,"10,940.40"
47264292,Physical Support,Adults,Physical Support 18 - 64,Income,Client Contribution - Residential,C.H.O.I.C.E LTD,RG12,14/10/2022,-414.20
47264291,Mental Health,Adults,Mental Health 18-64,3rd Party Payments,Residential Care,C.H.O.I.C.E LTD,RG12,14/10/2022,"-25,238.34"
47264289,Learning Disabilities,Adults,Learning Disability 26 - 64,Income,Client Contribution - Residential,C.H.O.I.C.E LTD,RG12,14/10/2022,-595.32
47264291,Mental Health,Adults,Mental Health 18-64,3rd Party Payments,Residential Care,C.H.O.I.C.E LTD,RG12,14/10/2022,-271.38
47264292,Learning Disabilities,Adults,Learning Disability 26 - 64,Income,Client Contribution - Residential,C.H.O.I.C.E LTD,RG12,14/10/2022,-207.60
46680233,"Data, Performance and Insight",Digital & Business Change,"Performance, Intelligence and Insight",Supplies and Services,Services,CACI LTD,W14 ,14/10/2022,"7,900.00"
44742233,Homeline,Special Services,Homeline,Supplies and Services,Materials,CAIR (UK) LTD,HX1 ,05/10/2022,"4,340.00"
48069233,Social Care,"Children, Families and Community Health Services",External Placements,3rd Party Payments,Residential Care,CALCOT SERVICES FOR CHILDREN LTD,RG7 ,19/10/2022,"29,892.68"
45052238,Social Care,"Children, Families and Community Health Services",External Placements,3rd Party Payments,Residential Care,CALCOT SERVICES FOR CHILDREN LTD,RG7 ,07/10/2022,"29,361.34"
49252241,Social Care,"Children, Families and Community Health Services",External Placements,3rd Party Payments,Independent Fostering Agency Placements,CALDECOTT FOSTERING LTD,TN25,26/10/2022,"1,828.57"
49252240,Social Care,"Children, Families and Community Health Services",External Placements,3rd Party Payments,Independent Fostering Agency Placements,CALDECOTT FOSTERING LTD,TN25,26/10/2022,"6,100.27"
50220243,Learning Disabilities,Adults,Learning Disability 26 - 64,Transfer Payments,Personal Budget - Direct Payments - Domiciliary Care,REDACTED PERSONAL DATA,SP11,31/10/2022,"1,844.32"
50231234,Learning Disabilities,Adults,Learning Disability 26 - 64,Transfer Payments,Personal Budget - Direct Payments - Domiciliary Care,REDACTED PERSONAL DATA,SP11,31/10/2022,631.33
48204233,Social Care,"Children, Families and Community Health Services",External Placements,3rd Party Payments,Residential Care,CAMBIAN CHILDCARE LTD,EN6 ,19/10/2022,"26,274.67"
50139238,Physical Support,Adults,Physical Support 18 - 64,Transfer Payments,Personal Budget - Direct Payments - Domiciliary Care,REDACTED PERSONAL DATA,SN25,31/10/2022,824.47
47733234,Void Repairs,Supervision & Management,Void Property Repairs,3rd Party Payments,Contract Payments,CANTILLON GROUP LTD,SN25,19/10/2022,"1,430.00"
47733234,Void Repairs,Supervision & Management,Void Property Repairs,3rd Party Payments,Contract Payments,CANTILLON GROUP LTD,SN25,19/10/2022,"4,967.81"
47733234,Void Repairs,Supervision & Management,Void Property Repairs,3rd Party Payments,Contract Payments,CANTILLON GROUP LTD,SN25,19/10/2022,"3,972.84"
47733234,Void Repairs,Supervision & Management,Void Property Repairs,3rd Party Payments,Contract Payments,CANTILLON GROUP LTD,SN25,19/10/2022,"5,249.65"
47733234,Void Repairs,Supervision & Management,Void Property Repairs,3rd Party Payments,Contract Payments,CANTILLON GROUP LTD,SN25,19/10/2022,"9,716.59"
47733234,Void Repairs,Supervision & Management,Void Property Repairs,3rd Party Payments,Contract Payments,CANTILLON GROUP LTD,SN25,19/10/2022,"3,050.73"
47733234,Void Repairs,Supervision & Management,Void Property Repairs,3rd Party Payments,Contract Payments,CANTILLON GROUP LTD,SN25,19/10/2022,"3,787.86"
47733234,Void Repairs,Supervision & Management,Void Property Repairs,3rd Party Payments,Contract Payments,CANTILLON GROUP LTD,SN25,19/10/2022,"1,487.55"
47733234,Void Repairs,Supervision & Management,Void Property Repairs,3rd Party Payments,Contract Payments,CANTILLON GROUP LTD,SN25,19/10/2022,"2,695.11"
47733234,Void Repairs,Supervision & Management,Void Property Repairs,3rd Party Payments,Contract Payments,CANTILLON GROUP LTD,SN25,19/10/2022,"7,398.35"
49929233,Other Repairs,Repairs,Cyclical Maintenance,Supplies and Services,Testing / Inspection,CANTILLON GROUP LTD,SN25,28/10/2022,"1,024.11"
47185233,Other Repairs,Repairs,Cyclical Maintenance,Supplies and Services,Testing / Inspection,CANTILLON GROUP LTD,SN25,14/10/2022,514.38
47733234,Planned Maintenance Programme,HRA Capital Financing,Central Heating,Capital,Contractor Payments,CANTILLON GROUP LTD,SN25,19/10/2022,"7,542.96"
47733234,Planned Maintenance Programme,HRA Capital Financing,Bathrooms,Capital,Contractor Payments,CANTILLON GROUP LTD,SN25,19/10/2022,"2,099.62"
47733234,Planned Maintenance Programme,HRA Capital Financing,Kitchens,Capital,Contractor Payments,CANTILLON GROUP LTD,SN25,19/10/2022,"3,565.69"
46142233,Landscaping & Open Space,Culture & Heritage & Art,Spring Gardens Refurbishment,Capital,Contractor Payments,CANTILLON GROUP LTD,SN25,12/10/2022,"2,260.00"
48087236,Other Repairs,Repairs,Cyclical Maintenance,Supplies and Services,Testing / Inspection,CANTILLON GROUP LTD,SN25,19/10/2022,719.19
47733234,Planned Maintenance Programme,HRA Capital Financing,Bathrooms,Capital,Contractor Payments,CANTILLON GROUP LTD,SN25,19/10/2022,"1,768.68"
47733234,Planned Maintenance Programme,HRA Capital Financing,Bathrooms,Capital,Contractor Payments,CANTILLON GROUP LTD,SN25,19/10/2022,"1,735.61"
47733234,Void Repairs,Supervision & Management,Void Property Repairs,3rd Party Payments,Contract Payments,CANTILLON GROUP LTD,SN25,19/10/2022,"-50,000.00"
47733234,Void Repairs,Supervision & Management,Void Property Repairs,3rd Party Payments,Contract Payments,CANTILLON GROUP LTD,SN25,19/10/2022,"3,879.13"
49836233,Other Repairs,Repairs,Cyclical Maintenance,Supplies and Services,Testing / Inspection,CANTILLON GROUP LTD,SN25,28/10/2022,465.44
49851233,Other Repairs,Repairs,Cyclical Maintenance,Supplies and Services,Testing / Inspection,CANTILLON GROUP LTD,SN25,28/10/2022,560.87
47181234,Other Repairs,Repairs,Cyclical Maintenance,Supplies and Services,Testing / Inspection,CANTILLON GROUP LTD,SN25,14/10/2022,733.47
47733234,Planned Maintenance Programme,HRA Capital Financing,Kitchens,Capital,Contractor Payments,CANTILLON GROUP LTD,SN25,19/10/2022,"4,456.83"
46142233,Landscaping & Open Space,Culture & Heritage & Art,Spring Gardens Refurbishment,Capital,Contractor Payments,CANTILLON GROUP LTD,SN25,12/10/2022,"9,500.00"
47733234,Void Repairs,Supervision & Management,Void Property Repairs,3rd Party Payments,Contract Payments,CANTILLON GROUP LTD,SN25,19/10/2022,"50,000.00"
47733234,Void Repairs,Supervision & Management,Void Property Repairs,3rd Party Payments,Contract Payments,CANTILLON GROUP LTD,SN25,19/10/2022,"4,167.31"
47733234,Void Repairs,Supervision & Management,Void Property Repairs,3rd Party Payments,Contract Payments,CANTILLON GROUP LTD,SN25,19/10/2022,"5,686.46"
49848233,Other Repairs,Repairs,Cyclical Maintenance,Supplies and Services,Testing / Inspection,CANTILLON GROUP LTD,SN25,28/10/2022,447.23
47542233,Other Repairs,Repairs,Cyclical Maintenance,Supplies and Services,Testing / Inspection,CANTILLON GROUP LTD,SN25,17/10/2022,469.83
47733234,Planned Maintenance Programme,HRA Capital Financing,Kitchens,Capital,Contractor Payments,CANTILLON GROUP LTD,SN25,19/10/2022,"3,206.16"
47733234,Void Repairs,Supervision & Management,Void Property Repairs,3rd Party Payments,Contract Payments,CANTILLON GROUP LTD,SN25,19/10/2022,"7,211.25"
47733234,Void Repairs,Supervision & Management,Void Property Repairs,3rd Party Payments,Contract Payments,CANTILLON GROUP LTD,SN25,19/10/2022,"4,463.42"
47733234,Void Repairs,Supervision & Management,Void Property Repairs,3rd Party Payments,Contract Payments,CANTILLON GROUP LTD,SN25,19/10/2022,"1,159.20"
49930233,Other Repairs,Repairs,Cyclical Maintenance,Supplies and Services,Testing / Inspection,CANTILLON GROUP LTD,SN25,28/10/2022,458.15
50041234,Other Repairs,Repairs,Cyclical Maintenance,Supplies and Services,Testing / Inspection,CANTILLON GROUP LTD,SN25,31/10/2022,592.89
47733234,Void Repairs,Supervision & Management,Void Property Repairs,3rd Party Payments,Contract Payments,CANTILLON GROUP LTD,SN25,19/10/2022,"3,584.33"
48088233,Other Repairs,Repairs,Cyclical Maintenance,Supplies and Services,Testing / Inspection,CANTILLON GROUP LTD,SN25,19/10/2022,612.29
47182233,Other Repairs,Repairs,Cyclical Maintenance,Supplies and Services,Testing / Inspection,CANTILLON GROUP LTD,SN25,14/10/2022,612.00
47733234,Planned Maintenance Programme,HRA Capital Financing,Kitchens,Capital,Contractor Payments,CANTILLON GROUP LTD,SN25,19/10/2022,"3,162.53"
47733234,Void Repairs,Supervision & Management,Void Property Repairs,3rd Party Payments,Contract Payments,CANTILLON GROUP LTD,SN25,19/10/2022,28.89
47924233,Revenues & Benefits,Revenues & Benefits,Benefits,3rd Party Payments,Capita Strategic Partnership Service Charges,CAPITA BUSINESS SERVICES LTD,DL1 ,19/10/2022,"196,361.57"
47924233,Revenues & Benefits,Revenues & Benefits,Benefits,3rd Party Payments,Capita Strategic Partnership Service Charges,CAPITA BUSINESS SERVICES LTD,DL1 ,19/10/2022,"2,613.00"
47928233,Treasury,Corporate Finance,Treasury,Supplies and Services,Contracts,CAPITA BUSINESS SERVICES LTD,DL1 ,19/10/2022,"6,522.50"
47924233,Revenues & Benefits,Revenues & Benefits,Revenues,3rd Party Payments,Capita Strategic Partnership Service Charges,CAPITA BUSINESS SERVICES LTD,DL1 ,19/10/2022,"110,984.36"
47924233,Revenues & Benefits,Revenues & Benefits,Revenues,3rd Party Payments,Capita Strategic Partnership Service Charges,CAPITA BUSINESS SERVICES LTD,DL1 ,19/10/2022,"12,838.24"
47373233,Education,"Education, Inclusion and Skills",Premature Retirement and Redundancy Costs,Employees,Pension - Added Years,CAPITA PENSION SOLUTIONS LTD,EC2V,17/10/2022,"3,430.00"
45599233,Human Resources and Organisational Development,"People, Culture and Organisational Resilience",HR Systems & Strategy,Supplies and Services,Fees,CAPITA RESOURCING LTD,RG22,10/10/2022,"1,796.00"
45599233,Human Resources and Organisational Development,"People, Culture and Organisational Resilience",HR Systems & Strategy,Supplies and Services,Fees,CAPITA RESOURCING LTD,RG22,10/10/2022,600.86
48221233,Social Care,"Children, Families and Community Health Services",External Placements,3rd Party Payments,Independent Fostering Agency Placements,CAPSTONE FOSTER CARE (SW) LTD,TQ12,19/10/2022,"7,506.34"
48220233,Social Care,"Children, Families and Community Health Services",External Placements,3rd Party Payments,Independent Fostering Agency Placements,CAPSTONE FOSTER CARE (SW) LTD,TQ12,19/10/2022,"3,270.63"
48219233,Social Care,"Children, Families and Community Health Services",External Placements,3rd Party Payments,Independent Fostering Agency Placements,CAPSTONE FOSTER CARE (SW) LTD,TQ12,19/10/2022,"3,587.01"
48133233,Social Care,"Children, Families and Community Health Services",Legal Fees,Supplies and Services,Fees,CARDIFF UNIVERSITY,CF10,19/10/2022,"1,260.00"
49337233,Disabled Children,"Children, Families and Community Health Services",ICES Paediatric,Supplies and Services,Equipment,CARE & INDEPENDENCE SYSTEMS LTD,OX26,26/10/2022,"1,425.00"
45584233,Disabled Children,"Children, Families and Community Health Services",ICES Paediatric,Supplies and Services,Equipment,CARE & INDEPENDENCE SYSTEMS LTD,OX26,07/10/2022,434.30
44288233,Human Resources and Organisational Development,"People, Culture and Organisational Resilience",HR Systems & Strategy,Employees,Employee Related Schemes,CARE FIRST,GL3 ,03/10/2022,"3,063.57"
44821233,Human Resources and Organisational Development,"People, Culture and Organisational Resilience",Organisational Development,Supplies and Services,Services,CARE FIRST,GL3 ,05/10/2022,494.00
44289233,Human Resources and Organisational Development,"People, Culture and Organisational Resilience",HR Systems & Strategy,Employees,Employee Related Schemes,CARE FIRST,GL3 ,03/10/2022,"3,063.57"
44300234,Human Resources and Organisational Development,"People, Culture and Organisational Resilience",HR Systems & Strategy,Employees,Employee Related Schemes,CARE FIRST,GL3 ,03/10/2022,"3,063.57"
44283233,Human Resources and Organisational Development,"People, Culture and Organisational Resilience",HR Systems & Strategy,Employees,Employee Related Schemes,CARE FIRST,GL3 ,03/10/2022,"3,063.57"
47091233,Human Resources and Organisational Development,"People, Culture and Organisational Resilience",HR Systems & Strategy,Employees,Employee Related Schemes,CARE FIRST,GL3 ,14/10/2022,"3,063.57"
47264367,Learning Disabilities,Adults,Learning Disability 26 - 64,3rd Party Payments,Supported Lodgings,CAREFORYOU LTD,N13 ,14/10/2022,"4,882.00"
44247274,Physical Support,Adults,Physical Support 65 and over,3rd Party Payments,Personal Budget - Domiciliary care,CAREWATCH (SWINDON),BA14,03/10/2022,"1,331.86"
45978237,Physical Support,Adults,Physical Support 65 and over,3rd Party Payments,Personal Budget - Domiciliary care,CAREWATCH (SWINDON),BA14,10/10/2022,851.86
48612255,Physical Support,Adults,Physical Support 65 and over,3rd Party Payments,Personal Budget - Domiciliary care,CAREWATCH (SWINDON),BA14,24/10/2022,802.24
48612259,Physical Support,Adults,Physical Support 65 and over,3rd Party Payments,Personal Budget - Domiciliary care,CAREWATCH (SWINDON),BA14,24/10/2022,"1,311.30"
48612252,Physical Support,Adults,Physical Support 65 and over,3rd Party Payments,Personal Budget - Domiciliary care,CAREWATCH (SWINDON),BA14,24/10/2022,851.86
48612258,Physical Support,Adults,Physical Support 65 and over,3rd Party Payments,Personal Budget - Domiciliary care,CAREWATCH (SWINDON),BA14,24/10/2022,"1,331.86"
44247277,Physical Support,Adults,Physical Support 65 and over,3rd Party Payments,Personal Budget - Domiciliary care,CAREWATCH (SWINDON),BA14,03/10/2022,"1,457.00"
44247278,Physical Support,Adults,Physical Support 65 and over,3rd Party Payments,Personal Budget - Domiciliary care,CAREWATCH (SWINDON),BA14,03/10/2022,"2,413.44"
44247269,Physical Support,Adults,Physical Support 65 and over,3rd Party Payments,Personal Budget - Domiciliary care,CAREWATCH (SWINDON),BA14,03/10/2022,956.44
48612262,Physical Support,Adults,Physical Support 65 and over,3rd Party Payments,Personal Budget - Domiciliary care,CAREWATCH (SWINDON),BA14,24/10/2022,"2,413.44"
44247271,Physical Support,Adults,Physical Support 65 and over,3rd Party Payments,Personal Budget - Domiciliary care,CAREWATCH (SWINDON),BA14,03/10/2022,800.46
48612253,Physical Support,Adults,Physical Support 65 and over,3rd Party Payments,Personal Budget - Domiciliary care,CAREWATCH (SWINDON),BA14,24/10/2022,802.24
48612260,Physical Support,Adults,Physical Support 18 - 64,3rd Party Payments,Personal Budget - Domiciliary care,CAREWATCH (SWINDON),BA14,24/10/2022,"2,936.14"
48612257,Physical Support,Adults,Physical Support 65 and over,3rd Party Payments,Personal Budget - Domiciliary care,CAREWATCH (SWINDON),BA14,24/10/2022,"3,116.04"
44247275,Physical Support,Adults,Physical Support 65 and over,3rd Party Payments,Personal Budget - Domiciliary care,CAREWATCH (SWINDON),BA14,03/10/2022,776.74
44247273,Physical Support,Adults,Physical Support 65 and over,3rd Party Payments,Personal Budget - Domiciliary care,CAREWATCH (SWINDON),BA14,03/10/2022,"3,105.76"
48612261,Physical Support,Adults,Physical Support 65 and over,3rd Party Payments,Personal Budget - Domiciliary care,CAREWATCH (SWINDON),BA14,24/10/2022,"1,457.00"
48773233,"Children, Families & Community Health Services","Children, Familities & Community Health Services",Children's ICS Project,Capital,Contractor Payments,CAREWORKS LTD,SL3 ,24/10/2022,"2,745.00"
44896233,Digital & Business Change,Digital & Business Change,IT Systems,Supplies and Services,License Costs,CAREWORKS LTD,SL3 ,05/10/2022,"37,596.09"
48229233,Social Care,"Children, Families and Community Health Services",Unaccompanied Asylum Seeking Children (UASC),3rd Party Payments,Semi Independent,CARING FOR COMMUNITIES AND PEOPLE (CCP),GL50,19/10/2022,"3,755.00"
48228233,Social Care,"Children, Families and Community Health Services",Unaccompanied Asylum Seeking Children (UASC),3rd Party Payments,Semi Independent,CARING FOR COMMUNITIES AND PEOPLE (CCP),GL50,19/10/2022,"2,580.00"
48223233,Social Care,"Children, Families and Community Health Services",External Placements,3rd Party Payments,Care Packages,CARING FOR COMMUNITIES AND PEOPLE (CCP),GL50,19/10/2022,"5,100.00"
49765233,Disabled Children,"Children, Families and Community Health Services",DCT Daytime Short Breaks,3rd Party Payments,Respite Care,CARING FOR COMMUNITIES AND PEOPLE (CCP),GL50,28/10/2022,617.60
48227233,Social Care,"Children, Families and Community Health Services",Unaccompanied Asylum Seeking Children (UASC),3rd Party Payments,Semi Independent,CARING FOR COMMUNITIES AND PEOPLE (CCP),GL50,19/10/2022,"2,580.00"
48226233,Social Care,"Children, Families and Community Health Services",Unaccompanied Asylum Seeking Children (UASC),3rd Party Payments,Semi Independent,CARING FOR COMMUNITIES AND PEOPLE (CCP),GL50,19/10/2022,"3,755.00"
48225233,Social Care,"Children, Families and Community Health Services",Unaccompanied Asylum Seeking Children (UASC),3rd Party Payments,Semi Independent,CARING FOR COMMUNITIES AND PEOPLE (CCP),GL50,19/10/2022,"2,580.00"
48224233,Social Care,"Children, Families and Community Health Services",Placement - Care Leaver Team,3rd Party Payments,Semi Independent,CARING FOR COMMUNITIES AND PEOPLE (CCP),GL50,19/10/2022,"2,580.00"
46248236,Physical Support,Adults,Physical Support 18 - 64,3rd Party Payments,Personal Budget - Domiciliary care,CARING HEART CARERS LIMITED,SN25,12/10/2022,"1,031.96"
49397260,Physical Support,Adults,Physical Support 65 and over,3rd Party Payments,Personal Budget - Domiciliary care,CARING HEART CARERS LIMITED,SN25,26/10/2022,"1,174.10"
46248234,Physical Support,Adults,Physical Support 18 - 64,3rd Party Payments,Personal Budget - Domiciliary care,CARING HEART CARERS LIMITED,SN25,12/10/2022,935.88
46248235,Physical Support,Adults,Physical Support 65 and over,3rd Party Payments,Personal Budget - Domiciliary care,CARING HEART CARERS LIMITED,SN25,12/10/2022,"1,023.26"
49607233,Lydiard Park,Streetsmart,Lydiard : Hotel Operations,Supplies and Services,Repairs & Maintenance,CARLTON SERVICES (UK) LTD,SN3 ,28/10/2022,"1,120.00"
49550233,Lydiard Park,Streetsmart,Lydiard : Coach House Caf�,Supplies and Services,Repairs & Maintenance,CARLTON SERVICES (UK) LTD,SN3 ,28/10/2022,480.00
50161234,Learning Disabilities,Adults,Learning Disability 26 - 64,Transfer Payments,Personal Budget - Direct Payments - Domiciliary Care,REDACTED PERSONAL DATA,SN2 ,31/10/2022,"2,357.21"
50225240,Physical Support,Adults,Physical Support 65 and over,3rd Party Payments,Carers,REDACTED PERSONAL DATA,SP11,31/10/2022,527.66
50226235,Learning Disabilities,Adults,Learning Disability 26 - 64,Transfer Payments,Personal Budget - Direct Payments - Domiciliary Care,REDACTED PERSONAL DATA,SN2 ,31/10/2022,"1,407.87"
50226239,Learning Disabilities,Adults,Learning Disability 26 - 64,Transfer Payments,Direct Payments - ILF,REDACTED PERSONAL DATA,SN2 ,31/10/2022,"-1,659.84"
50226236,Learning Disabilities,Adults,Learning Disability 26 - 64,Transfer Payments,Personal Budget - Direct Payments - Other,REDACTED PERSONAL DATA,SN2 ,31/10/2022,"2,598.70"
50226238,Learning Disabilities,Adults,Learning Disability 26 - 64,Transfer Payments,Personal Budget - Direct Payments - Other,REDACTED PERSONAL DATA,SN2 ,31/10/2022,"2,306.92"
45934233,Early Years Block,DSG Skills and Attainment,Free Nursery Education Commissioning - three & four  year olds,3rd Party Payments,Contracts - Child Care,REDACTED PERSONAL DATA,SN3 ,12/10/2022,740.25
45658233,Responsive Repairs,Repairs,Responsive Repairs,3rd Party Payments,Contract Payments,CARPET WAREHOUSE SWINDON LTD,SN2 ,10/10/2022,"1,243.60"
47999234,Responsive Repairs,Repairs,Responsive Repairs,3rd Party Payments,Contract Payments,CARPET WAREHOUSE SWINDON LTD,SN2 ,19/10/2022,700.00
49140233,Responsive Repairs,Repairs,Responsive Repairs,3rd Party Payments,Contract Payments,CARPET WAREHOUSE SWINDON LTD,SN2 ,26/10/2022,991.58
47992233,Responsive Repairs,Repairs,Responsive Repairs,3rd Party Payments,Contract Payments,CARPET WAREHOUSE SWINDON LTD,SN2 ,19/10/2022,802.16
49137233,Responsive Repairs,Repairs,Responsive Repairs,Supplies and Services,Materials,CARPET WAREHOUSE SWINDON LTD,SN2 ,26/10/2022,799.20
45659233,Responsive Repairs,Repairs,Responsive Repairs,3rd Party Payments,Contract Payments,CARPET WAREHOUSE SWINDON LTD,SN2 ,10/10/2022,700.00
45660233,Responsive Repairs,Repairs,Responsive Repairs,3rd Party Payments,Contract Payments,CARPET WAREHOUSE SWINDON LTD,SN2 ,10/10/2022,984.46
47997234,Responsive Repairs,Repairs,Responsive Repairs,3rd Party Payments,Contract Payments,CARPET WAREHOUSE SWINDON LTD,SN2 ,19/10/2022,"1,123.75"
45656233,Responsive Repairs,Repairs,Responsive Repairs,3rd Party Payments,Contract Payments,CARPET WAREHOUSE SWINDON LTD,SN2 ,10/10/2022,700.00
45661233,Responsive Repairs,Repairs,Responsive Repairs,3rd Party Payments,Contract Payments,CARPET WAREHOUSE SWINDON LTD,SN2 ,10/10/2022,800.00
47998235,Responsive Repairs,Repairs,Responsive Repairs,3rd Party Payments,Contract Payments,CARPET WAREHOUSE SWINDON LTD,SN2 ,19/10/2022,707.12
49141233,Responsive Repairs,Repairs,Responsive Repairs,3rd Party Payments,Contract Payments,CARPET WAREHOUSE SWINDON LTD,SN2 ,26/10/2022,"1,180.00"
47996233,Responsive Repairs,Repairs,Responsive Repairs,Supplies and Services,Materials,CARPET WAREHOUSE SWINDON LTD,SN2 ,19/10/2022,867.61
45655233,Responsive Repairs,Repairs,Responsive Repairs,3rd Party Payments,Contract Payments,CARPET WAREHOUSE SWINDON LTD,SN2 ,10/10/2022,789.00
48000234,Responsive Repairs,Repairs,Responsive Repairs,3rd Party Payments,Contract Payments,CARPET WAREHOUSE SWINDON LTD,SN2 ,19/10/2022,953.46
49138233,Responsive Repairs,Repairs,Responsive Repairs,3rd Party Payments,Contract Payments,CARPET WAREHOUSE SWINDON LTD,SN2 ,26/10/2022,"1,165.47"
49142233,Other Repairs,Repairs,Unallocated job costs from OPEN system,Supplies and Services,Materials,CARPET WAREHOUSE SWINDON LTD,SN2 ,26/10/2022,"3,507.10"
47993234,Responsive Repairs,Repairs,Responsive Repairs,3rd Party Payments,Contract Payments,CARPET WAREHOUSE SWINDON LTD,SN2 ,19/10/2022,"1,079.60"
47995234,Responsive Repairs,Repairs,Responsive Repairs,3rd Party Payments,Contract Payments,CARPET WAREHOUSE SWINDON LTD,SN2 ,19/10/2022,859.74
48002234,Responsive Repairs,Repairs,Responsive Repairs,3rd Party Payments,Contract Payments,CARPET WAREHOUSE SWINDON LTD,SN2 ,19/10/2022,818.96
45657233,Responsive Repairs,Repairs,Responsive Repairs,3rd Party Payments,Contract Payments,CARPET WAREHOUSE SWINDON LTD,SN2 ,10/10/2022,769.28
47994234,Responsive Repairs,Repairs,Responsive Repairs,3rd Party Payments,Contract Payments,CARPET WAREHOUSE SWINDON LTD,SN2 ,19/10/2022,630.07
49145233,Responsive Repairs,Repairs,Responsive Repairs,3rd Party Payments,Contract Payments,CARPET WAREHOUSE SWINDON LTD,SN2 ,26/10/2022,"1,612.69"
49144233,Responsive Repairs,Repairs,Responsive Repairs,3rd Party Payments,Contract Payments,CARPET WAREHOUSE SWINDON LTD,SN2 ,26/10/2022,"1,173.41"
49143233,Responsive Repairs,Repairs,Responsive Repairs,3rd Party Payments,Contract Payments,CARPET WAREHOUSE SWINDON LTD,SN2 ,26/10/2022,865.53
49139233,Responsive Repairs,Repairs,Responsive Repairs,3rd Party Payments,Contract Payments,CARPET WAREHOUSE SWINDON LTD,SN2 ,26/10/2022,"2,144.28"
48001233,Responsive Repairs,Repairs,Responsive Repairs,3rd Party Payments,Contract Payments,CARPET WAREHOUSE SWINDON LTD,SN2 ,19/10/2022,700.00
50169233,Learning Disabilities,Adults,Learning Disability 26 - 64,Transfer Payments,Personal Budget - Direct Payments - Domiciliary Care,REDACTED PERSONAL DATA,SN6 ,31/10/2022,"2,279.00"
45619233,Traded Services,"Education, Inclusion and Skills",Plas Pencelli Outdoor Education Centre,Supplies and Services,Materials,CASTELL HOWELL FOODS LIMITED,SA14,10/10/2022,482.71
45621233,Traded Services,"Education, Inclusion and Skills",Plas Pencelli Outdoor Education Centre,Supplies and Services,Materials,CASTELL HOWELL FOODS LIMITED,SA14,10/10/2022,515.66
45620233,Traded Services,"Education, Inclusion and Skills",Plas Pencelli Outdoor Education Centre,Supplies and Services,Materials,CASTELL HOWELL FOODS LIMITED,SA14,10/10/2022,21.78
45620233,Traded Services,"Education, Inclusion and Skills",Plas Pencelli Outdoor Education Centre,Supplies and Services,Materials,CASTELL HOWELL FOODS LIMITED,SA14,10/10/2022,770.10
45619233,Traded Services,"Education, Inclusion and Skills",Plas Pencelli Outdoor Education Centre,Supplies and Services,Materials,CASTELL HOWELL FOODS LIMITED,SA14,10/10/2022,"1,499.27"
45621233,Traded Services,"Education, Inclusion and Skills",Plas Pencelli Outdoor Education Centre,Supplies and Services,Materials,CASTELL HOWELL FOODS LIMITED,SA14,10/10/2022,255.01
47990233,Streetsmart,Streetsmart,Waterside Depot,Premises Costs,Water,CASTLE WATER LTD,PH10,19/10/2022,688.75
45138233,,,Balance Sheet,Balance Sheet & Recharge,Water invoices,CASTLE WATER LTD,PH10,07/10/2022,"26,660.73"
47264259,Learning Disabilities,Adults,Learning Disability 26 - 64,3rd Party Payments,Supported Lodgings,CATHEDRAL HOMES,GL1 ,14/10/2022,"2,176.20"
47264259,Learning Disabilities,Adults,Learning Disability 26 - 64,3rd Party Payments,Supported Lodgings,CATHEDRAL HOMES,GL1 ,14/10/2022,"3,018.60"
47264259,Learning Disabilities,Adults,Learning Disability 26 - 64,3rd Party Payments,Supported Lodgings,CATHEDRAL HOMES,GL1 ,14/10/2022,"1,597.04"
47264259,Learning Disabilities,Adults,Learning Disability 26 - 64,3rd Party Payments,Supported Lodgings,CATHEDRAL HOMES,GL1 ,14/10/2022,"4,176.92"
47264259,Learning Disabilities,Adults,Learning Disability 26 - 64,3rd Party Payments,Supported Lodgings,CATHEDRAL HOMES,GL1 ,14/10/2022,631.80
47264259,Learning Disabilities,Adults,Learning Disability 26 - 64,Income,Client Contribution - Supported Living,CATHEDRAL HOMES,GL1 ,14/10/2022,-414.20
45937234,Early Years Block,DSG Skills and Attainment,Free Nursery Education Commissioning - two year olds,3rd Party Payments,Contracts - Child Care,REDACTED PERSONAL DATA,SN5 ,12/10/2022,579.60
48243233,Learning Disabilities,Adults,Learning Disability 26 - 64,3rd Party Payments,Supported Accommodation Scheme,REDACTED PERSONAL DATA,SN6 ,19/10/2022,"2,058.96"
48243233,Learning Disabilities,Adults,Learning Disability 26 - 64,3rd Party Payments,Supported Accommodation Scheme,REDACTED PERSONAL DATA,SN6 ,19/10/2022,"1,671.04"
48243233,Learning Disabilities,Adults,Learning Disability 26 - 64,3rd Party Payments,Supported Accommodation Scheme,REDACTED PERSONAL DATA,SN6 ,19/10/2022,"2,444.96"
48073233,Social Care,"Children, Families and Community Health Services",External Placements,3rd Party Payments,Semi Independent,CEDAR HOPE CARE SERVICES LTD,RG1 ,19/10/2022,"6,888.00"
48074233,Social Care,"Children, Families and Community Health Services",External Placements,3rd Party Payments,Semi Independent,CEDAR HOPE CARE SERVICES LTD,RG1 ,19/10/2022,"2,952.00"
48072233,Social Care,"Children, Families and Community Health Services",External Placements,3rd Party Payments,Semi Independent,CEDAR HOPE CARE SERVICES LTD,RG1 ,19/10/2022,"2,296.00"
47293233,Physical Support,Adults,Physical Support 65 and over,3rd Party Payments,Personal Budget - Domiciliary care,CELTIC CARE SERVICES LTD,SN15,14/10/2022,"1,666.16"
47292233,Mental Health,Adults,Mental Health 65 and over,3rd Party Payments,Personal Budget - Domiciliary care,CELTIC CARE SERVICES LTD,SN15,14/10/2022,582.80
47294233,Physical Support,Adults,Physical Support 65 and over,3rd Party Payments,Personal Budget - Domiciliary care,CELTIC CARE SERVICES LTD,SN15,14/10/2022,"1,457.00"
49397238,Physical Support,Adults,Physical Support 65 and over,3rd Party Payments,Personal Budget - Domiciliary care,CELTIC CARE SERVICES LTD,SN15,26/10/2022,"2,614.32"
49396260,Physical Support,Adults,Physical Support 65 and over,3rd Party Payments,Personal Budget - Domiciliary care,CELTIC CARE SERVICES LTD,SN15,26/10/2022,"1,654.80"
49396261,Physical Support,Adults,Physical Support 65 and over,3rd Party Payments,Personal Budget - Domiciliary care,CELTIC CARE SERVICES LTD,SN15,26/10/2022,"1,452.40"
47291233,Physical Support,Adults,Physical Support 65 and over,3rd Party Payments,Personal Budget - Domiciliary care,CELTIC CARE SERVICES LTD,SN15,14/10/2022,"2,622.60"
49396263,Physical Support,Adults,Physical Support 65 and over,3rd Party Payments,Personal Budget - Domiciliary care,CELTIC CARE SERVICES LTD,SN15,26/10/2022,"1,433.94"
49397234,Mental Health,Adults,Mental Health 65 and over,3rd Party Payments,Personal Budget - Domiciliary care,CELTIC CARE SERVICES LTD,SN15,26/10/2022,580.96
47028233,Early Years Block,DSG Skills and Attainment,Free Nursery Education Commissioning - three & four  year olds,3rd Party Payments,Contracts - Child Care,CENTRAL PRE-SCHOOL,SN1 ,19/10/2022,"2,280.00"
47029236,Early Years Block,DSG Skills and Attainment,Free Nursery Education Commissioning - three & four  year olds,3rd Party Payments,Contracts - Child Care,CENTRAL PRE-SCHOOL,SN1 ,19/10/2022,"1,368.00"
47709233,Disabled Children,"Children, Families and Community Health Services",Aiming High for Disabled Children,3rd Party Payments,Cash Support,REDACTED PERSONAL DATA,SN3 ,19/10/2022,682.20
48236233,Void Repairs,Supervision & Management,Void Property Repairs,3rd Party Payments,Contract Payments,CHARLES HARDING ESTATE AGENTS LIMITED,SN1 ,19/10/2022,35.00
48235234,Void Repairs,Supervision & Management,Void Property Repairs,3rd Party Payments,Contract Payments,CHARLES HARDING ESTATE AGENTS LIMITED,SN1 ,19/10/2022,35.00
46492233,Other Repairs,Repairs,Unallocated job costs from OPEN system,Premises Costs,Maintenance - Buildings,CHARLES HARDING ESTATE AGENTS LIMITED,SN1 ,12/10/2022,30.00
49961233,Lydiard Park,Streetsmart,Lydiard : Forest Caf�,Supplies and Services,Confectionary,CHARLES SAUNDERS LTD,BS37,31/10/2022,577.66
47869233,Lydiard Park,Streetsmart,Lydiard : Hotel Operations,Supplies and Services,Materials,CHARLES SAUNDERS LTD,BS37,19/10/2022,51.36
46305233,Lydiard Park,Streetsmart,Lydiard : Forest Caf�,Supplies and Services,Confectionary,CHARLES SAUNDERS LTD,BS37,12/10/2022,407.76
49961233,Lydiard Park,Streetsmart,Lydiard : Forest Caf�,Supplies and Services,Food,CHARLES SAUNDERS LTD,BS37,31/10/2022,310.44
49960233,Lydiard Park,Streetsmart,Lydiard : Hotel Operations,Supplies and Services,Food,CHARLES SAUNDERS LTD,BS37,31/10/2022,132.05
46779233,Lydiard Park,Streetsmart,Lydiard : Forest Caf�,Supplies and Services,Confectionary,CHARLES SAUNDERS LTD,BS37,14/10/2022,39.50
49969233,Lydiard Park,Streetsmart,Lydiard : Forest Caf�,Supplies and Services,Food,CHARLES SAUNDERS LTD,BS37,31/10/2022,63.10
47869233,Lydiard Park,Streetsmart,Lydiard : Hotel Operations,Supplies and Services,Food,CHARLES SAUNDERS LTD,BS37,19/10/2022,30.70
46779233,Lydiard Park,Streetsmart,Lydiard : Forest Caf�,Supplies and Services,Food,CHARLES SAUNDERS LTD,BS37,14/10/2022,230.11
49965234,Lydiard Park,Streetsmart,Lydiard : Forest Caf�,Supplies and Services,Materials,CHARLES SAUNDERS LTD,BS37,31/10/2022,24.87
46779233,Lydiard Park,Streetsmart,Lydiard : Forest Caf�,Supplies and Services,Materials,CHARLES SAUNDERS LTD,BS37,14/10/2022,11.04
49965234,Lydiard Park,Streetsmart,Lydiard : Forest Caf�,Supplies and Services,Confectionary,CHARLES SAUNDERS LTD,BS37,31/10/2022,58.16
46779233,Lydiard Park,Streetsmart,Lydiard : Forest Caf�,Supplies and Services,Confectionary,CHARLES SAUNDERS LTD,BS37,14/10/2022,339.80
46305233,Lydiard Park,Streetsmart,Lydiard : Forest Caf�,Supplies and Services,Confectionary,CHARLES SAUNDERS LTD,BS37,12/10/2022,163.36
46305233,Lydiard Park,Streetsmart,Lydiard : Forest Caf�,Supplies and Services,Food,CHARLES SAUNDERS LTD,BS37,12/10/2022,145.89
49971233,Lydiard Park,Streetsmart,Lydiard : Coach House Caf�,Supplies and Services,Confectionary,CHARLES SAUNDERS LTD,BS37,31/10/2022,95.96
46950233,Lydiard Park,Streetsmart,Lydiard : Coach House Caf�,Supplies and Services,Confectionary,CHARLES SAUNDERS LTD,BS37,14/10/2022,95.96
47806233,Lydiard Park,Streetsmart,Lydiard : Hotel Operations,Supplies and Services,Food,CHARLES SAUNDERS LTD,BS37,19/10/2022,497.42
49971233,Lydiard Park,Streetsmart,Lydiard : Coach House Caf�,Supplies and Services,Food,CHARLES SAUNDERS LTD,BS37,31/10/2022,189.90
46950233,Lydiard Park,Streetsmart,Lydiard : Coach House Caf�,Supplies and Services,Food,CHARLES SAUNDERS LTD,BS37,14/10/2022,38.05
46313233,Lydiard Park,Streetsmart,Lydiard : Forest Caf�,Supplies and Services,Materials,CHARLES SAUNDERS LTD,BS37,12/10/2022,26.70
49969233,Lydiard Park,Streetsmart,Lydiard : Forest Caf�,Supplies and Services,Confectionary,CHARLES SAUNDERS LTD,BS37,31/10/2022,405.66
47869233,Lydiard Park,Streetsmart,Lydiard : Hotel Operations,Supplies and Services,Food,CHARLES SAUNDERS LTD,BS37,19/10/2022,430.88
46950233,Lydiard Park,Streetsmart,Lydiard : Coach House Caf�,Supplies and Services,Confectionary,CHARLES SAUNDERS LTD,BS37,14/10/2022,362.66
46313233,Lydiard Park,Streetsmart,Lydiard : Forest Caf�,Supplies and Services,Confectionary,CHARLES SAUNDERS LTD,BS37,12/10/2022,39.40
46313233,Lydiard Park,Streetsmart,Lydiard : Forest Caf�,Supplies and Services,Food,CHARLES SAUNDERS LTD,BS37,12/10/2022,675.14
49960233,Lydiard Park,Streetsmart,Lydiard : Hotel Operations,Supplies and Services,Materials,CHARLES SAUNDERS LTD,BS37,31/10/2022,326.28
49971233,Lydiard Park,Streetsmart,Lydiard : Coach House Caf�,Supplies and Services,Confectionary,CHARLES SAUNDERS LTD,BS37,31/10/2022,475.39
49961233,Lydiard Park,Streetsmart,Lydiard : Forest Caf�,Supplies and Services,Confectionary,CHARLES SAUNDERS LTD,BS37,31/10/2022,267.64
46313233,Lydiard Park,Streetsmart,Lydiard : Forest Caf�,Supplies and Services,Confectionary,CHARLES SAUNDERS LTD,BS37,12/10/2022,"1,546.70"
49965234,Lydiard Park,Streetsmart,Lydiard : Forest Caf�,Supplies and Services,Food,CHARLES SAUNDERS LTD,BS37,31/10/2022,424.59
46779233,Lydiard Park,Streetsmart,Lydiard : Forest Caf�,Supplies and Services,Food,CHARLES SAUNDERS LTD,BS37,14/10/2022,15.35
47806233,Lydiard Park,Streetsmart,Lydiard : Hotel Operations,Supplies and Services,Food,CHARLES SAUNDERS LTD,BS37,19/10/2022,9.68
47263233,Physical Support,Adults,Physical Support 65 and over,Income,Client Contribution - Nursing,CHERITON (SW CARE) LTD,GL52,14/10/2022,"2,982.05"
47263233,Physical Support,Adults,Physical Support 65 and over,3rd Party Payments,Residential Care,CHERITON (SW CARE) LTD,GL52,14/10/2022,"2,384.04"
47263233,Physical Support,Adults,Physical Support 65 and over,3rd Party Payments,Residential Care,CHERITON (SW CARE) LTD,GL52,14/10/2022,"2,560.12"
47263233,Physical Support,Adults,Physical Support 65 and over,Income,Client Contribution - Nursing,CHERITON (SW CARE) LTD,GL52,14/10/2022,-925.64
47263233,Physical Support,Adults,Physical Support 65 and over,Income,Client Contribution - Nursing,CHERITON (SW CARE) LTD,GL52,14/10/2022,"-1,479.52"
47263233,Physical Support,Adults,Physical Support 65 and over,Income,Client Contribution - Nursing,CHERITON (SW CARE) LTD,GL52,14/10/2022,"-2,600.26"
47263233,Physical Support,Adults,Physical Support 65 and over,3rd Party Payments,Nursing Care,CHERITON (SW CARE) LTD,GL52,14/10/2022,"2,560.12"
48057233,Physical Support,Adults,Physical Support 65 and over,3rd Party Payments,Other Care Packages,CHERITON (SW CARE) LTD,SN1 ,19/10/2022,"9,000.00"
47263233,Physical Support,Adults,Physical Support 65 and over,Income,Client Contribution - Nursing,CHERITON (SW CARE) LTD,GL52,14/10/2022,569.40
47263233,Physical Support,Adults,Physical Support 65 and over,Income,Client Contribution - Nursing,CHERITON (SW CARE) LTD,GL52,14/10/2022,"3,071.74"
47263233,Physical Support,Adults,Physical Support 65 and over,Income,Client Contribution - Nursing,CHERITON (SW CARE) LTD,GL52,14/10/2022,609.90
47263233,Physical Support,Adults,Physical Support 65 and over,Income,Client Contribution - Nursing,CHERITON (SW CARE) LTD,GL52,14/10/2022,75.92
47263233,Learning Disabilities,Adults,Learning Disability 65 and over,Income,Client Contribution - Nursing,CHERITON (SW CARE) LTD,GL52,14/10/2022,-620.03
47263233,Physical Support,Adults,Physical Support 65 and over,3rd Party Payments,Residential Care,CHERITON (SW CARE) LTD,GL52,14/10/2022,"2,668.72"
47263233,Physical Support,Adults,Physical Support 65 and over,3rd Party Payments,Residential Care,CHERITON (SW CARE) LTD,GL52,14/10/2022,"9,234.72"
47263233,Physical Support,Adults,Physical Support 65 and over,3rd Party Payments,Nursing Care,CHERITON (SW CARE) LTD,GL52,14/10/2022,"-2,554.33"
47263233,Physical Support,Adults,Physical Support 65 and over,Income,Client Contribution - Nursing,CHERITON (SW CARE) LTD,GL52,14/10/2022,-968.72
47263233,Physical Support,Adults,Physical Support 65 and over,Income,Client Contribution - Nursing,CHERITON (SW CARE) LTD,GL52,14/10/2022,"-4,396.79"
47263233,Learning Disabilities,Adults,Learning Disability 65 and over,3rd Party Payments,Nursing Care,CHERITON (SW CARE) LTD,GL52,14/10/2022,"2,213.75"
47263233,Physical Support,Adults,Physical Support 65 and over,Income,Client Contribution - Residential,CHERITON (SW CARE) LTD,GL52,14/10/2022,-608.80
47263233,Physical Support,Adults,Physical Support 65 and over,Income,Client Contribution - Residential,CHERITON (SW CARE) LTD,GL52,14/10/2022,-610.00
47263233,Physical Support,Adults,Physical Support 65 and over,Income,Client Contribution - Residential,CHERITON (SW CARE) LTD,GL52,14/10/2022,"-2,264.56"
47263233,Physical Support,Adults,Physical Support 65 and over,3rd Party Payments,Nursing Care,CHERITON (SW CARE) LTD,GL52,14/10/2022,"-4,297.34"
47263233,Physical Support,Adults,Physical Support 65 and over,Income,Client Contribution - Nursing,CHERITON (SW CARE) LTD,GL52,14/10/2022,-678.48
47263233,Physical Support,Adults,Physical Support 65 and over,Income,Client Contribution - Residential,CHERITON (SW CARE) LTD,GL52,14/10/2022,-572.20
47263233,Physical Support,Adults,Physical Support 65 and over,3rd Party Payments,Nursing Care,CHERITON (SW CARE) LTD,GL52,14/10/2022,"2,384.04"
47263233,Physical Support,Adults,Physical Support 65 and over,3rd Party Payments,Nursing Care,CHERITON (SW CARE) LTD,GL52,14/10/2022,-340.58
47263233,Physical Support,Adults,Physical Support 65 and over,Income,Client Contribution - Residential,CHERITON (SW CARE) LTD,GL52,14/10/2022,-627.80
47263233,Physical Support,Adults,Physical Support 65 and over,Income,Client Contribution - Residential,CHERITON (SW CARE) LTD,GL52,14/10/2022,-605.40
47263233,Physical Support,Adults,Physical Support 65 and over,Income,Client Contribution - Nursing,CHERITON (SW CARE) LTD,GL52,14/10/2022,-609.90
47263233,Physical Support,Adults,Physical Support 18 - 64,3rd Party Payments,Residential Care,CHERITON (SW CARE) LTD,GL52,14/10/2022,"2,384.04"
47712233,Disabled Children,"Children, Families and Community Health Services",DCT Daytime Short Breaks,Transfer Payments,Personal Budget - Direct Payments - Other,REDACTED PERSONAL DATA,SN1 ,19/10/2022,"2,304.00"
47603261,Responsive Repairs,Repairs,Responsive Repairs,3rd Party Payments,Contract Payments,CHILD SCAFFOLDING LTD,SN1 ,19/10/2022,195.00
45128249,Responsive Repairs,Repairs,Responsive Repairs,3rd Party Payments,Contract Payments,CHILD SCAFFOLDING LTD,SN1 ,07/10/2022,480.00
47603261,Responsive Repairs,Repairs,Responsive Repairs,3rd Party Payments,Contract Payments,CHILD SCAFFOLDING LTD,SN1 ,19/10/2022,661.00
47603262,Responsive Repairs,Repairs,Responsive Repairs,3rd Party Payments,Contract Payments,CHILD SCAFFOLDING LTD,SN1 ,19/10/2022,840.00
48182233,Responsive Repairs,Repairs,Responsive Repairs,3rd Party Payments,Contract Payments,CHILD SCAFFOLDING LTD,SN1 ,19/10/2022,620.00
47603260,Responsive Repairs,Repairs,Responsive Repairs,3rd Party Payments,Contract Payments,CHILD SCAFFOLDING LTD,SN1 ,19/10/2022,420.00
47603261,Responsive Repairs,Repairs,Responsive Repairs,3rd Party Payments,Contract Payments,CHILD SCAFFOLDING LTD,SN1 ,19/10/2022,260.00
45128248,Responsive Repairs,Repairs,Responsive Repairs,3rd Party Payments,Contract Payments,CHILD SCAFFOLDING LTD,SN1 ,07/10/2022,580.00
45128250,Responsive Repairs,Repairs,Responsive Repairs,3rd Party Payments,Contract Payments,CHILD SCAFFOLDING LTD,SN1 ,07/10/2022,660.00
47603261,Responsive Repairs,Repairs,Responsive Repairs,3rd Party Payments,Contract Payments,CHILD SCAFFOLDING LTD,SN1 ,19/10/2022,325.00
48181233,Responsive Repairs,Repairs,Responsive Repairs,3rd Party Payments,Contract Payments,CHILD SCAFFOLDING LTD,SN1 ,19/10/2022,680.00
47603261,Responsive Repairs,Repairs,Responsive Repairs,3rd Party Payments,Contract Payments,CHILD SCAFFOLDING LTD,SN1 ,19/10/2022,65.00
49012233,Responsive Repairs,Repairs,Responsive Repairs,3rd Party Payments,Contract Payments,CHILD SCAFFOLDING LTD,SN1 ,24/10/2022,880.00
44320233,Highways & Transport,Highways & Transport,Traffic Management & Road Safety,Supplies and Services,Services,CHILD SEAT SAFETY LTD,PR26,03/10/2022,675.00
48577233,Social Care,"Children, Families and Community Health Services",Looked After Children Service,3rd Party Payments,Personal Needs,CHILDREN'S CONTACT SERVICES LTD,BS9 ,21/10/2022,"1,669.60"
45044233,Social Care,"Children, Families and Community Health Services",Unaccompanied Asylum Seeking Children (UASC),3rd Party Payments,Independent Fostering Agency Placements,REDACTED PERSONAL DATA,B60 ,07/10/2022,"3,393.00"
49256236,Social Care,"Children, Families and Community Health Services",Unaccompanied Asylum Seeking Children (UASC),3rd Party Payments,Independent Fostering Agency Placements,REDACTED PERSONAL DATA,B60 ,26/10/2022,"3,506.10"
48621233,Parking & Bus lanes,Highway Operations and Car Parking,Bus Lane Enforcement,Supplies and Services,Materials,CHIPSIDE LTD,SN15,21/10/2022,"2,541.06"
48621233,Parking & Bus lanes,Highway Operations and Car Parking,Bus Lane Enforcement,Supplies and Services,Materials,CHIPSIDE LTD,SN15,21/10/2022,371.70
46104233,Parking & Bus lanes,Highway Operations and Car Parking,Car Parking,Supplies and Services,Fees,CHIPSIDE LTD,SN15,12/10/2022,"1,000.00"
48621233,Parking & Bus lanes,Highway Operations and Car Parking,Street Parking,Supplies and Services,Materials,CHIPSIDE LTD,SN15,21/10/2022,383.25
48621233,Parking & Bus lanes,Highway Operations and Car Parking,Street Parking,Supplies and Services,Materials,CHIPSIDE LTD,SN15,21/10/2022,845.88
46989233,Parking & Bus lanes,Highway Operations and Car Parking,Street Parking,Supplies and Services,Fees,CHIPSIDE LTD,SN15,14/10/2022,922.18
45937236,Early Years Block,DSG Skills and Attainment,Free Nursery Education Commissioning - three & four  year olds,3rd Party Payments,Contracts - Child Care,CHISELDON PRIMARY SCHOOL,SN4 ,12/10/2022,"2,163.00"
47861236,DSG Other Funding,DSG Skills and Attainment,DFE Additional Grants,Supplies and Services,Payments to Educational Bodies,CHISELDON PRIMARY SCHOOL,SN4 ,19/10/2022,"1,051.25"
47748235,Schools - Primary,DSG Skills and Attainment,Primary School Budgets,3rd Party Payments,Mainstream Delegated Funding,CHISELDON PRIMARY SCHOOL,SN4 ,19/10/2022,"62,190.00"
47787233,DSG Other Funding,DSG Skills and Attainment,DFE Additional Grants,3rd Party Payments,Payment of Pupil Premium to school,CHISELDON PRIMARY SCHOOL,SN4 ,19/10/2022,"3,679.00"
50095235,DSG Other Funding,DSG Skills and Attainment,DFE Additional Grants,Supplies and Services,Payments to Educational Bodies,CHISELDON PRIMARY SCHOOL,SN4 ,31/10/2022,"1,417.50"
47264275,Learning Disabilities,Adults,Learning Disability 26 - 64,3rd Party Payments,Residential Care,CHOSEN CARE LTD,GL3 ,14/10/2022,"7,145.08"
47264275,Learning Disabilities,Adults,Learning Disability 26 - 64,Income,Client Contribution - Residential,CHOSEN CARE LTD,GL3 ,14/10/2022,-319.00
47264275,Learning Disabilities,Adults,Learning Disability 65 and over,3rd Party Payments,Residential Care,CHOSEN CARE LTD,GL3 ,14/10/2022,"7,297.20"
47264275,Learning Disabilities,Adults,Learning Disability 26 - 64,3rd Party Payments,Residential Care,CHOSEN CARE LTD,GL3 ,14/10/2022,"7,137.76"
47264275,Learning Disabilities,Adults,Learning Disability 26 - 64,3rd Party Payments,Residential Care,CHOSEN CARE LTD,GL3 ,14/10/2022,"11,209.16"
47264275,Learning Disabilities,Adults,Learning Disability 26 - 64,Income,Client Contribution - Residential,CHOSEN CARE LTD,GL3 ,14/10/2022,-359.00
47264275,Learning Disabilities,Adults,Learning Disability 65 and over,Income,Client Contribution - Residential,CHOSEN CARE LTD,GL3 ,14/10/2022,-605.80
50202235,Physical Support,Adults,Physical Support 18 - 64,Transfer Payments,Personal Budget - Direct Payments - Domiciliary Care,REDACTED PERSONAL DATA,SN25,31/10/2022,763.29
48947233,Social Care,"Children, Families and Community Health Services",Placement Adoption Service,3rd Party Payments,Adoption Allowances,REDACTED PERSONAL DATA,SN6 ,24/10/2022,699.84
45866237,Social Care,"Children, Families and Community Health Services",Placement Adoption Service,3rd Party Payments,Adoption Allowances,REDACTED PERSONAL DATA,SN6 ,10/10/2022,"1,055.64"
48947234,Social Care,"Children, Families and Community Health Services",Placement Adoption Service,3rd Party Payments,Adoption Allowances,REDACTED PERSONAL DATA,SN6 ,24/10/2022,"1,055.64"
45866236,Social Care,"Children, Families and Community Health Services",Placement Adoption Service,3rd Party Payments,Adoption Allowances,REDACTED PERSONAL DATA,SN6 ,10/10/2022,699.84
46002233,Disabled Children,"Children, Families and Community Health Services",DCT Daytime Short Breaks,3rd Party Payments,Respite Care,REDACTED PERSONAL DATA,CV1 ,12/10/2022,586.60
44977234,Social Care,"Children, Families and Community Health Services",External Placements,3rd Party Payments,Independent Fostering Agency Placements,CHRYSALISCARE LTD,DA7 ,05/10/2022,"5,881.01"
44977233,Social Care,"Children, Families and Community Health Services",External Placements,3rd Party Payments,Independent Fostering Agency Placements,CHRYSALISCARE LTD,DA7 ,05/10/2022,"6,589.67"
46963233,Sheltered Accomodation,Special Services,Sheltered Housing Management General,Supplies and Services,Equipment,CHUBB FIRE & SECURITY T/A CHUBB COMMUNITY CARE,BB1 ,14/10/2022,"1,895.00"
47264309,Physical Support,Adults,Physical Support 65 and over,Income,Client Contribution - Nursing,CHURCH VIEW,SN3 ,14/10/2022,-606.52
47264309,Physical Support,Adults,Physical Support 65 and over,Income,Client Contribution - Nursing,CHURCH VIEW,SN3 ,14/10/2022,-351.16
47264309,Physical Support,Adults,Physical Support 65 and over,3rd Party Payments,Nursing Care,CHURCH VIEW,SN3 ,14/10/2022,"-8,603.25"
47264309,Physical Support,Adults,Physical Support 65 and over,Income,Client Contribution - Nursing,CHURCH VIEW,SN3 ,14/10/2022,-610.00
47264309,Physical Support,Adults,Physical Support 65 and over,3rd Party Payments,Nursing Care,CHURCH VIEW,SN3 ,14/10/2022,"2,468.69"
47264309,Physical Support,Adults,Physical Support 65 and over,3rd Party Payments,Nursing Care,CHURCH VIEW,SN3 ,14/10/2022,"3,383.02"
47264309,Physical Support,Adults,Physical Support 65 and over,3rd Party Payments,Nursing Care,CHURCH VIEW,SN3 ,14/10/2022,"5,235.68"
47264309,Physical Support,Adults,Physical Support 65 and over,3rd Party Payments,Nursing Care,CHURCH VIEW,SN3 ,14/10/2022,"7,385.71"
47264309,Physical Support,Adults,Physical Support 65 and over,Income,Client Contribution - Nursing,CHURCH VIEW,SN3 ,14/10/2022,-763.24
47264309,Physical Support,Adults,Physical Support 65 and over,Income,Client Contribution - Nursing,CHURCH VIEW,SN3 ,14/10/2022,-535.88
47264309,Physical Support,Adults,Physical Support 65 and over,Income,Client Contribution - Nursing,CHURCH VIEW,SN3 ,14/10/2022,"-1,802.48"
47264309,Physical Support,Adults,Physical Support 65 and over,Income,Client Contribution - Nursing,CHURCH VIEW,SN3 ,14/10/2022,"-1,288.96"
47264309,Physical Support,Adults,Physical Support 65 and over,Income,Client Contribution - Nursing,CHURCH VIEW,SN3 ,14/10/2022,-620.28
47264309,Physical Support,Adults,Physical Support 65 and over,Income,Client Contribution - Nursing,CHURCH VIEW,SN3 ,14/10/2022,-833.52
47264309,Physical Support,Adults,Physical Support 65 and over,Income,Client Contribution - Nursing,CHURCH VIEW,SN3 ,14/10/2022,-741.88
47264309,Physical Support,Adults,Physical Support 65 and over,3rd Party Payments,Nursing Care,CHURCH VIEW,SN3 ,14/10/2022,"-4,367.42"
47264309,Physical Support,Adults,Physical Support 65 and over,Income,Client Contribution - Nursing,CHURCH VIEW,SN3 ,14/10/2022,-911.16
47264309,Physical Support,Adults,Physical Support 65 and over,3rd Party Payments,Nursing Care,CHURCH VIEW,SN3 ,14/10/2022,"4,200.00"
47264309,Physical Support,Adults,Physical Support 65 and over,3rd Party Payments,Nursing Care,CHURCH VIEW,SN3 ,14/10/2022,"2,668.72"
47264309,Physical Support,Adults,Physical Support 65 and over,3rd Party Payments,Nursing Care,CHURCH VIEW,SN3 ,14/10/2022,"-3,154.25"
47264309,Physical Support,Adults,Physical Support 65 and over,Income,Client Contribution - Nursing,CHURCH VIEW,SN3 ,14/10/2022,-999.64
47264309,Physical Support,Adults,Physical Support 65 and over,Income,Client Contribution - Nursing,CHURCH VIEW,SN3 ,14/10/2022,-910.56
47264309,Physical Support,Adults,Physical Support 65 and over,3rd Party Payments,Nursing Care,CHURCH VIEW,SN3 ,14/10/2022,"2,560.12"
47264309,Physical Support,Adults,Physical Support 65 and over,3rd Party Payments,Nursing Care,CHURCH VIEW,SN3 ,14/10/2022,"4,400.00"
47264335,Learning Disabilities,Adults,Learning Disability 26 - 64,Income,Client Contribution - Residential,CIDERSTONE HOUSE,SN25,14/10/2022,-677.60
47264335,Learning Disabilities,Adults,Learning Disability 26 - 64,Income,Client Contribution - Residential,CIDERSTONE HOUSE,SN25,14/10/2022,-438.80
47264335,Learning Disabilities,Adults,Learning Disability 26 - 64,Income,Client Contribution - Residential,CIDERSTONE HOUSE,SN25,14/10/2022,-425.60
47264335,Learning Disabilities,Adults,Learning Disability 26 - 64,3rd Party Payments,Residential Care,CIDERSTONE HOUSE,SN25,14/10/2022,"11,049.40"
47264335,Learning Disabilities,Adults,Learning Disability 26 - 64,3rd Party Payments,Residential Care,CIDERSTONE HOUSE,SN25,14/10/2022,"9,895.88"
47264335,Learning Disabilities,Adults,Learning Disability 26 - 64,3rd Party Payments,Residential Care,CIDERSTONE HOUSE,SN25,14/10/2022,"9,703.96"
47264335,Learning Disabilities,Adults,Learning Disability 26 - 64,3rd Party Payments,Residential Care,CIDERSTONE HOUSE,SN25,14/10/2022,"10,018.48"
47264335,Learning Disabilities,Adults,Learning Disability 26 - 64,Income,Client Contribution - Residential,CIDERSTONE HOUSE,SN25,14/10/2022,-423.00
47264335,Learning Disabilities,Adults,Learning Disability 26 - 64,3rd Party Payments,Residential Care,CIDERSTONE HOUSE,SN25,14/10/2022,"10,495.76"
47264335,Learning Disabilities,Adults,Learning Disability 26 - 64,Income,Client Contribution - Residential,CIDERSTONE HOUSE,SN25,14/10/2022,-414.20
47688236,High Needs Block,DSG Skills and Attainment,Post 16 - New Responsibilties,3rd Party Payments,FE Colleges,CIRENCESTER COLLEGE,GL7 ,19/10/2022,"3,226.50"
47687233,High Needs Block,DSG Skills and Attainment,Out of Borough School Fees,3rd Party Payments,Other Local Authority Mainstream Schools- Pre 16,CIRENCESTER KINGSHILL SCHOOL,GL7 ,19/10/2022,582.00
47686233,High Needs Block,DSG Skills and Attainment,Out of Borough School Fees,3rd Party Payments,Other Local Authority Mainstream Schools- Pre 16,CIRENCESTER KINGSHILL SCHOOL,GL7 ,19/10/2022,582.00
48375233,Homelessness and Travellers,Housing Services,Leased Private Managed Accommodation,Transfer Payments,Payment of Costs,REDACTED PERSONAL DATA,SN5 ,24/10/2022,575.00
Corporate Card,Community Health & Wellbeing,Public Health,Community Health and Wellbeing Management,Supplies and Services,Materials,Citrix,,10/10/2022,630.24
45519233,Planned Maintenance Programme,HRA Capital Financing,Exceptional Extensive,Capital,Contractor Payments,CITY ENERGY NETWORK LTD,CF10,07/10/2022,"1,924.00"
45197233,Planned Maintenance Programme,HRA Capital Financing,Exceptional Extensive,Capital,Contractor Payments,CITY ENERGY NETWORK LTD,CF10,07/10/2022,586.40
45198233,Planned Maintenance Programme,HRA Capital Financing,Exceptional Extensive,Capital,Contractor Payments,CITY ENERGY NETWORK LTD,CF10,07/10/2022,586.40
46146233,Elections & Democracy,Elections and Democracy,Register of Electors,Supplies and Services,Materials,CIVICA ELECTION SERVICES LIMITED,N8 0,12/10/2022,"2,220.68"
48145236,Elections & Democracy,Elections and Democracy,Local Elections,Supplies and Services,Materials,CIVICA ELECTION SERVICES LIMITED,N8 0,19/10/2022,846.67
46146233,Elections & Democracy,Elections and Democracy,Register of Electors,Supplies and Services,Post,CIVICA ELECTION SERVICES LIMITED,N8 0,12/10/2022,"1,931.75"
48145236,Elections & Democracy,Elections and Democracy,Local Elections,Supplies and Services,Post,CIVICA ELECTION SERVICES LIMITED,N8 0,19/10/2022,394.77
44301233,Libraries,"Education, Inclusion and Skills",Central,Supplies and Services,Services,CIVICA UK LTD,DY1 ,03/10/2022,"23,000.00"
45133233,Human Resources and Organisational Development,"People, Culture and Organisational Resilience",HR System,Supplies and Services,Services,CIVICA UK LTD,DY1 ,07/10/2022,"184,175.05"
46159233,Planning & Regulatory,Strategic Planning,Economy & Development Management,Employees,Temporary / Agency - by Accounts Payable,REDACTED PERSONAL DATA,BS37,12/10/2022,"6,028.80"
47723233,Disabled Children,"Children, Families and Community Health Services",DCT Daytime Short Breaks,Transfer Payments,Personal Budget - Direct Payments - Other,REDACTED PERSONAL DATA,SN3 ,19/10/2022,"8,021.20"
45937242,Early Years Block,DSG Skills and Attainment,Free Nursery Education Commissioning - three & four  year olds,3rd Party Payments,Contracts - Child Care,REDACTED PERSONAL DATA,SN2 ,12/10/2022,682.68
49460233,Care Management & Safeguarding,Adults,Local Safeguarding Board,Supplies and Services,Fees,CLARK WARD ASSOCIATES LTD,SN1 ,28/10/2022,"1,160.00"
47032233,Social Care,"Children, Families and Community Health Services",Placement Fostering Service,Supplies and Services,Service Charges,CLARK WARD ASSOCIATES LTD,SN1 ,14/10/2022,580.00
49106233,Property Regeneration,Property,Regeneration Schemes,Supplies and Services,Fees,CLARKE WILLMOTT LLP,BS1 ,26/10/2022,915.00
45179233,Early Years Block,DSG Skills and Attainment,Free Nursery Education Commissioning - three & four  year olds,Employees,Training,CLEAPSS,HP5 ,07/10/2022,"2,049.10"
45980233,Town Centre,"Economy, Growth and Place",Fleming Way Improvement Scheme,Capital,Contractor Payments,CLEAR CHANNEL UK LTD,GU22,12/10/2022,"5,012.93"
47380233,Customer Strategy & Operations,"People, Culture and Organisational Resilience",Cemeteries & Crematoria,Supplies and Services,Repairs & Maintenance,CLEAR SKIES SOFTWARE LTD,BS20,17/10/2022,"2,415.00"
45494233,Business Development,Supervision & Management,ICT & Administration,Supplies and Services,Equipment,CLOUD DIALOGS LTD,IP28,07/10/2022,"2,500.00"
45554233,Travel,Highways & Transport,Concessionary Travel,3rd Party Payments,Concessionary Travel Subsidy,COACHSTYLE LTD,SN14,07/10/2022,713.00
47264300,Physical Support,Adults,Physical Support 65 and over,3rd Party Payments,Residential Care,COATE WATER CARE CO LTD,SN3 ,14/10/2022,"3,328.00"
47264300,Physical Support,Adults,Physical Support 18 - 64,Income,Client Contribution - Residential,COATE WATER CARE CO LTD,SN3 ,14/10/2022,-359.00
47264300,Physical Support,Adults,Physical Support 65 and over,Income,Client Contribution - Residential,COATE WATER CARE CO LTD,SN3 ,14/10/2022,-893.72
47264300,Physical Support,Adults,Physical Support 65 and over,Income,Client Contribution - Residential,COATE WATER CARE CO LTD,SN3 ,14/10/2022,-727.20
47264300,Physical Support,Adults,Physical Support 65 and over,Income,Client Contribution - Residential,COATE WATER CARE CO LTD,SN3 ,14/10/2022,-732.00
47264300,Physical Support,Adults,Physical Support 65 and over,Income,Client Contribution - Residential,COATE WATER CARE CO LTD,SN3 ,14/10/2022,-630.56
47264300,Physical Support,Adults,Physical Support 65 and over,Income,Client Contribution - Residential,COATE WATER CARE CO LTD,SN3 ,14/10/2022,"-1,135.44"
47264300,Physical Support,Adults,Physical Support 65 and over,Income,Client Contribution - Residential,COATE WATER CARE CO LTD,SN3 ,14/10/2022,-713.24
47264300,Physical Support,Adults,Physical Support 65 and over,3rd Party Payments,Residential Care,COATE WATER CARE CO LTD,SN3 ,14/10/2022,"2,668.72"
47264300,Physical Support,Adults,Physical Support 65 and over,3rd Party Payments,Residential Care,COATE WATER CARE CO LTD,SN3 ,14/10/2022,"2,560.12"
47264300,Physical Support,Adults,Physical Support 65 and over,3rd Party Payments,Residential Care,COATE WATER CARE CO LTD,SN3 ,14/10/2022,"-4,480.21"
47264300,Physical Support,Adults,Physical Support 65 and over,Income,Client Contribution - Residential,COATE WATER CARE CO LTD,SN3 ,14/10/2022,"-1,434.76"
47264300,Physical Support,Adults,Physical Support 65 and over,Income,Client Contribution - Residential,COATE WATER CARE CO LTD,SN3 ,14/10/2022,-510.92
47264300,Physical Support,Adults,Physical Support 65 and over,Income,Client Contribution - Residential,COATE WATER CARE CO LTD,SN3 ,14/10/2022,-539.40
47264300,Physical Support,Adults,Physical Support 65 and over,Income,Client Contribution - Residential,COATE WATER CARE CO LTD,SN3 ,14/10/2022,-597.40
47264300,Physical Support,Adults,Physical Support 18 - 64,3rd Party Payments,Residential Care,COATE WATER CARE CO LTD,SN3 ,14/10/2022,"2,560.12"
47264300,Physical Support,Adults,Physical Support 18 - 64,3rd Party Payments,Residential Care,COATE WATER CARE CO LTD,SN3 ,14/10/2022,"-4,479.64"
47264300,Mental Health,Adults,Mental Health 65 and over,3rd Party Payments,Residential Care,COATE WATER CARE CO LTD,SN3 ,14/10/2022,"2,800.00"
47264300,Physical Support,Adults,Physical Support 65 and over,Income,Client Contribution - Residential,COATE WATER CARE CO LTD,SN3 ,14/10/2022,"1,502.30"
47264300,Physical Support,Adults,Physical Support 65 and over,3rd Party Payments,Residential Care,COATE WATER CARE CO LTD,SN3 ,14/10/2022,"-3,335.90"
47264300,Physical Support,Adults,Physical Support 65 and over,Income,Client Contribution - Residential,COATE WATER CARE CO LTD,SN3 ,14/10/2022,85.85
47264300,Physical Support,Adults,Physical Support 65 and over,Income,Client Contribution - Residential,COATE WATER CARE CO LTD,SN3 ,14/10/2022,-509.46
47264300,Physical Support,Adults,Physical Support 65 and over,Income,Client Contribution - Residential,COATE WATER CARE CO LTD,SN3 ,14/10/2022,-559.40
47264300,Physical Support,Adults,Physical Support 65 and over,Income,Client Contribution - Residential,COATE WATER CARE CO LTD,SN3 ,14/10/2022,-955.48
47264300,Physical Support,Adults,Physical Support 65 and over,Income,Client Contribution - Residential,COATE WATER CARE CO LTD,SN3 ,14/10/2022,444.86
47264300,Physical Support,Adults,Physical Support 65 and over,Income,Client Contribution - Residential,COATE WATER CARE CO LTD,SN3 ,14/10/2022,-954.00
47264300,Physical Support,Adults,Physical Support 65 and over,Income,Client Contribution - Residential,COATE WATER CARE CO LTD,SN3 ,14/10/2022,-506.20
47264257,Learning Disabilities,Adults,Learning Disability 26 - 64,3rd Party Payments,Residential Care,COCKLEBURY FARMHOUSE,SN15,14/10/2022,"8,288.00"
47264257,Learning Disabilities,Adults,Learning Disability 26 - 64,Income,Client Contribution - Residential,COCKLEBURY FARMHOUSE,SN15,14/10/2022,-425.60
48235233,Property & Assets,Property & Assets,General Enhancement Works Corporate Buildings,Capital,Contractor Payments,COLES SCAFFOLDING CONTRACTORS LTD,SN25,26/10/2022,"1,600.00"
48235233,Property & Assets,Property & Assets,General Enhancement Works Corporate Buildings,Capital,Contractor Payments,COLES SCAFFOLDING CONTRACTORS LTD,SN25,26/10/2022,600.00
47244233,NEV,"Economy, Growth and Place",Gablecross Junction,Capital,Professional Fees,COLLIERS INTERNATIONAL PROPERTY CONSULTANTS LTD,W1U ,14/10/2022,"2,400.00"
47241234,NEV,"Economy, Growth and Place",Gablecross Junction,Capital,Professional Fees,COLLIERS INTERNATIONAL PROPERTY CONSULTANTS LTD,W1U ,14/10/2022,"2,400.00"
47239233,NEV,"Economy, Growth and Place",Gablecross Junction,Capital,Professional Fees,COLLIERS INTERNATIONAL PROPERTY CONSULTANTS LTD,W1U ,28/10/2022,"2,400.00"
47242233,NEV,"Economy, Growth and Place",Gablecross Junction,Capital,Professional Fees,COLLIERS INTERNATIONAL PROPERTY CONSULTANTS LTD,W1U ,14/10/2022,"2,400.00"
47245233,NEV,"Economy, Growth and Place",Gablecross Junction,Capital,Professional Fees,COLLIERS INTERNATIONAL PROPERTY CONSULTANTS LTD,W1U ,14/10/2022,"2,400.00"
47264244,Learning Disabilities,Adults,Learning Disability 65 and over,3rd Party Payments,Residential Care,COMMUNITY ACCESS NETWORK LTD,SN25,14/10/2022,"4,817.08"
47264245,Learning Disabilities,Adults,Learning Disability 26 - 64,3rd Party Payments,Supported Lodgings,COMMUNITY ACCESS NETWORK LTD,SN25,14/10/2022,497.28
47264244,Learning Disabilities,Adults,Learning Disability 26 - 64,Income,Client Contribution - Residential,COMMUNITY ACCESS NETWORK LTD,SN25,14/10/2022,-293.60
47264245,Learning Disabilities,Adults,Learning Disability 26 - 64,Income,Client Contribution - Supported Living,COMMUNITY ACCESS NETWORK LTD,SN25,14/10/2022,-142.80
47264245,Learning Disabilities,Adults,Learning Disability 26 - 64,3rd Party Payments,Supported Lodgings,COMMUNITY ACCESS NETWORK LTD,SN25,14/10/2022,24.00
47264245,Learning Disabilities,Adults,Learning Disability 26 - 64,3rd Party Payments,Supported Lodgings,COMMUNITY ACCESS NETWORK LTD,SN25,14/10/2022,"1,342.76"
47264245,Learning Disabilities,Adults,Learning Disability 26 - 64,3rd Party Payments,Supported Lodgings,COMMUNITY ACCESS NETWORK LTD,SN25,14/10/2022,"1,207.68"
47264244,Learning Disabilities,Adults,Learning Disability 65 and over,Income,Client Contribution - Residential,COMMUNITY ACCESS NETWORK LTD,SN25,14/10/2022,-578.20
47264244,Learning Disabilities,Adults,Learning Disability 26 - 64,3rd Party Payments,Residential Care,COMMUNITY ACCESS NETWORK LTD,SN25,14/10/2022,"4,820.08"
47264245,Learning Disabilities,Adults,Learning Disability 26 - 64,3rd Party Payments,Supported Lodgings,COMMUNITY ACCESS NETWORK LTD,SN25,14/10/2022,"3,683.08"
48205233,Social Care,"Children, Families and Community Health Services",External Placements,3rd Party Payments,Independent Fostering Agency Placements,COMMUNITY FOSTER CARE,GL1 ,19/10/2022,"3,825.90"
48204234,Social Care,"Children, Families and Community Health Services",External Placements,3rd Party Payments,Independent Fostering Agency Placements,COMMUNITY FOSTER CARE,GL1 ,19/10/2022,"3,927.30"
48206233,Social Care,"Children, Families and Community Health Services",External Placements,3rd Party Payments,Independent Fostering Agency Placements,COMMUNITY FOSTER CARE,GL1 ,19/10/2022,"4,974.00"
47264301,Learning Disabilities,Adults,Learning Disability 26 - 64,3rd Party Payments,Residential Care,COMMUNITY THERAPEUTIC SERVICES LTD,BS22,14/10/2022,"11,398.08"
45011233,Social Care,"Children, Families and Community Health Services",Placement - Care Leaver Team,3rd Party Payments,Staying Put,COMPASS FOSTERING LONDON LTD,LE11,05/10/2022,"2,485.80"
45043235,Social Care,"Children, Families and Community Health Services",External Placements,3rd Party Payments,Independent Fostering Agency Placements,COMPASS FOSTERING WEST LTD,LE11,07/10/2022,"2,970.00"
45043245,Social Care,"Children, Families and Community Health Services",External Placements,3rd Party Payments,Independent Fostering Agency Placements,COMPASS FOSTERING WEST LTD,LE11,07/10/2022,-592.80
45043240,Social Care,"Children, Families and Community Health Services",External Placements,3rd Party Payments,Independent Fostering Agency Placements,COMPASS FOSTERING WEST LTD,LE11,07/10/2022,"3,334.50"
45043233,Social Care,"Children, Families and Community Health Services",External Placements,3rd Party Payments,Independent Fostering Agency Placements,COMPASS FOSTERING WEST LTD,LE11,07/10/2022,"3,334.50"
45043243,Social Care,"Children, Families and Community Health Services",External Placements,3rd Party Payments,Independent Fostering Agency Placements,COMPASS FOSTERING WEST LTD,LE11,07/10/2022,"3,728.70"
45043242,Social Care,"Children, Families and Community Health Services",External Placements,3rd Party Payments,Independent Fostering Agency Placements,COMPASS FOSTERING WEST LTD,LE11,07/10/2022,"5,009.70"
45043246,Social Care,"Children, Families and Community Health Services",External Placements,3rd Party Payments,Independent Fostering Agency Placements,COMPASS FOSTERING WEST LTD,LE11,07/10/2022,-656.88
45042233,Social Care,"Children, Families and Community Health Services",Placement - Care Leaver Team,3rd Party Payments,Staying Put,COMPASS FOSTERING WEST LTD,LE11,07/10/2022,"2,035.80"
45042234,Social Care,"Children, Families and Community Health Services",External Placements,3rd Party Payments,Independent Fostering Agency Placements,COMPASS FOSTERING WEST LTD,LE11,07/10/2022,"3,135.00"
45043239,Social Care,"Children, Families and Community Health Services",External Placements,3rd Party Payments,Independent Fostering Agency Placements,COMPASS FOSTERING WEST LTD,LE11,07/10/2022,"5,995.80"
45043238,Social Care,"Children, Families and Community Health Services",External Placements,3rd Party Payments,Independent Fostering Agency Placements,COMPASS FOSTERING WEST LTD,LE11,07/10/2022,"3,326.70"
45043241,Social Care,"Children, Families and Community Health Services",External Placements,3rd Party Payments,Independent Fostering Agency Placements,COMPASS FOSTERING WEST LTD,LE11,07/10/2022,"3,135.00"
45043234,Social Care,"Children, Families and Community Health Services",External Placements,3rd Party Payments,Independent Fostering Agency Placements,COMPASS FOSTERING WEST LTD,LE11,07/10/2022,"2,912.10"
45043244,Social Care,"Children, Families and Community Health Services",External Placements,3rd Party Payments,Independent Fostering Agency Placements,COMPASS FOSTERING WEST LTD,LE11,07/10/2022,-592.80
45043237,Social Care,"Children, Families and Community Health Services",External Placements,3rd Party Payments,Independent Fostering Agency Placements,COMPASS FOSTERING WEST LTD,LE11,07/10/2022,"3,492.00"
45043236,Social Care,"Children, Families and Community Health Services",External Placements,3rd Party Payments,Independent Fostering Agency Placements,COMPASS FOSTERING WEST LTD,LE11,07/10/2022,"3,349.50"
46323233,Highways Inspections & Maintenance,Highway Operations and Car Parking,Highway Maintenance,Supplies and Services,Materials,COMPASS MINERALS UK LTD,CW7 ,12/10/2022,605.40
46322233,Highways Inspections & Maintenance,Highway Operations and Car Parking,Highway Maintenance,Supplies and Services,Materials,COMPASS MINERALS UK LTD,CW7 ,12/10/2022,"1,508.38"
47804233,Human Resources and Organisational Development,"People, Culture and Organisational Resilience",Pay & Reward,Employees,Temporary / Agency - by Accounts Payable,COMPAWISE LIMITED,WA14,19/10/2022,"3,000.00"
49240233,Human Resources and Organisational Development,"People, Culture and Organisational Resilience",Pay & Reward,Employees,Temporary / Agency - by Accounts Payable,COMPAWISE LIMITED,WA14,26/10/2022,"3,000.00"
45025233,Human Resources and Organisational Development,"People, Culture and Organisational Resilience",Pay & Reward,Employees,Temporary / Agency - by Accounts Payable,COMPAWISE LIMITED,WA14,05/10/2022,"3,000.00"
46221233,Human Resources and Organisational Development,"People, Culture and Organisational Resilience",Pay & Reward,Employees,Temporary / Agency - by Accounts Payable,COMPAWISE LIMITED,WA14,12/10/2022,"3,000.00"
48468233,Human Resources and Organisational Development,"People, Culture and Organisational Resilience",Pay & Reward,Employees,Temporary / Agency - by Accounts Payable,COMPAWISE LIMITED,WA14,21/10/2022,"3,000.00"
47862233,Planned Maintenance Programme,HRA Capital Financing,Central Heating,Capital,Contractor Payments,COMPLETE FLUE SOLUTIONS LIMITED,GL53,19/10/2022,"2,379.00"
45010233,Social Care,"Children, Families and Community Health Services",External Placements,3rd Party Payments,Semi Independent,CONNECTIONS 2 INDEPENDENCE LTD,GL2 ,05/10/2022,"5,912.15"
50160236,Learning Disabilities,Adults,Learning Disability 26 - 64,Transfer Payments,Personal Budget - Direct Payments - Domiciliary Care,REDACTED PERSONAL DATA,GL2 ,31/10/2022,"4,199.53"
44260234,Property Estates,Property,Childrens Outreach,Premises Costs,Maintenance - Buildings,COOLINK LTD,SN11,03/10/2022,120.00
44260234,Facilities Management,"People, Culture and Organisational Resilience",Office Accommodation,Premises Costs,Maintenance - Buildings,COOLINK LTD,SN11,03/10/2022,108.00
44260234,Facilities Management,"People, Culture and Organisational Resilience",Office Accommodation,Premises Costs,Maintenance - Buildings,COOLINK LTD,SN11,03/10/2022,144.00
44260234,Facilities Management,"People, Culture and Organisational Resilience",Office Accommodation,Premises Costs,Maintenance - Buildings,COOLINK LTD,SN11,03/10/2022,207.20
47265236,DMJ Tower,Housing Services,DMJ Apartments,Premises Costs,Maintenance - Buildings,COOLINK LTD,SN11,14/10/2022,100.00
47265236,DMJ Tower,Housing Services,DMJ Apartments,Premises Costs,Maintenance - Buildings,COOLINK LTD,SN11,14/10/2022,75.00
44260234,Property Management,Property,Corporate Repairs & Maintenance Programme,Premises Costs,Maintenance - Buildings,COOLINK LTD,SN11,03/10/2022,252.00
44260257,Property Management,Property,Corporate Repairs & Maintenance Programme,Premises Costs,Maintenance - Buildings,COOLINK LTD,SN11,03/10/2022,"2,465.00"
44260234,Property Management,Property,Corporate Repairs & Maintenance Programme,Premises Costs,Maintenance - Buildings,COOLINK LTD,SN11,03/10/2022,30.00
44260234,Facilities Management,"People, Culture and Organisational Resilience",Office Accommodation,Premises Costs,Maintenance - Buildings,COOLINK LTD,SN11,03/10/2022,184.00
49588233,Safeguarding and Quality Assurance,"Children, Families and Community Health Services",Participation,3rd Party Payments,Contracts - Child Care,CORAM VOICE,WC1N,28/10/2022,"12,396.95"
48884233,Social Care,"Children, Families and Community Health Services",Placement Adoption Service,3rd Party Payments,Adoption Allowances,REDACTED PERSONAL DATA,BA15,24/10/2022,860.00
45810259,Social Care,"Children, Families and Community Health Services",Placement Adoption Service,3rd Party Payments,Adoption Allowances,REDACTED PERSONAL DATA,BA15,10/10/2022,860.00
47264278,Learning Disabilities,Adults,Learning Disability 26 - 64,Income,Client Contribution - Residential,CORNERSTONES UK LTD,SN9 ,14/10/2022,-410.20
47264278,Learning Disabilities,Adults,Learning Disability 26 - 64,Income,Client Contribution - Residential,CORNERSTONES UK LTD,SN9 ,14/10/2022,-414.20
47264278,Learning Disabilities,Adults,Learning Disability 26 - 64,3rd Party Payments,Residential Care,CORNERSTONES UK LTD,SN9 ,14/10/2022,"8,160.76"
47264278,Learning Disabilities,Adults,Learning Disability 26 - 64,Income,Client Contribution - Residential,CORNERSTONES UK LTD,SN9 ,14/10/2022,-361.00
47264278,Learning Disabilities,Adults,Learning Disability 26 - 64,3rd Party Payments,Residential Care,CORNERSTONES UK LTD,SN9 ,14/10/2022,"6,251.16"
47264278,Learning Disabilities,Adults,Learning Disability 26 - 64,3rd Party Payments,Residential Care,CORNERSTONES UK LTD,SN9 ,14/10/2022,"7,986.12"
47264278,Learning Disabilities,Adults,Learning Disability 26 - 64,3rd Party Payments,Residential Care,CORNERSTONES UK LTD,SN9 ,14/10/2022,"6,922.20"
47264278,Learning Disabilities,Adults,Learning Disability 26 - 64,Income,Client Contribution - Residential,CORNERSTONES UK LTD,SN9 ,14/10/2022,-423.00
47264278,Learning Disabilities,Adults,Learning Disability 26 - 64,3rd Party Payments,Residential Care,CORNERSTONES UK LTD,SN9 ,14/10/2022,"4,178.84"
47264278,Learning Disabilities,Adults,Learning Disability 26 - 64,3rd Party Payments,Residential Care,CORNERSTONES UK LTD,SN9 ,14/10/2022,"5,322.56"
49860233,Human Resources and Organisational Development,"People, Culture and Organisational Resilience",Organisational Development,Employees,Training,CORPORATE EVENTS SERVICES LTD,SN5 ,28/10/2022,"6,522.85"
45467233,Human Resources and Organisational Development,"People, Culture and Organisational Resilience",Organisational Development,Employees,Training,CORPORATE EVENTS SERVICES LTD,SN5 ,07/10/2022,"4,138.45"
46977233,Streetsmart,Streetsmart,Waste - Processing,Transport Costs,Vehicle Hire / Contract,COTSWOLD RECYCLING COMPANY LTD,GL12,14/10/2022,"1,900.00"
49656233,Streetsmart,Streetsmart,Waste - Processing,Transport Costs,Vehicle Hire / Contract,COTSWOLD RECYCLING COMPANY LTD,GL12,28/10/2022,"1,900.00"
50227241,Learning Disabilities,Adults,Learning Disability 26 - 64,Transfer Payments,Personal Budget - Direct Payments - Domiciliary Care,REDACTED PERSONAL DATA,SP11,31/10/2022,"1,604.83"
47748236,Schools - Primary,DSG Skills and Attainment,Primary School Budgets,3rd Party Payments,Mainstream Delegated Funding,COVINGHAM PARK PRIMARY SCHOOL,SN3 ,19/10/2022,"130,174.00"
47626233,High Needs Block,DSG Skills and Attainment,SEN Resourcing Assessment Panel,3rd Party Payments,Top up funding - Maintained providers Pre 16,COVINGHAM PARK PRIMARY SCHOOL,SN3 ,19/10/2022,"1,591.25"
47788233,DSG Other Funding,DSG Skills and Attainment,DFE Additional Grants,3rd Party Payments,Payment of Pupil Premium to school,COVINGHAM PARK PRIMARY SCHOOL,SN3 ,19/10/2022,"7,353.00"
50096233,DSG Other Funding,DSG Skills and Attainment,DFE Additional Grants,Supplies and Services,Payments to Educational Bodies,COVINGHAM PARK PRIMARY SCHOOL,SN3 ,31/10/2022,"3,024.00"
47861237,DSG Other Funding,DSG Skills and Attainment,DFE Additional Grants,Supplies and Services,Payments to Educational Bodies,COVINGHAM PARK PRIMARY SCHOOL,SN3 ,19/10/2022,"2,283.75"
47264352,Memory & Cognition,Adults,Support for Memory and Cognition 65 and over,3rd Party Payments,Residential Care,COXWELL HALL AND MEWS NURSING HOME,TW20,14/10/2022,"5,968.24"
49017233,Responsive Repairs,Repairs,Responsive Repairs,3rd Party Payments,Contract Payments,CPS CONSTRUCTION LTD,BS15,24/10/2022,"1,863.40"
49283234,Responsive Repairs,Repairs,Responsive Repairs,3rd Party Payments,Contract Payments,CPS CONSTRUCTION LTD,BS15,26/10/2022,"1,863.40"
47264251,Learning Disabilities,Adults,Learning Disability 26 - 64,3rd Party Payments,Residential Care,CRAEGMOOR HEALTHCARE,BA14,14/10/2022,"8,639.88"
47264251,Learning Disabilities,Adults,Learning Disability 26 - 64,Income,Client Contribution - Residential,CRAEGMOOR HEALTHCARE,BA14,14/10/2022,-414.20
47264251,Learning Disabilities,Adults,Learning Disability 26 - 64,3rd Party Payments,Residential Care,CRAEGMOOR HEALTHCARE,BA14,14/10/2022,"2,830.16"
45478233,Streetsmart,Streetsmart,Waste - Disposal,3rd Party Payments,Contract Payments,CRAPPER & SONS LANDFILL LTD,SN4 ,07/10/2022,"5,616.80"
47274234,Streetsmart,Streetsmart,Waste - Disposal,3rd Party Payments,Contract Payments,CRAPPER & SONS LANDFILL LTD,SN4 ,14/10/2022,"9,028.63"
47036233,Streetsmart,Streetsmart,Waste - Disposal,3rd Party Payments,Contract Payments,CRAPPER & SONS LANDFILL LTD,SN4 ,14/10/2022,"1,463.20"
45477233,Streetsmart,Streetsmart,Waste - Disposal,3rd Party Payments,Contract Payments,CRAPPER & SONS LANDFILL LTD,SN4 ,07/10/2022,630.82
47035233,Streetsmart,Streetsmart,Waste - Disposal,3rd Party Payments,Contract Payments,CRAPPER & SONS LANDFILL LTD,SN4 ,14/10/2022,"6,537.20"
47222233,Streetsmart,Streetsmart,Waste - Disposal,3rd Party Payments,Contract Payments,CRAPPER & SONS LANDFILL LTD,SN4 ,14/10/2022,"7,949.74"
45479233,Streetsmart,Streetsmart,Waste - Disposal,3rd Party Payments,Contract Payments,CRAPPER & SONS LANDFILL LTD,SN4 ,07/10/2022,"12,653.68"
47034233,Streetsmart,Streetsmart,Waste - Disposal,3rd Party Payments,Contract Payments,CRAPPER & SONS LANDFILL LTD,SN4 ,14/10/2022,"5,475.20"
46756233,Physical Support,Adults,Fessey House,Supplies and Services,Food,CREED CATERING SUPPLIES LTD,GL51,14/10/2022,136.82
46756233,Physical Support,Adults,Fessey House,Supplies and Services,Food,CREED CATERING SUPPLIES LTD,GL51,14/10/2022,"2,133.53"
45225233,School Transport,"Education, Inclusion and Skills",Special Educational Needs Transport,Transport Costs,Home to School Transport,CROSS STREET RADIO CARS,SN1 ,07/10/2022,"6,090.00"
45259233,School Transport,"Education, Inclusion and Skills",Special Educational Needs Transport,Transport Costs,Home to School Transport,CROSS STREET RADIO CARS,SN1 ,07/10/2022,"3,800.00"
45255233,School Transport,"Education, Inclusion and Skills",Special Educational Needs Transport,Transport Costs,Home to School Transport,CROSS STREET RADIO CARS,SN1 ,07/10/2022,"5,610.00"
45998233,School Transport,"Education, Inclusion and Skills",Special Educational Needs Transport,Transport Costs,Home to School Transport,CROSS STREET RADIO CARS,SN1 ,12/10/2022,"2,090.00"
45229233,School Transport,"Education, Inclusion and Skills",Special Educational Needs Transport,Transport Costs,Home to School Transport,CROSS STREET RADIO CARS,SN1 ,07/10/2022,580.00
45997233,School Transport,"Education, Inclusion and Skills",Special Educational Needs Transport,Transport Costs,Home to School Transport,CROSS STREET RADIO CARS,SN1 ,12/10/2022,"1,710.00"
45251233,School Transport,"Education, Inclusion and Skills",Special Educational Needs Transport,Transport Costs,Home to School Transport,CROSS STREET RADIO CARS,SN1 ,07/10/2022,"3,620.00"
47798233,DSG Other Funding,DSG Skills and Attainment,DFE Additional Grants,3rd Party Payments,Payment of Pupil Premium to school,CROWDYS HILL SCHOOL,SN2 ,19/10/2022,"9,078.00"
47754233,High Needs Block,DSG Skills and Attainment,Special School Place,3rd Party Payments,HNB- Place Funding post 16,CROWDYS HILL SCHOOL,SN2 ,19/10/2022,"38,333.00"
47632233,High Needs Block,DSG Skills and Attainment,SEN Resourcing Assessment Panel,3rd Party Payments,Top up funding - Maintained providers Pre 16,CROWDYS HILL SCHOOL,SN2 ,19/10/2022,"46,045.41"
47861247,DSG Other Funding,DSG Skills and Attainment,DFE Additional Grants,Supplies and Services,Payments to Educational Bodies,CROWDYS HILL SCHOOL,SN2 ,19/10/2022,"25,008.00"
47632234,High Needs Block,DSG Skills and Attainment,SEN Resourcing Assessment Panel,3rd Party Payments,Top up funding - Maintained providers Pre 16,CROWDYS HILL SCHOOL,SN2 ,19/10/2022,"131,331.99"
47635233,High Needs Block,DSG Skills and Attainment,SEN Resourcing Assessment Panel,3rd Party Payments,Top up funding - Maintained providers Post 16,CROWDYS HILL SCHOOL,SN2 ,19/10/2022,"75,750.83"
47754234,High Needs Block,DSG Skills and Attainment,Special School Place,3rd Party Payments,HNB- Place Funding pre 16,CROWDYS HILL SCHOOL,SN2 ,19/10/2022,"170,000.00"
50099235,DSG Other Funding,DSG Skills and Attainment,DFE Additional Grants,Supplies and Services,Payments to Educational Bodies,CROWDYS HILL SCHOOL,SN2 ,31/10/2022,"12,090.75"
Corporate Card,ASC Finance Services Teams,ASC Finance Services,ASC Money Management Team,Supplies and Services,Services,Currys,,26/10/2022,568.00
Corporate Card,ASC Finance Services Teams,ASC Finance Services,ASC Money Management Team,Supplies and Services,Services,Currys,,07/10/2022,889.00
45492233,"Volutary Sector, Equipment and Carers",Adults,Voluntary Sector Adults,3rd Party Payments,Contracts - Social Care,CRUSE BEREAVEMENT CARE,TW9 ,07/10/2022,"6,250.00"
44637236,Physical Support,Adults,Physical Support 65 and over,3rd Party Payments,Personal Budget - Domiciliary care,CRYSTAL CARING LIMITED,SN2 ,05/10/2022,"1,629.98"
44637234,Physical Support,Adults,Physical Support 65 and over,3rd Party Payments,Personal Budget - Domiciliary care,CRYSTAL CARING LIMITED,SN2 ,05/10/2022,"1,429.52"
44637235,Physical Support,Adults,Physical Support 65 and over,3rd Party Payments,Personal Budget - Domiciliary care,CRYSTAL CARING LIMITED,SN2 ,05/10/2022,"2,807.64"
44637237,Physical Support,Adults,Physical Support 18 - 64,3rd Party Payments,Personal Budget - Domiciliary care,CRYSTAL CARING LIMITED,SN2 ,05/10/2022,"3,216.08"
47597233,Landscaping & Open Space,Culture & Heritage & Art,Coate Water Play Park,Capital,Professional Fees,CTP LLP (COLIN TOMS & PARTNERS LLP),TN13,19/10/2022,"4,836.00"
48139233,Planned Maintenance Programme,HRA Capital Financing,Exceptional Extensive,Capital,Contractor Payments,CWE CONSULTANTS LTD,SN1 ,19/10/2022,"1,523.95"
50174233,Physical Support,Adults,Physical Support 18 - 64,Transfer Payments,Personal Budget - Direct Payments - Domiciliary Care,REDACTED PERSONAL DATA,SN25,31/10/2022,"3,076.26"
50244233,Physical Support,Adults,Physical Support 18 - 64,Transfer Payments,Personal Budget - Direct Payments - Domiciliary Care,REDACTED PERSONAL DATA,SP11,31/10/2022,"4,690.60"
50155233,Physical Support,Adults,Physical Support 18 - 64,Transfer Payments,Personal Budget - Direct Payments - Domiciliary Care,REDACTED PERSONAL DATA,SN3 ,31/10/2022,"2,686.43"
50218242,Learning Disabilities,Adults,Learning Disability 26 - 64,Transfer Payments,Personal Budget - Direct Payments - Domiciliary Care,REDACTED PERSONAL DATA,SN2 ,31/10/2022,"1,445.84"
50220248,Learning Disabilities,Adults,Learning Disability 26 - 64,Transfer Payments,Personal Budget - Direct Payments - Domiciliary Care,REDACTED PERSONAL DATA,SN2 ,31/10/2022,"9,937.71"
49108233,Landscaping & Open Space,Culture & Heritage & Art,Moredon Recreation - Multi Sports Hub,Capital,Professional Fees,DARNTONB3 ARCHITECTURE,LS1 ,26/10/2022,"1,900.00"
44847233,Internal Audit,Internal Audit,Internal Audit,Supplies and Services,Equipment,DATATANK LTD,NG1 ,05/10/2022,"5,040.00"
50191233,Physical Support,Adults,Physical Support 18 - 64,Transfer Payments,Personal Budget - Direct Payments - Domiciliary Care,REDACTED PERSONAL DATA,SN2 ,31/10/2022,599.56
47384233,Landscaping & Open Space,Culture & Heritage & Art,Moredon Recreation - Multi Sports Hub,Capital,Contractor Payments,DAVID JARVIS ASSOCIATES LTD,SN1 ,17/10/2022,600.00
50217238,Learning Disabilities,Adults,Learning Disability 26 - 64,Transfer Payments,Personal Budget - Direct Payments - Domiciliary Care,REDACTED PERSONAL DATA,SP11,31/10/2022,698.07
50217235,Learning Disabilities,Adults,Learning Disability 26 - 64,Transfer Payments,Personal Budget - Direct Payments - Domiciliary Care,REDACTED PERSONAL DATA,SP11,31/10/2022,648.32
48973293,Social Care,"Children, Families and Community Health Services",Placement Adoption Service,3rd Party Payments,Special Guardianship Orders,REDACTED PERSONAL DATA,B35 ,24/10/2022,676.96
45866328,Social Care,"Children, Families and Community Health Services",Placement Adoption Service,3rd Party Payments,Special Guardianship Orders,REDACTED PERSONAL DATA,B35 ,10/10/2022,676.96
46455233,Streetsmart,Streetsmart,Waterside Fleet Hires,Transport Costs,Vehicle Hire / Contract,DAWSONRENTLES SWEEPERS,HD6 ,12/10/2022,"3,215.48"
46454233,Streetsmart,Streetsmart,Waterside Fleet Hires,Transport Costs,Vehicle Hire / Contract,DAWSONRENTLES SWEEPERS,HD6 ,12/10/2022,"2,867.86"
46456233,Streetsmart,Streetsmart,Waterside Fleet Hires,Transport Costs,Vehicle Hire / Contract,DAWSONRENTLES SWEEPERS,HD6 ,12/10/2022,"2,150.90"
46458233,Streetsmart,Streetsmart,Waterside Fleet Hires,Transport Costs,Vehicle Hire / Contract,DAWSONRENTLES SWEEPERS,HD6 ,12/10/2022,"2,954.77"
46457233,Streetsmart,Streetsmart,Waterside Fleet Hires,Transport Costs,Vehicle Hire / Contract,DAWSONRENTLES SWEEPERS,HD6 ,12/10/2022,"2,954.77"
48990233,Social Care,"Children, Families and Community Health Services",Placement Fostering Service,3rd Party Payments,Foster Care Additional Allowance,REDACTED PERSONAL DATA,SN5 ,24/10/2022,100.00
45678233,Social Care,"Children, Families and Community Health Services",Placement Fostering Service,3rd Party Payments,Foster Care Basic Payments,REDACTED PERSONAL DATA,SN5 ,10/10/2022,520.20
48990233,Social Care,"Children, Families and Community Health Services",Placement Fostering Service,3rd Party Payments,Foster Care Basic Payments,REDACTED PERSONAL DATA,SN5 ,24/10/2022,520.20
45678233,Social Care,"Children, Families and Community Health Services",Placement Fostering Service,3rd Party Payments,Carers Skills Payments - Advanced,REDACTED PERSONAL DATA,SN5 ,10/10/2022,270.00
48990233,Social Care,"Children, Families and Community Health Services",Placement Fostering Service,3rd Party Payments,Carers Skills Payments - Advanced,REDACTED PERSONAL DATA,SN5 ,24/10/2022,270.00
45678233,Social Care,"Children, Families and Community Health Services",Placement Fostering Service,3rd Party Payments,Foster Care Additional Allowance,REDACTED PERSONAL DATA,SN5 ,10/10/2022,100.00
45981233,Landscaping & Open Space,Culture & Heritage & Art,GWCF - Trees for Climate,Capital,Contractor Payments,DEEPER GREEN SERVICES LTD,BS26,12/10/2022,350.00
45981233,Landscaping & Open Space,Culture & Heritage & Art,GWCF - Trees for Climate,Capital,Contractor Payments,DEEPER GREEN SERVICES LTD,BS26,12/10/2022,875.00
44828233,Senior Management Team,"Children, Families and Community Health Services",Senior Management Team - Non Staffing,Supplies and Services,Fees,DENA ALLEN,TQ2 ,05/10/2022,"2,988.39"
48246233,Learning Disabilities,Adults,Learning Disability 26 - 64,3rd Party Payments,Supported Accommodation Scheme,REDACTED PERSONAL DATA,SN2 ,19/10/2022,"1,675.36"
48246233,Learning Disabilities,Adults,Learning Disability 26 - 64,3rd Party Payments,Supported Accommodation Scheme,REDACTED PERSONAL DATA,SN2 ,19/10/2022,"1,321.36"
48246233,Learning Disabilities,Adults,Learning Disability 26 - 64,3rd Party Payments,Supported Accommodation Scheme,REDACTED PERSONAL DATA,SN2 ,19/10/2022,"2,004.72"
47609233,Street Furniture & Lighting,Strategic Planning and Highways,LED Street Lighting,Capital,Professional Fees,DESIGNS FOR LIGHTING LTD,SO23,19/10/2022,440.00
45805233,Social Care,"Children, Families and Community Health Services",Placement Adoption Service,3rd Party Payments,Adoption Allowances,REDACTED PERSONAL DATA,CF44,10/10/2022,500.34
48867234,Social Care,"Children, Families and Community Health Services",Placement Adoption Service,3rd Party Payments,Adoption Allowances,REDACTED PERSONAL DATA,CF44,24/10/2022,500.34
Corporate Card,ASC Finance Services Teams,ASC Finance Services,ASC Money Management Team,Supplies and Services,Services,Dfs Trading Limited,,10/10/2022,949.00
Corporate Card,ASC Finance Services Teams,ASC Finance Services,ASC Money Management Team,Supplies and Services,Services,Dfs Trading Limited,,05/10/2022,723.00
46969233,Regulatory,Regulatory Services,Building control account,Income,Fee Income,DISTRICT SURVEYORS ASSOCIATION LTD T/A LABC,SW8 ,14/10/2022,"2,500.00"
47264339,Physical Support,Adults,Physical Support 65 and over,3rd Party Payments,Nursing Care,DIVA CARE LIMITED,GL7 ,14/10/2022,"3,246.44"
47264339,Physical Support,Adults,Physical Support 65 and over,3rd Party Payments,Residential Care,DIVA CARE LIMITED,GL7 ,14/10/2022,"5,040.00"
47264339,Physical Support,Adults,Physical Support 65 and over,Income,Client Contribution - Residential,DIVA CARE LIMITED,GL7 ,14/10/2022,-627.80
47264339,Physical Support,Adults,Physical Support 65 and over,Income,Client Contribution - Nursing,DIVA CARE LIMITED,GL7 ,14/10/2022,-268.72
45004234,Social Care,"Children, Families and Community Health Services",External Placements,3rd Party Payments,Independent Fostering Agency Placements,DIVERSE CARE UK LTD,ME4 ,05/10/2022,"5,049.30"
48232233,Social Care,"Children, Families and Community Health Services",External Placements,3rd Party Payments,Independent Fostering Agency Placements,DIVERSE CARE UK LTD,ME4 ,19/10/2022,"5,217.61"
45004233,Social Care,"Children, Families and Community Health Services",External Placements,3rd Party Payments,Independent Fostering Agency Placements,DIVERSE CARE UK LTD,ME4 ,05/10/2022,"5,049.30"
49256242,Social Care,"Children, Families and Community Health Services",External Placements,3rd Party Payments,Independent Fostering Agency Placements,DIVERSE CARE UK LTD,ME4 ,26/10/2022,"-3,534.51"
49256241,Social Care,"Children, Families and Community Health Services",External Placements,3rd Party Payments,Independent Fostering Agency Placements,DIVERSE CARE UK LTD,ME4 ,26/10/2022,"5,217.61"
48624233,Social Care,"Children, Families and Community Health Services",Legal Fees,Supplies and Services,Fees,DNA WORLDWIDE GROUP,BA11,21/10/2022,424.50
49366233,Landscaping & Open Space,Culture & Heritage & Art,Common Farm GWCF,Capital,Contractor Payments,DOBSON UK LLP,LN6 ,26/10/2022,672.88
50162233,Physical Support,Adults,Physical Support 18 - 64,Transfer Payments,Personal Budget - Direct Payments - Domiciliary Care,REDACTED PERSONAL DATA,SP11,31/10/2022,"4,756.08"
47664234,High Needs Block,DSG Skills and Attainment,SEN Resourcing Assessment Panel,3rd Party Payments,Top up funding - Academies and Free Schools Pre 16,DORCAN ACADEMY,SN3 ,19/10/2022,660.81
48396355,Homelessness and Travellers,Housing Services,Leased Private Managed Accommodation,Transfer Payments,Payment of Costs,REDACTED PERSONAL DATA,SN6 ,24/10/2022,700.00
45247233,Digital & Business Change,Digital & Business Change,IT Projects,Supplies and Services,Services,DRONE PHOTOGRAPHY SERVICES LTD,EX31,07/10/2022,575.00
47264336,Physical Support,Adults,Physical Support 18 - 64,3rd Party Payments,Nursing Care,DRUMMOND GRANGE NURSING HOME,EH18,14/10/2022,"6,603.00"
48164233,Learning Disabilities,Adults,Learning Disability 26 - 64,3rd Party Payments,Supported Accommodation Scheme,REDACTED PERSONAL DATA,SN25,19/10/2022,"2,058.96"
47264333,Learning Disabilities,Adults,Learning Disability 26 - 64,3rd Party Payments,Supported Lodgings,DYNAMIC SUPPORT LTD,SN25,14/10/2022,"1,562.88"
47264333,Physical Support,Adults,Physical Support 65 and over,3rd Party Payments,Supported Lodgings,DYNAMIC SUPPORT LTD,SN25,14/10/2022,"7,459.20"
47264333,Learning Disabilities,Adults,Learning Disability 26 - 64,Income,Client Contribution - Supported Living,DYNAMIC SUPPORT LTD,SN25,14/10/2022,-18.12
47264333,Learning Disabilities,Adults,Learning Disability 26 - 64,3rd Party Payments,Supported Lodgings,DYNAMIC SUPPORT LTD,SN25,14/10/2022,"6,819.92"
47264333,Learning Disabilities,Adults,Learning Disability 26 - 64,3rd Party Payments,Supported Lodgings,DYNAMIC SUPPORT LTD,SN25,14/10/2022,"7,459.20"
47264333,Learning Disabilities,Adults,Learning Disability 26 - 64,3rd Party Payments,Supported Lodgings,DYNAMIC SUPPORT LTD,SN25,14/10/2022,"3,132.76"
47264333,Learning Disabilities,Adults,Learning Disability 26 - 64,3rd Party Payments,Supported Lodgings,DYNAMIC SUPPORT LTD,SN25,14/10/2022,"13,019.76"
47264333,Learning Disabilities,Adults,Learning Disability 26 - 64,3rd Party Payments,Supported Lodgings,DYNAMIC SUPPORT LTD,SN25,14/10/2022,"9,255.45"
47264333,Learning Disabilities,Adults,Learning Disability 26 - 64,3rd Party Payments,Supported Lodgings,DYNAMIC SUPPORT LTD,SN25,14/10/2022,903.32
47264333,Learning Disabilities,Adults,Learning Disability 26 - 64,3rd Party Payments,Supported Lodgings,DYNAMIC SUPPORT LTD,SN25,14/10/2022,"3,765.12"
47264333,Learning Disabilities,Adults,Learning Disability 65 and over,3rd Party Payments,Supported Lodgings,DYNAMIC SUPPORT LTD,SN25,14/10/2022,"2,685.48"
47264333,Learning Disabilities,Adults,Learning Disability 65 and over,3rd Party Payments,Supported Lodgings,DYNAMIC SUPPORT LTD,SN25,14/10/2022,"3,480.96"
47264333,Learning Disabilities,Adults,Learning Disability 26 - 64,Income,Client Contribution - Supported Living,DYNAMIC SUPPORT LTD,SN25,14/10/2022,-258.12
47264333,Learning Disabilities,Adults,Learning Disability 26 - 64,Income,Client Contribution - Supported Living,DYNAMIC SUPPORT LTD,SN25,14/10/2022,-440.60
47264333,Learning Disabilities,Adults,Learning Disability 26 - 64,3rd Party Payments,Supported Lodgings,DYNAMIC SUPPORT LTD,SN25,14/10/2022,532.80
47264333,Learning Disabilities,Adults,Learning Disability 26 - 64,3rd Party Payments,Supported Lodgings,DYNAMIC SUPPORT LTD,SN25,14/10/2022,"6,393.60"
47264333,Learning Disabilities,Adults,Learning Disability 26 - 64,3rd Party Payments,Supported Lodgings,DYNAMIC SUPPORT LTD,SN25,14/10/2022,"6,474.79"
47264333,Learning Disabilities,Adults,Learning Disability 26 - 64,3rd Party Payments,Supported Lodgings,DYNAMIC SUPPORT LTD,SN25,14/10/2022,"1,527.36"
47264333,Mental Health,Adults,Mental Health 18-64,3rd Party Payments,Supported Lodgings,DYNAMIC SUPPORT LTD,SN25,14/10/2022,"1,491.84"
47264333,Learning Disabilities,Adults,Learning Disability 26 - 64,3rd Party Payments,Supported Lodgings,DYNAMIC SUPPORT LTD,SN25,14/10/2022,"-6,363.15"
47264333,Learning Disabilities,Adults,Learning Disability 26 - 64,3rd Party Payments,Supported Lodgings,DYNAMIC SUPPORT LTD,SN25,14/10/2022,"-2,733.48"
47264333,Learning Disabilities,Adults,Learning Disability 26 - 64,3rd Party Payments,Supported Lodgings,DYNAMIC SUPPORT LTD,SN25,14/10/2022,"-3,109.27"
47264333,Learning Disabilities,Adults,Learning Disability 26 - 64,3rd Party Payments,Supported Lodgings,DYNAMIC SUPPORT LTD,SN25,14/10/2022,-143.87
47264333,Learning Disabilities,Adults,Learning Disability 26 - 64,3rd Party Payments,Supported Lodgings,DYNAMIC SUPPORT LTD,SN25,14/10/2022,-47.96
47264333,Learning Disabilities,Adults,Learning Disability 26 - 64,3rd Party Payments,Supported Lodgings,DYNAMIC SUPPORT LTD,SN25,14/10/2022,861.76
47264333,Learning Disabilities,Adults,Learning Disability 26 - 64,3rd Party Payments,Supported Lodgings,DYNAMIC SUPPORT LTD,SN25,14/10/2022,"2,685.48"
47264333,Learning Disabilities,Adults,Learning Disability 26 - 64,3rd Party Payments,Supported Lodgings,DYNAMIC SUPPORT LTD,SN25,14/10/2022,142.08
47264333,Learning Disabilities,Adults,Learning Disability 26 - 64,3rd Party Payments,Supported Lodgings,DYNAMIC SUPPORT LTD,SN25,14/10/2022,"4,475.52"
47264333,Learning Disabilities,Adults,Learning Disability 26 - 64,3rd Party Payments,Supported Lodgings,DYNAMIC SUPPORT LTD,SN25,14/10/2022,426.24
47264333,Learning Disabilities,Adults,Learning Disability 26 - 64,3rd Party Payments,Supported Lodgings,DYNAMIC SUPPORT LTD,SN25,14/10/2022,"3,163.82"
47264333,Learning Disabilities,Adults,Learning Disability 26 - 64,3rd Party Payments,Supported Lodgings,DYNAMIC SUPPORT LTD,SN25,14/10/2022,122.64
47264333,Learning Disabilities,Adults,Learning Disability 26 - 64,3rd Party Payments,Supported Lodgings,DYNAMIC SUPPORT LTD,SN25,14/10/2022,"1,390.40"
49397255,Learning Disabilities,Adults,Learning Disability 26 - 64,3rd Party Payments,Personal Budget - Domiciliary care,DYNAMIC SUPPORT LTD,SN25,26/10/2022,"1,265.92"
44955237,Physical Support,Adults,Physical Support 65 and over,3rd Party Payments,Personal Budget - Domiciliary care,DYNAMIC SUPPORT LTD,SN25,05/10/2022,"7,371.84"
47264333,Mental Health,Adults,Mental Health 18-64,3rd Party Payments,Supported Lodgings,DYNAMIC SUPPORT LTD,SN25,14/10/2022,"1,342.76"
47264333,Learning Disabilities,Adults,Learning Disability 26 - 64,3rd Party Payments,Supported Lodgings,DYNAMIC SUPPORT LTD,SN25,14/10/2022,671.36
47264333,Learning Disabilities,Adults,Learning Disability 26 - 64,3rd Party Payments,Supported Lodgings,DYNAMIC SUPPORT LTD,SN25,14/10/2022,"4,984.56"
47264333,Mental Health,Adults,Mental Health 18-64,3rd Party Payments,Supported Lodgings,DYNAMIC SUPPORT LTD,SN25,14/10/2022,"7,459.20"
47264333,Mental Health,Adults,Mental Health 18-64,3rd Party Payments,Supported Lodgings,DYNAMIC SUPPORT LTD,SN25,14/10/2022,"4,475.52"
47264333,Learning Disabilities,Adults,Learning Disability 26 - 64,Income,Client Contribution - Supported Living,DYNAMIC SUPPORT LTD,SN25,14/10/2022,-336.48
47264333,Learning Disabilities,Adults,Learning Disability 26 - 64,Income,Client Contribution - Personal Budget - Fairer Charging,DYNAMIC SUPPORT LTD,SN25,14/10/2022,915.30
47264333,Learning Disabilities,Adults,Learning Disability 26 - 64,Income,Client Contribution - Personal Budget - Fairer Charging,DYNAMIC SUPPORT LTD,SN25,14/10/2022,14.53
47264333,Learning Disabilities,Adults,Learning Disability 26 - 64,3rd Party Payments,Supported Lodgings,DYNAMIC SUPPORT LTD,SN25,14/10/2022,"-43,636.32"
47264333,Learning Disabilities,Adults,Learning Disability 26 - 64,3rd Party Payments,Supported Lodgings,DYNAMIC SUPPORT LTD,SN25,14/10/2022,"4,688.64"
47264333,Learning Disabilities,Adults,Learning Disability 26 - 64,3rd Party Payments,Supported Lodgings,DYNAMIC SUPPORT LTD,SN25,14/10/2022,"3,125.76"
47264333,Learning Disabilities,Adults,Learning Disability 26 - 64,3rd Party Payments,Supported Lodgings,DYNAMIC SUPPORT LTD,SN25,14/10/2022,"1,072.00"
47264333,Physical Support,Adults,Physical Support 65 and over,3rd Party Payments,Supported Lodgings,DYNAMIC SUPPORT LTD,SN25,14/10/2022,"4,475.52"
44955236,Physical Support,Adults,Physical Support 65 and over,3rd Party Payments,Personal Budget - Domiciliary care,DYNAMIC SUPPORT LTD,SN25,05/10/2022,"14,743.68"
47264333,Learning Disabilities,Adults,Learning Disability 26 - 64,Income,Client Contribution - Supported Living,DYNAMIC SUPPORT LTD,SN25,14/10/2022,156.75
47264333,Learning Disabilities,Adults,Learning Disability 26 - 64,3rd Party Payments,Supported Lodgings,DYNAMIC SUPPORT LTD,SN25,14/10/2022,"2,781.43"
47264333,Learning Disabilities,Adults,Learning Disability 26 - 64,3rd Party Payments,Supported Lodgings,DYNAMIC SUPPORT LTD,SN25,14/10/2022,"17,833.58"
47264333,Learning Disabilities,Adults,Learning Disability 26 - 64,3rd Party Payments,Supported Lodgings,DYNAMIC SUPPORT LTD,SN25,14/10/2022,"2,344.32"
47264333,Learning Disabilities,Adults,Learning Disability 26 - 64,3rd Party Payments,Supported Lodgings,DYNAMIC SUPPORT LTD,SN25,14/10/2022,"2,486.40"
47264333,Learning Disabilities,Adults,Learning Disability 26 - 64,3rd Party Payments,Supported Lodgings,DYNAMIC SUPPORT LTD,SN25,14/10/2022,"2,770.56"
47264333,Learning Disabilities,Adults,Learning Disability 26 - 64,Income,Client Contribution - Personal Budget - Fairer Charging,DYNAMIC SUPPORT LTD,SN25,14/10/2022,-4.84
47264333,Learning Disabilities,Adults,Learning Disability 26 - 64,3rd Party Payments,Supported Lodgings,DYNAMIC SUPPORT LTD,SN25,14/10/2022,"-9,063.63"
47264333,Learning Disabilities,Adults,Learning Disability 26 - 64,3rd Party Payments,Supported Lodgings,DYNAMIC SUPPORT LTD,SN25,14/10/2022,"6,464.64"
47264333,Learning Disabilities,Adults,Learning Disability 26 - 64,3rd Party Payments,Supported Lodgings,DYNAMIC SUPPORT LTD,SN25,14/10/2022,"5,612.16"
47264333,Learning Disabilities,Adults,Learning Disability 26 - 64,3rd Party Payments,Supported Lodgings,DYNAMIC SUPPORT LTD,SN25,14/10/2022,"1,847.04"
47264333,Learning Disabilities,Adults,Learning Disability 26 - 64,Income,Client Contribution - Supported Living,DYNAMIC SUPPORT LTD,SN25,14/10/2022,-112.00
47264333,Learning Disabilities,Adults,Learning Disability 26 - 64,Income,Client Contribution - Personal Budget - Fairer Charging,DYNAMIC SUPPORT LTD,SN25,14/10/2022,4.84
47264333,Learning Disabilities,Adults,Learning Disability 26 - 64,3rd Party Payments,Supported Lodgings,DYNAMIC SUPPORT LTD,SN25,14/10/2022,-692.64
47264333,Learning Disabilities,Adults,Learning Disability 26 - 64,3rd Party Payments,Supported Lodgings,DYNAMIC SUPPORT LTD,SN25,14/10/2022,"1,342.76"
47264333,Learning Disabilities,Adults,Learning Disability 26 - 64,3rd Party Payments,Supported Lodgings,DYNAMIC SUPPORT LTD,SN25,14/10/2022,"7,175.04"
47264333,Learning Disabilities,Adults,Learning Disability 26 - 64,3rd Party Payments,Supported Lodgings,DYNAMIC SUPPORT LTD,SN25,14/10/2022,"44,559.84"
47264333,Learning Disabilities,Adults,Learning Disability 26 - 64,3rd Party Payments,Supported Lodgings,DYNAMIC SUPPORT LTD,SN25,14/10/2022,"-17,070.43"
44600233,Property Management,Property,Corporate Repairs & Maintenance Programme,Premises Costs,Maintenance - Buildings,E & D VENTILATION CLEANING,BS32,05/10/2022,495.00
44870244,Town Centre,"Economy, Growth and Place","No 7, 9 & 11 Carriage works @ Railway Village",Capital,Contractor Payments,E W BEARD LTD,SN3 ,05/10/2022,"206,231.41"
44866233,Environmental & Regulatory,Highways & Transport,Shaw Farm Landfill Site,Supplies and Services,Testing / Inspection,EARTH DIRECT LTD,WV10,05/10/2022,"1,828.95"
48861233,Environmental & Regulatory,Highways & Transport,Shaw Farm Landfill Site,Supplies and Services,Testing / Inspection,EARTH DIRECT LTD,WV10,24/10/2022,"1,998.01"
50097233,DSG Other Funding,DSG Skills and Attainment,DFE Additional Grants,Supplies and Services,Payments to Educational Bodies,EAST WICHEL COMMUNITY PRIMARY SCHOOL,SN1 ,31/10/2022,"2,740.50"
47748237,Schools - Primary,DSG Skills and Attainment,Primary School Budgets,3rd Party Payments,Mainstream Delegated Funding,EAST WICHEL COMMUNITY PRIMARY SCHOOL,SN1 ,19/10/2022,"133,267.00"
47861238,DSG Other Funding,DSG Skills and Attainment,DFE Additional Grants,Supplies and Services,Payments to Educational Bodies,EAST WICHEL COMMUNITY PRIMARY SCHOOL,SN1 ,19/10/2022,"2,138.75"
47626234,High Needs Block,DSG Skills and Attainment,SEN Resourcing Assessment Panel,3rd Party Payments,Top up funding - Maintained providers Pre 16,EAST WICHEL COMMUNITY PRIMARY SCHOOL,SN1 ,19/10/2022,"2,822.50"
47789233,DSG Other Funding,DSG Skills and Attainment,DFE Additional Grants,3rd Party Payments,Payment of Pupil Premium to school,EAST WICHEL COMMUNITY PRIMARY SCHOOL,SN1 ,19/10/2022,"7,112.00"
47264297,Learning Disabilities,Adults,Learning Disability 26 - 64,Income,Client Contribution - Residential,EASTERBROOK FARM LTD,EX20,14/10/2022,-347.00
47264297,Learning Disabilities,Adults,Learning Disability 26 - 64,3rd Party Payments,Residential Care,EASTERBROOK FARM LTD,EX20,14/10/2022,"4,494.52"
48645233,High Needs Block,DSG Skills and Attainment,SEN Resourcing Assessment Panel,Supplies and Services,Services,EB EDUCATION SERVICES LTD,SK4 ,21/10/2022,805.00
46070234,DSG Other Funding,DSG Skills and Attainment,LAC pupil premium,3rd Party Payments,Education / Training,EB EDUCATION SERVICES LTD,SK4 ,12/10/2022,"12,000.00"
44285233,Facilities Management,"People, Culture and Organisational Resilience",Office Accommodation,Supplies and Services,Water Coolers,EDEN SPRINGS UK LTD,G72 ,03/10/2022,522.77
47264313,Physical Support,Adults,Physical Support 65 and over,Income,Client Contribution - Residential,EDGE HILL,DT5 ,14/10/2022,"-1,127.84"
47264313,Physical Support,Adults,Physical Support 65 and over,Income,Client Contribution - Residential,EDGE HILL,DT5 ,14/10/2022,-595.40
47264313,Physical Support,Adults,Physical Support 65 and over,Income,Client Contribution - Residential,EDGE HILL,DT5 ,14/10/2022,-747.52
47264313,Physical Support,Adults,Physical Support 65 and over,Income,Client Contribution - Residential,EDGE HILL,DT5 ,14/10/2022,-569.40
47264313,Physical Support,Adults,Physical Support 65 and over,3rd Party Payments,Residential Care,EDGE HILL,DT5 ,14/10/2022,"-12,142.86"
47264313,Physical Support,Adults,Physical Support 65 and over,3rd Party Payments,Residential Care,EDGE HILL,DT5 ,14/10/2022,"-18,135.73"
47264313,Physical Support,Adults,Physical Support 65 and over,3rd Party Payments,Residential Care,EDGE HILL,DT5 ,14/10/2022,"22,204.00"
47264313,Physical Support,Adults,Physical Support 65 and over,3rd Party Payments,Residential Care,EDGE HILL,DT5 ,14/10/2022,"24,992.57"
47264313,Mental Health,Adults,Mental Health 65 and over,3rd Party Payments,Residential Care,EDGE HILL,DT5 ,14/10/2022,"2,560.12"
47264313,Physical Support,Adults,Physical Support 65 and over,Income,Client Contribution - Residential,EDGE HILL,DT5 ,14/10/2022,"-1,302.04"
47264313,Physical Support,Adults,Physical Support 65 and over,Income,Client Contribution - Residential,EDGE HILL,DT5 ,14/10/2022,"10,888.56"
47264313,Physical Support,Adults,Physical Support 65 and over,Income,Client Contribution - Residential,EDGE HILL,DT5 ,14/10/2022,"2,198.16"
47264313,Physical Support,Adults,Physical Support 65 and over,Income,Client Contribution - Residential,EDGE HILL,DT5 ,14/10/2022,22.42
47264313,Physical Support,Adults,Physical Support 65 and over,Income,Client Contribution - Residential,EDGE HILL,DT5 ,14/10/2022,"-1,163.52"
47264313,Physical Support,Adults,Physical Support 65 and over,Income,Client Contribution - Residential,EDGE HILL,DT5 ,14/10/2022,-879.52
47264313,Physical Support,Adults,Physical Support 65 and over,Income,Client Contribution - Residential,EDGE HILL,DT5 ,14/10/2022,-729.44
47264313,Physical Support,Adults,Physical Support 65 and over,Income,Client Contribution - Residential,EDGE HILL,DT5 ,14/10/2022,-343.72
47264313,Physical Support,Adults,Physical Support 18 - 64,3rd Party Payments,Residential Care,EDGE HILL,DT5 ,14/10/2022,"2,560.12"
47264313,Physical Support,Adults,Physical Support 65 and over,Income,Client Contribution - Residential,EDGE HILL,DT5 ,14/10/2022,31.26
47264313,Physical Support,Adults,Physical Support 65 and over,Income,Client Contribution - Residential,EDGE HILL,DT5 ,14/10/2022,"-1,906.76"
47264313,Physical Support,Adults,Physical Support 65 and over,Income,Client Contribution - Residential,EDGE HILL,DT5 ,14/10/2022,-984.52
47264313,Physical Support,Adults,Physical Support 65 and over,Income,Client Contribution - Residential,EDGE HILL,DT5 ,14/10/2022,-745.80
47264313,Physical Support,Adults,Physical Support 65 and over,3rd Party Payments,Residential Care,EDGE HILL,DT5 ,14/10/2022,"2,668.72"
47264313,Mental Health,Adults,Mental Health 65 and over,3rd Party Payments,Residential Care,EDGE HILL,DT5 ,14/10/2022,"3,680.00"
47337233,Physical Support,Adults,Physical Support 65 and over,3rd Party Payments,Personal Budget - Respite Care,EDGE HILL,DT5 ,17/10/2022,"2,735.20"
47264313,Physical Support,Adults,Physical Support 65 and over,Income,Client Contribution - Residential,EDGE HILL,DT5 ,14/10/2022,627.80
47264313,Physical Support,Adults,Physical Support 65 and over,Income,Client Contribution - Residential,EDGE HILL,DT5 ,14/10/2022,-257.00
47264313,Physical Support,Adults,Physical Support 65 and over,3rd Party Payments,Residential Care,EDGE HILL,DT5 ,14/10/2022,"2,844.24"
47264313,Physical Support,Adults,Physical Support 65 and over,3rd Party Payments,Residential Care,EDGE HILL,DT5 ,14/10/2022,"3,400.00"
47264313,Physical Support,Adults,Physical Support 65 and over,Income,Client Contribution - Residential,EDGE HILL,DT5 ,14/10/2022,-649.04
47264313,Physical Support,Adults,Physical Support 65 and over,Income,Client Contribution - Residential,EDGE HILL,DT5 ,14/10/2022,-567.28
47264313,Physical Support,Adults,Physical Support 65 and over,3rd Party Payments,Residential Care,EDGE HILL,DT5 ,14/10/2022,"-3,278.57"
47264313,Physical Support,Adults,Physical Support 65 and over,3rd Party Payments,Residential Care,EDGE HILL,DT5 ,14/10/2022,"-3,486.87"
47264313,Physical Support,Adults,Physical Support 65 and over,3rd Party Payments,Residential Care,EDGE HILL,DT5 ,14/10/2022,-121.43
47264313,Physical Support,Adults,Physical Support 65 and over,3rd Party Payments,Residential Care,EDGE HILL,DT5 ,14/10/2022,"1,214.29"
47264313,Physical Support,Adults,Physical Support 65 and over,3rd Party Payments,Residential Care,EDGE HILL,DT5 ,14/10/2022,"10,907.57"
47264313,Physical Support,Adults,Physical Support 65 and over,3rd Party Payments,Residential Care,EDGE HILL,DT5 ,14/10/2022,"3,284.00"
47264313,Mental Health,Adults,Mental Health 65 and over,Income,Client Contribution - Residential,EDGE HILL,DT5 ,14/10/2022,-667.44
47264313,Physical Support,Adults,Physical Support 65 and over,Income,Client Contribution - Residential,EDGE HILL,DT5 ,14/10/2022,"4,169.14"
47264313,Physical Support,Adults,Physical Support 65 and over,Income,Client Contribution - Residential,EDGE HILL,DT5 ,14/10/2022,52.11
47264313,Physical Support,Adults,Physical Support 65 and over,Income,Client Contribution - Residential,EDGE HILL,DT5 ,14/10/2022,102.24
47264313,Physical Support,Adults,Physical Support 65 and over,Income,Client Contribution - Residential,EDGE HILL,DT5 ,14/10/2022,"-1,378.16"
47264313,Physical Support,Adults,Physical Support 65 and over,Income,Client Contribution - Residential,EDGE HILL,DT5 ,14/10/2022,-862.80
47264313,Physical Support,Adults,Physical Support 65 and over,Income,Client Contribution - Residential,EDGE HILL,DT5 ,14/10/2022,-818.56
47264313,Physical Support,Adults,Physical Support 65 and over,Income,Client Contribution - Residential,EDGE HILL,DT5 ,14/10/2022,-726.24
47264313,Physical Support,Adults,Physical Support 65 and over,Income,Client Contribution - Residential,EDGE HILL,DT5 ,14/10/2022,-576.92
47264313,Physical Support,Adults,Physical Support 65 and over,Income,Client Contribution - Residential,EDGE HILL,DT5 ,14/10/2022,"-2,991.15"
47264313,Physical Support,Adults,Physical Support 65 and over,3rd Party Payments,Residential Care,EDGE HILL,DT5 ,14/10/2022,"2,384.04"
47264313,Physical Support,Adults,Physical Support 65 and over,3rd Party Payments,Residential Care,EDGE HILL,DT5 ,14/10/2022,"14,450.00"
47264313,Physical Support,Adults,Physical Support 65 and over,Income,Client Contribution - Residential,EDGE HILL,DT5 ,14/10/2022,"-1,368.48"
47264313,Physical Support,Adults,Physical Support 65 and over,Income,Client Contribution - Residential,EDGE HILL,DT5 ,14/10/2022,-657.56
47264313,Physical Support,Adults,Physical Support 65 and over,Income,Client Contribution - Residential,EDGE HILL,DT5 ,14/10/2022,-655.84
47264313,Physical Support,Adults,Physical Support 65 and over,Income,Client Contribution - Residential,EDGE HILL,DT5 ,14/10/2022,-608.80
47264313,Physical Support,Adults,Physical Support 65 and over,Income,Client Contribution - Residential,EDGE HILL,DT5 ,14/10/2022,-703.80
47264313,Physical Support,Adults,Physical Support 65 and over,3rd Party Payments,Residential Care,EDGE HILL,DT5 ,14/10/2022,"2,560.12"
47264313,Physical Support,Adults,Physical Support 65 and over,3rd Party Payments,Residential Care,EDGE HILL,DT5 ,14/10/2022,"3,328.00"
47264313,Mental Health,Adults,Mental Health 65 and over,Income,Client Contribution - Residential,EDGE HILL,DT5 ,14/10/2022,-441.48
47264313,Physical Support,Adults,Physical Support 65 and over,Income,Client Contribution - Residential,EDGE HILL,DT5 ,14/10/2022,-871.20
47264313,Physical Support,Adults,Physical Support 65 and over,Income,Client Contribution - Residential,EDGE HILL,DT5 ,14/10/2022,-627.80
47264313,Physical Support,Adults,Physical Support 65 and over,3rd Party Payments,Residential Care,EDGE HILL,DT5 ,14/10/2022,"-13,623.09"
47264313,Physical Support,Adults,Physical Support 65 and over,3rd Party Payments,Residential Care,EDGE HILL,DT5 ,14/10/2022,"4,396.00"
47264313,Physical Support,Adults,Physical Support 65 and over,3rd Party Payments,Residential Care,EDGE HILL,DT5 ,14/10/2022,"4,710.00"
47264313,Physical Support,Adults,Physical Support 65 and over,Income,Client Contribution - Residential,EDGE HILL,DT5 ,14/10/2022,"2,242.14"
47264313,Physical Support,Adults,Physical Support 65 and over,Income,Client Contribution - Residential,EDGE HILL,DT5 ,14/10/2022,843.94
47264313,Physical Support,Adults,Physical Support 65 and over,Income,Client Contribution - Residential,EDGE HILL,DT5 ,14/10/2022,-875.20
47264313,Physical Support,Adults,Physical Support 65 and over,Income,Client Contribution - Residential,EDGE HILL,DT5 ,14/10/2022,-350.50
49759233,Human Resources and Organisational Development,"People, Culture and Organisational Resilience",Organisational Development,Employees,Training,EDGE TRAINING & CONSULTANCY LTD,EC1A,28/10/2022,550.00
45634233,Treasury,Corporate Finance,Private Finance Initiatives (PFI),3rd Party Payments,Contract Payments,EDUCATION SUPPORT (SWINDON) LTD,BR8 ,10/10/2022,"1,004,807.64"
45634233,Treasury,Corporate Finance,Private Finance Initiatives (PFI),Income,Settlements,EDUCATION SUPPORT (SWINDON) LTD,BR8 ,10/10/2022,"1,359.88"
45634233,Treasury,Corporate Finance,Private Finance Initiatives (PFI),Supplies and Services,Service Charges,EDUCATION SUPPORT (SWINDON) LTD,BR8 ,10/10/2022,"3,397.53"
45634233,Treasury,Corporate Finance,Private Finance Initiatives (PFI),Income,Settlements,EDUCATION SUPPORT (SWINDON) LTD,BR8 ,10/10/2022,"-1,066.00"
45634233,Treasury,Corporate Finance,Private Finance Initiatives (PFI),Income,Settlements,EDUCATION SUPPORT (SWINDON) LTD,BR8 ,10/10/2022,334.65
45634233,Treasury,Corporate Finance,Private Finance Initiatives (PFI),Income,Settlements,EDUCATION SUPPORT (SWINDON) LTD,BR8 ,10/10/2022,"12,399.94"
46971233,,,Balance Sheet,Balance Sheet & Recharge,Mobile phone invoices,EE (EVERYTHING EVERYWHERE),S98 ,14/10/2022,"6,887.00"
48786233,Planning & Regulatory,Strategic Planning,Planning Development,Employees,Temporary / Agency - by Accounts Payable,EGGLETON PLANNING AND DESIGN LTD,HG4 ,21/10/2022,"1,464.00"
44863233,Planning & Regulatory,Strategic Planning,Planning Development,Employees,Temporary / Agency - by Accounts Payable,EGGLETON PLANNING AND DESIGN LTD,HG4 ,05/10/2022,"1,164.00"
45219233,Planning & Regulatory,Strategic Planning,Planning Development,Employees,Temporary / Agency - by Accounts Payable,EGGLETON PLANNING AND DESIGN LTD,HG4 ,07/10/2022,"1,080.00"
49636233,Planning & Regulatory,Strategic Planning,Planning Development,Employees,Temporary / Agency - by Accounts Payable,EGGLETON PLANNING AND DESIGN LTD,HG4 ,28/10/2022,"1,776.00"
46962233,Planning & Regulatory,Strategic Planning,Planning Development,Employees,Temporary / Agency - by Accounts Payable,EGGLETON PLANNING AND DESIGN LTD,HG4 ,14/10/2022,"1,416.00"
46964233,Planning & Regulatory,Strategic Planning,Planning Development,Employees,Temporary / Agency - by Accounts Payable,EGGLETON PLANNING AND DESIGN LTD,HG4 ,14/10/2022,"1,728.00"
45675236,Social Care,"Children, Families and Community Health Services",Placement Fostering Service,3rd Party Payments,Carers Skills Payments - Advanced,REDACTED PERSONAL DATA,SN5 ,10/10/2022,270.00
45675236,Social Care,"Children, Families and Community Health Services",Placement Fostering Service,3rd Party Payments,Foster Care Basic Payments,REDACTED PERSONAL DATA,SN5 ,10/10/2022,491.52
48987234,Social Care,"Children, Families and Community Health Services",Placement Fostering Service,3rd Party Payments,Foster Care Basic Payments,REDACTED PERSONAL DATA,SN5 ,24/10/2022,491.52
48987234,Social Care,"Children, Families and Community Health Services",Placement Fostering Service,3rd Party Payments,Carers Skills Payments - Advanced,REDACTED PERSONAL DATA,SN5 ,24/10/2022,270.00
48247233,Learning Disabilities,Adults,Learning Disability 26 - 64,3rd Party Payments,Supported Accommodation Scheme,REDACTED PERSONAL DATA,SN25,19/10/2022,"1,671.04"
44607233,Organisational Resilience,"People, Culture and Organisational Resilience",Health & Safety,Supplies and Services,Accreditations,ELAS OCCUPATIONAL HEALTH LTD,M30 ,05/10/2022,768.00
47779233,DSG Other Funding,DSG Skills and Attainment,DFE Additional Grants,3rd Party Payments,Payment of Pupil Premium to school,ELDENE PRIMARY SCHOOL,SN3 ,19/10/2022,"14,972.00"
47772233,High Needs Block,DSG Skills and Attainment,SRP (Special Resource Provision) Place,3rd Party Payments,HNB- Place Funding pre 16,ELDENE PRIMARY SCHOOL,SN3 ,19/10/2022,"5,000.00"
47621233,High Needs Block,DSG Skills and Attainment,SEN Resourcing Assessment Panel,3rd Party Payments,Top up funding - Maintained providers Pre 16,ELDENE PRIMARY SCHOOL,SN3 ,19/10/2022,"6,005.01"
47633234,High Needs Block,DSG Skills and Attainment,SEN Resourcing Assessment Panel,3rd Party Payments,Top up funding - Maintained providers Pre 16,ELDENE PRIMARY SCHOOL,SN3 ,19/10/2022,"10,925.62"
47743233,Schools - Primary,DSG Skills and Attainment,Primary School Budgets,3rd Party Payments,Mainstream Delegated Funding,ELDENE PRIMARY SCHOOL,SN3 ,19/10/2022,"128,237.00"
47856233,DSG Other Funding,DSG Skills and Attainment,DFE Additional Grants,Supplies and Services,Payments to Educational Bodies,ELDENE PRIMARY SCHOOL,SN3 ,19/10/2022,"5,148.75"
50089234,DSG Other Funding,DSG Skills and Attainment,DFE Additional Grants,Supplies and Services,Payments to Educational Bodies,ELDENE PRIMARY SCHOOL,SN3 ,31/10/2022,"5,832.75"
44990233,Social Care,"Children, Families and Community Health Services",External Placements,3rd Party Payments,Care Packages,ELEVENTH HOUR GROUP,EC2M,05/10/2022,984.00
44984234,Social Care,"Children, Families and Community Health Services",External Placements,3rd Party Payments,Care Packages,ELEVENTH HOUR GROUP,EC2M,05/10/2022,504.00
44982234,Social Care,"Children, Families and Community Health Services",External Placements,3rd Party Payments,Care Packages,ELEVENTH HOUR GROUP,EC2M,05/10/2022,"1,855.20"
44981233,Social Care,"Children, Families and Community Health Services",External Placements,3rd Party Payments,Care Packages,ELEVENTH HOUR GROUP,EC2M,05/10/2022,720.00
44979235,Social Care,"Children, Families and Community Health Services",External Placements,3rd Party Payments,Care Packages,ELEVENTH HOUR GROUP,EC2M,05/10/2022,"2,530.00"
45003233,Social Care,"Children, Families and Community Health Services",External Placements,3rd Party Payments,Care Packages,ELEVENTH HOUR GROUP,EC2M,05/10/2022,"-2,296.00"
45002236,Social Care,"Children, Families and Community Health Services",External Placements,3rd Party Payments,Care Packages,ELEVENTH HOUR GROUP,EC2M,05/10/2022,"3,863.84"
45002234,Social Care,"Children, Families and Community Health Services",External Placements,3rd Party Payments,Care Packages,ELEVENTH HOUR GROUP,EC2M,05/10/2022,"1,602.00"
49023233,Social Care,"Children, Families and Community Health Services",Looked After Children Service,3rd Party Payments,Personal Needs,ELEVENTH HOUR GROUP,EC2M,24/10/2022,"2,507.00"
49251238,Social Care,"Children, Families and Community Health Services",External Placements,3rd Party Payments,Care Packages,ELEVENTH HOUR GROUP,EC2M,26/10/2022,"3,303.30"
49247235,Social Care,"Children, Families and Community Health Services",External Placements,3rd Party Payments,Care Packages,ELEVENTH HOUR GROUP,EC2M,26/10/2022,900.00
48067233,Social Care,"Children, Families and Community Health Services",External Placements,3rd Party Payments,Care Packages,ELEVENTH HOUR GROUP,EC2M,19/10/2022,534.00
44997233,Social Care,"Children, Families and Community Health Services",External Placements,3rd Party Payments,Care Packages,ELEVENTH HOUR GROUP,EC2M,05/10/2022,"2,268.00"
44992233,Social Care,"Children, Families and Community Health Services",External Placements,3rd Party Payments,Care Packages,ELEVENTH HOUR GROUP,EC2M,05/10/2022,"1,434.00"
44989234,Social Care,"Children, Families and Community Health Services",External Placements,3rd Party Payments,Care Packages,ELEVENTH HOUR GROUP,EC2M,05/10/2022,"2,477.64"
44989233,Social Care,"Children, Families and Community Health Services",External Placements,3rd Party Payments,Care Packages,ELEVENTH HOUR GROUP,EC2M,05/10/2022,"1,501.24"
44988234,Social Care,"Children, Families and Community Health Services",External Placements,3rd Party Payments,Care Packages,ELEVENTH HOUR GROUP,EC2M,05/10/2022,"2,446.00"
44999234,Social Care,"Children, Families and Community Health Services",External Placements,3rd Party Payments,Care Packages,ELEVENTH HOUR GROUP,EC2M,05/10/2022,"2,849.64"
44979245,Social Care,"Children, Families and Community Health Services",External Placements,3rd Party Payments,Care Packages,ELEVENTH HOUR GROUP,EC2M,05/10/2022,"2,418.00"
47234233,Social Care,"Children, Families and Community Health Services",Placement Fostering Service,3rd Party Payments,Foster Care Basic Payments,ELEVENTH HOUR GROUP,EC2M,14/10/2022,"2,034.00"
49252237,Social Care,"Children, Families and Community Health Services",External Placements,3rd Party Payments,Care Packages,ELEVENTH HOUR GROUP,EC2M,26/10/2022,"2,448.00"
44996233,Social Care,"Children, Families and Community Health Services",External Placements,3rd Party Payments,Care Packages,ELEVENTH HOUR GROUP,EC2M,05/10/2022,"-2,775.50"
44991233,Social Care,"Children, Families and Community Health Services",External Placements,3rd Party Payments,Care Packages,ELEVENTH HOUR GROUP,EC2M,05/10/2022,"2,471.99"
44987233,Social Care,"Children, Families and Community Health Services",External Placements,3rd Party Payments,Care Packages,ELEVENTH HOUR GROUP,EC2M,05/10/2022,"2,688.00"
44985233,Social Care,"Children, Families and Community Health Services",External Placements,3rd Party Payments,Care Packages,ELEVENTH HOUR GROUP,EC2M,05/10/2022,"1,848.00"
44984233,Social Care,"Children, Families and Community Health Services",External Placements,3rd Party Payments,Care Packages,ELEVENTH HOUR GROUP,EC2M,05/10/2022,"2,268.00"
44979242,Social Care,"Children, Families and Community Health Services",External Placements,3rd Party Payments,Care Packages,ELEVENTH HOUR GROUP,EC2M,05/10/2022,"2,418.00"
44979234,Social Care,"Children, Families and Community Health Services",External Placements,3rd Party Payments,Care Packages,ELEVENTH HOUR GROUP,EC2M,05/10/2022,"2,268.00"
44999235,Social Care,"Children, Families and Community Health Services",External Placements,3rd Party Payments,Care Packages,ELEVENTH HOUR GROUP,EC2M,05/10/2022,"1,672.00"
47246233,Social Care,"Children, Families and Community Health Services",Placement Fostering Service,3rd Party Payments,Foster Care Basic Payments,ELEVENTH HOUR GROUP,EC2M,14/10/2022,"6,300.00"
49252234,Social Care,"Children, Families and Community Health Services",External Placements,3rd Party Payments,Care Packages,ELEVENTH HOUR GROUP,EC2M,26/10/2022,"1,934.80"
49248234,Social Care,"Children, Families and Community Health Services",External Placements,3rd Party Payments,Care Packages,ELEVENTH HOUR GROUP,EC2M,26/10/2022,"2,481.00"
49247233,Social Care,"Children, Families and Community Health Services",External Placements,3rd Party Payments,Care Packages,ELEVENTH HOUR GROUP,EC2M,26/10/2022,534.00
